Workbook

Sheet Main
B10: 2018-10-05
B12: Sheet No. | C12: Template Name | D12: Summary
B13: 1 | C13: Future Intra | D13: For Intraday trading in F&O segment
B14: 2 | C14: Cash Intra | D14: For Intraday trading in cash market segment
B15: 3 | C15: Mid-cap Intra | D15: For Intraday trading in Mid-cap stocks
B16: 4 | C16: Bulk Deals | D16: Reveals Bulk Deals carried on NSE & BSE
B17: 5 | C17: Call Tracker

Sheet Future Intra
M5: Back to Main Page
A6: FOR INTRA DAY TRADING | L6: =Main!B10 -> 2018-10-05
A9: Sr.no | B9: Sector | C9: Scrip | D9: CLOSE RATE | E9: Pivot Point | F9: Supports | I9: Resistances
B10: Sector | D10: Point | E10: Point | F10: S1 | G10: S2 | H10: S3 | I10: R1 | J10: R2 | K10: R3 | L10: HIGH | M10: LOW | N10: OI | O10: % Change in OI
A11: 1 | B11: Index | C11: BANKNIFTY | D11: 24862.20 | E11: 24816.42 | F11: 24665.83 | G11: 24469.47 | H11: 24318.88 | I11: 25012.78 | J11: 25163.37 | K11: 25359.73 | L11: 24967 | M11: 24620.05 | N11: 1692000 | O11: -12.75%
A12: 2 | B12: Index | C12: NIFTY | D12: 10631.25 | E12: 10674.67 | F12: 10549.83 | G12: 10468.42 | H12: 10343.58 | I12: 10756.08 | J12: 10880.92 | K12: 10962.33 | L12: 10799.5 | M12: 10593.25 | N12: 20014875 | O12: 10.32%
A13: 3 | B13: Index | C13: NIFTYCPSE | D13: 2315.55 | E13: 771.85 | F13: 1543.70 | G13: 771.85 | H13: 1543.70 | I13: 1543.70 | J13: 771.85 | K13: 1543.70 | L13: 0 | M13: 0 | N13: 0 | O13: 0.00%
A14: 4 | B14: Index | C14: NIFTYINFRA | D14: 3177.55 | E14: 1059.18 | F14: 2118.37 | G14: 1059.18 | H14: 2118.37 | I14: 2118.37 | J14: 1059.18 | K14: 2118.37 | L14: 0 | M14: 0 | N14: 0 | O14: 0.00%
A15: 5 | B15: Index | C15: NIFTYIT | D15: 15475.00 | E15: 15605.00 | F15: 15295.00 | G15: 15115.00 | H15: 14805.00 | I15: 15785.00 | J15: 16095.00 | K15: 16275.00 | L15: 15915 | M15: 15425 | N15: 39300 | O15: 0.00%
A16: 6 | B16: Index | C16: NIFTYMID50 | D16: 4670.00 | E16: 4709.33 | F16: 4630.67 | G16: 4591.33 | H16: 4512.67 | I16: 4748.67 | J16: 4827.33 | K16: 4866.67 | L16: 4788 | M16: 4670 | N16: 761310 | O16: 0.00%
A17: 7 | B17: Index | C17: NIFTYPSE | D17: 3599.05 | E17: 1199.68 | F17: 2399.37 | G17: 1199.68 | H17: 2399.37 | I17: 2399.37 | J17: 1199.68 | K17: 2399.37 | L17: 0 | M17: 0 | N17: 0 | O17: 0.00%
A18: 8 | B18: Cement | C18: ACC | D18: 1521.60 | E18: 1506.43 | F18: 1481.12 | G18: 1440.63 | H18: 1415.32 | I18: 1546.92 | J18: 1572.23 | K18: 1612.72 | L18: 1531.75 | M18: 1465.95 | N18: 1340000 | O18: -3.37%
A19: 9 | B19: Others | C19: ADANIENT | D19: 133.85 | E19: 132.02 | F19: 128.58 | G19: 123.32 | H19: 119.88 | I19: 137.28 | J19: 140.72 | K19: 145.98 | L19: 135.45 | M19: 126.75 | N19: 39192000 | O19: -0.47%
A20: 10 | B20: Others | C20: ADANIPORTS | D20: 318.60 | E20: 321.05 | F20: 311.80 | G20: 305.00 | H20: 295.75 | I20: 327.85 | J20: 337.10 | K20: 343.90 | L20: 330.3 | M20: 314.25 | N20: 10487500 | O20: 0.65%
A21: 11 | B21: Power | C21: ADANIPOWER | D21: 24.50 | E21: 24.73 | F21: 23.72 | G21: 22.93 | H21: 21.92 | I21: 25.52 | J21: 26.53 | K21: 27.32 | L21: 25.75 | M21: 23.95 | N21: 159140000 | O21: 0.40%
A22: 12 | B22: Pharma | C22: AJANTPHARM | D22: 1006.60 | E22: 1017.27 | F22: 989.18 | G22: 971.77 | H22: 943.68 | I22: 1034.68 | J22: 1062.77 | K22: 1080.18 | L22: 1045.35 | M22: 999.85 | N22: 632500 | O22: -6.78%
A23: 13 | B23: Banking | C23: ALBK | D23: 35.95 | E23: 35.77 | F23: 35.18 | G23: 34.42 | H23: 33.83 | I23: 36.53 | J23: 37.12 | K23: 37.88 | L23: 36.35 | M23: 35 | N23: 18073000 | O23: -0.96%
A24: 14 | B24: Automobile | C24: AMARAJABAT | D24: 730.05 | E24: 731.65 | F24: 714.30 | G24: 698.55 | H24: 681.20 | I24: 747.40 | J24: 764.75 | K24: 780.50 | L24: 749 | M24: 715.9 | N24: 1015700 | O24: 1.90%
A25: 15 | B25: Cement | C25: AMBUJACEM | D25: 214.95 | E25: 213.25 | F25: 209.05 | G25: 203.15 | H25: 198.95 | I25: 219.15 | J25: 223.35 | K25: 229.25 | L25: 217.45 | M25: 207.35 | N25: 13387500 | O25: -1.45%
A26: 17 | B26: Others | C26: APOLLOHOSP | D26: 1043.35 | E26: 1048.35 | F26: 1028.20 | G26: 1013.05 | H26: 992.90 | I26: 1063.50 | J26: 1083.65 | K26: 1098.80 | L26: 1068.5 | M26: 1033.2 | N26: 1112000 | O26: -9.08%
A27: 18 | B27: Automobile | C27: APOLLOTYRE | D27: 203.40 | E27: 202.77 | F27: 198.63 | G27: 193.87 | H27: 189.73 | I27: 207.53 | J27: 211.67 | K27: 216.43 | L27: 206.9 | M27: 198 | N27: 12123000 | O27: -1.13%
A28: 19 | B28: Textile | C28: ARVIND | D28: 317.80 | E28: 315.67 | F28: 308.63 | G28: 299.47 | H28: 292.43 | I28: 324.83 | J28: 331.87 | K28: 341.03 | L28: 322.7 | M28: 306.5 | N28: 7684000 | O28: -3.56%
A29: 20 | B29: Automobile | C29: ASHOKLEY | D29: 118.15 | E29: 117.78 | F29: 115.77 | G29: 113.38 | H29: 111.37 | I29: 120.17 | J29: 122.18 | K29: 124.57 | L29: 119.8 | M29: 115.4 | N29: 54748000 | O29: -4.70%
A30: 21 | B30: FMCG | C30: ASIANPAINT | D30: 1230.00 | E30: 1230.05 | F30: 1215.35 | G30: 1200.70 | H30: 1186.00 | I30: 1244.70 | J30: 1259.40 | K30: 1274.05 | L30: 1244.75 | M30: 1215.4 | N30: 5127000 | O30: -0.85%
A31: 22 | B31: Pharma | C31: AUROPHARMA | D31: 757.80 | E31: 756.67 | F31: 739.53 | G31: 721.27 | H31: 704.13 | I31: 774.93 | J31: 792.07 | K31: 810.33 | L31: 773.8 | M31: 738.4 | N31: 20851000 | O31: -1.56%
A32: 23 | B32: Banking | C32: AXISBANK | D32: 588.40 | E32: 579.35 | F32: 565.35 | G32: 542.30 | H32: 528.30 | I32: 602.40 | J32: 616.40 | K32: 639.45 | L32: 593.35 | M32: 556.3 | N32: 37462800 | O32: -1.87%
A33: 24 | B33: Automobile | C33: BAJAJ-AUTO | D33: 2660.00 | E33: 2675.48 | F33: 2624.72 | G33: 2589.43 | H33: 2538.67 | I33: 2710.77 | J33: 2761.53 | K33: 2796.82 | L33: 2726.25 | M33: 2640.2 | N33: 2720000 | O33: 4.48%
A34: 25 | B34: Others | C34: BAJAJFINSV | D34: 5656.45 | E34: 5655.35 | F34: 5556.70 | G34: 5456.95 | H34: 5358.30 | I34: 5755.10 | J34: 5853.75 | K34: 5953.50 | L34: 5754 | M34: 5555.6 | N34: 758750 | O34: -1.81%
A35: 26 | B35: Finance | C35: BAJFINANCE | D35: 2180.45 | E35: 2174.67 | F35: 2131.78 | G35: 2083.12 | H35: 2040.23 | I35: 2223.33 | J35: 2266.22 | K35: 2314.88 | L35: 2217.55 | M35: 2126 | N35: 7352500 | O35: 3.79%
A36: 27 | B36: Others | C36: BALKRISIND | D36: 1049.75 | E36: 1048.42 | F36: 1014.53 | G36: 979.32 | H36: 945.43 | I36: 1083.63 | J36: 1117.52 | K36: 1152.73 | L36: 1082.3 | M36: 1013.2 | N36: 1991200 | O36: -0.88%
A37: 29 | B37: Banking | C37: BANKBARODA | D37: 103.70 | E37: 103.48 | F37: 101.02 | G37: 98.33 | H37: 95.87 | I37: 106.17 | J37: 108.63 | K37: 111.32 | L37: 105.95 | M37: 100.8 | N37: 76120000 | O37: -0.53%
A38: 30 | B38: Banking | C38: BANKINDIA | D38: 79.30 | E38: 79.58 | F38: 77.12 | G38: 74.93 | H38: 72.47 | I38: 81.77 | J38: 84.23 | K38: 86.42 | L38: 82.05 | M38: 77.4 | N38: 21486000 | O38: -0.67%
A39: 31 | B39: FMCG | C39: BATAINDIA | D39: 872.00 | E39: 883.43 | F39: 853.87 | G39: 835.73 | H39: 806.17 | I39: 901.57 | J39: 931.13 | K39: 949.27 | L39: 913 | M39: 865.3 | N39: 1818300 | O39: 0.55%
A40: 32 | B40: Capital_Goods | C40: BEL | D40: 82.30 | E40: 82.23 | F40: 80.67 | G40: 79.03 | H40: 77.47 | I40: 83.87 | J40: 85.43 | K40: 87.07 | L40: 83.8 | M40: 80.6 | N40: 34214400 | O40: -3.11%
A41: 33 | B41: Infrastructure | C41: BEML | D41: 617.50 | E41: 611.63 | F41: 596.87 | G41: 576.23 | H41: 561.47 | I41: 632.27 | J41: 647.03 | K41: 667.67 | L41: 626.4 | M41: 591 | N41: 1644500 | O41: -3.55%
A42: 34 | B42: Others | C42: BERGEPAINT | D42: 271.65 | E42: 273.17 | F42: 267.83 | G42: 264.02 | H42: 258.68 | I42: 276.98 | J42: 282.32 | K42: 286.13 | L42: 278.5 | M42: 269.35 | N42: 1887600 | O42: 1.06%
A43: 35 | B43: Finance | C43: BHARATFIN | D43: 993.80 | E43: 992.60 | F43: 968.80 | G43: 943.80 | H43: 920.00 | I43: 1017.60 | J43: 1041.40 | K43: 1066.40 | L43: 1016.4 | M43: 967.6 | N43: 4675500 | O43: 3.13%
A44: 36 | B44: Automobile | C44: BHARATFORG | D44: 593.90 | E44: 594.40 | F44: 586.55 | G44: 579.20 | H44: 571.35 | I44: 601.75 | J44: 609.60 | K44: 616.95 | L44: 602.25 | M44: 587.05 | N44: 7671600 | O44: 0.27%
A45: 37 | B45: Telecom | C45: BHARTIARTL | D45: 311.90 | E45: 311.60 | F45: 303.70 | G45: 295.50 | H45: 287.60 | I45: 319.80 | J45: 327.70 | K45: 335.90 | L45: 319.5 | M45: 303.4 | N45: 50022500 | O45: 0.96%
A46: 38 | B46: Capital_Goods | C46: BHEL | D46: 73.60 | E46: 73.67 | F46: 72.18 | G46: 70.77 | H46: 69.28 | I46: 75.08 | J46: 76.57 | K46: 77.98 | L46: 75.15 | M46: 72.25 | N46: 35962500 | O46: -3.05%
A47: 39 | B47: Pharma | C47: BIOCON | D47: 628.05 | E47: 635.68 | F47: 614.37 | G47: 600.68 | H47: 579.37 | I47: 649.37 | J47: 670.68 | K47: 684.37 | L47: 657 | M47: 622 | N47: 7219800 | O47: 3.48%
A48: 40 | B48: Automobile | C48: BOSCHLTD | D48: 19161.70 | E48: 19197.27 | F48: 18700.53 | G48: 18239.37 | H48: 17742.63 | I48: 19658.43 | J48: 20155.17 | K48: 20616.33 | L48: 19694 | M48: 18736.1 | N48: 116820 | O48: -2.70%
A49: 41 | B49: Oil_Gas | C49: BPCL | D49: 336.20 | E49: 341.53 | F49: 298.67 | G49: 261.13 | H49: 218.27 | I49: 379.07 | J49: 421.93 | K49: 459.47 | L49: 384.4 | M49: 304 | N49: 10449000 | O49: 30.36%
A50: 42 | B50: FMCG | C50: BRITANNIA | D50: 5632.45 | E50: 5630.48 | F50: 5570.97 | G50: 5509.48 | H50: 5449.97 | I50: 5691.97 | J50: 5751.48 | K50: 5812.97 | L50: 5690 | M50: 5569 | N50: 1366600 | O50: -0.07%
A51: 43 | B51: Pharma | C51: CADILAHC | D51: 383.55 | E51: 384.77 | F51: 376.63 | G51: 369.72 | H51: 361.58 | I51: 391.68 | J51: 399.82 | K51: 406.73 | L51: 392.9 | M51: 377.85 | N51: 10163200 | O51: -3.61%
A52: 44 | B52: Banking | C52: CANBK | D52: 229.70 | E52: 230.45 | F52: 225.45 | G52: 221.20 | H52: 216.20 | I52: 234.70 | J52: 239.70 | K52: 243.95 | L52: 235.45 | M52: 226.2 | N52: 8280000 | O52: -0.81%
A53: 45 | B53: Others | C53: CANFINHOME | D53: 245.75 | E53: 244.73 | F53: 237.72 | G53: 229.68 | H53: 222.67 | I53: 252.77 | J53: 259.78 | K53: 267.82 | L53: 251.75 | M53: 236.7 | N53: 5442500 | O53: -1.14%
A54: 46 | B54: Finance | C54: CAPF | D54: 495.85 | E54: 497.15 | F54: 484.80 | G54: 473.75 | H54: 461.40 | I54: 508.20 | J54: 520.55 | K54: 531.60 | L54: 509.5 | M54: 486.1 | N54: 6020000 | O54: 7.00%
A55: 47 | B55: Oil_Gas | C55: CASTROLIND | D55: 141.10 | E55: 141.40 | F55: 139.70 | G55: 138.30 | H55: 136.60 | I55: 142.80 | J55: 144.50 | K55: 145.90 | L55: 143.1 | M55: 140 | N55: 9553600 | O55: 1.34%
A56: 48 | B56: Automobile | C56: CEATLTD | D56: 1058.25 | E56: 1071.08 | F56: 1037.22 | G56: 1016.18 | H56: 982.32 | I56: 1092.12 | J56: 1125.98 | K56: 1147.02 | L56: 1104.95 | M56: 1050.05 | N56: 1093400 | O56: 3.24%
A57: 49 | B57: Textile | C57: CENTURYTEX | D57: 799.95 | E57: 789.92 | F57: 769.23 | G57: 738.52 | H57: 717.83 | I57: 820.63 | J57: 841.32 | K57: 872.03 | L57: 810.6 | M57: 759.2 | N57: 6615400 | O57: 0.77%
A58: 50 | B58: Power | C58: CESC | D58: 845.30 | E58: 844.32 | F58: 827.63 | G58: 809.97 | H58: 793.28 | I58: 861.98 | J58: 878.67 | K58: 896.33 | L58: 861 | M58: 826.65 | N58: 5844850 | O58: -1.06%
A59: 51 | B59: Power | C59: CGPOWER | D59: 44.40 | E59: 44.30 | F59: 43.30 | G59: 42.20 | H59: 41.20 | I59: 45.40 | J59: 46.40 | K59: 47.50 | L59: 45.3 | M59: 43.2 | N59: 34920000 | O59: -0.27%
A60: 52 | B60: Others | C60: CHENNPETRO | D60: 277.45 | E60: 278.63 | F60: 269.37 | G60: 261.28 | H60: 252.02 | I60: 286.72 | J60: 295.98 | K60: 304.07 | L60: 287.9 | M60: 270.55 | N60: 1089000 | O60: -2.68%
A61: 53 | B61: Others | C61: CHOLAFIN | D61: 1192.85 | E61: 1178.47 | F61: 1156.93 | G61: 1121.02 | H61: 1099.48 | I61: 1214.38 | J61: 1235.92 | K61: 1271.83 | L61: 1200 | M61: 1142.55 | N61: 849500 | O61: -1.05%
A62: 54 | B62: Pharma | C62: CIPLA | D62: 636.25 | E62: 640.28 | F62: 626.67 | G62: 617.08 | H62: 603.47 | I62: 649.87 | J62: 663.48 | K62: 673.07 | L62: 653.9 | M62: 630.7 | N62: 10484000 | O62: 1.38%
A63: 55 | B63: Others | C63: COALINDIA | D63: 273.40 | E63: 273.77 | F63: 268.53 | G63: 263.67 | H63: 258.43 | I63: 278.63 | J63: 283.87 | K63: 288.73 | L63: 279 | M63: 268.9 | N63: 18200600 | O63: -0.85%
A64: 56 | B64: FMCG | C64: COLPAL | D64: 1064.90 | E64: 1070.60 | F64: 1051.25 | G64: 1037.60 | H64: 1018.25 | I64: 1084.25 | J64: 1103.60 | K64: 1117.25 | L64: 1089.95 | M64: 1056.95 | N64: 1599500 | O64: 6.88%
A65: 57 | B65: Others | C65: CONCOR | D65: 609.80 | E65: 615.02 | F65: 589.78 | G65: 569.77 | H65: 544.53 | I65: 635.03 | J65: 660.27 | K65: 680.28 | L65: 640.25 | M65: 595 | N65: 2605000 | O65: 14.19%
A66: 58 | B66: Capital_Goods | C66: CUMMINSIND | D66: 677.25 | E66: 671.62 | F66: 661.38 | G66: 645.52 | H66: 635.28 | I66: 687.48 | J66: 697.72 | K66: 713.58 | L66: 681.85 | M66: 655.75 | N66: 1166900 | O66: -0.83%
A67: 59 | B67: FMCG | C67: DABUR | D67: 417.30 | E67: 418.45 | F67: 411.05 | G67: 404.80 | H67: 397.40 | I67: 424.70 | J67: 432.10 | K67: 438.35 | L67: 425.85 | M67: 412.2 | N67: 16000000 | O67: 0.44%
A68: 60 | B68: Cement | C68: DALMIABHA | D68: 2164.90 | E68: 2193.37 | F68: 2096.73 | G68: 2028.57 | H68: 1931.93 | I68: 2261.53 | J68: 2358.17 | K68: 2426.33 | L68: 2290 | M68: 2125.2 | N68: 433500 | O68: 2.77%
A69: 61 | B69: Banking | C69: DCBBANK | D69: 145.40 | E69: 145.50 | F69: 143.00 | G69: 140.60 | H69: 138.10 | I69: 147.90 | J69: 150.40 | K69: 152.80 | L69: 148 | M69: 143.1 | N69: 5976000 | O69: 5.65%
A70: 62 | B70: Finance | C70: DHFL | D70: 298.60 | E70: 301.80 | F70: 288.20 | G70: 277.80 | H70: 264.20 | I70: 312.20 | J70: 325.80 | K70: 336.20 | L70: 315.4 | M70: 291.4 | N70: 13314000 | O70: -6.77%
A71: 63 | B71: Media | C71: DISHTV | D71: 55.40 | E71: 55.68 | F71: 53.62 | G71: 51.83 | H71: 49.77 | I71: 57.47 | J71: 59.53 | K71: 61.32 | L71: 57.75 | M71: 53.9 | N71: 36312000 | O71: 3.72%
A72: 64 | B72: Pharma | C72: DIVISLAB | D72: 1288.50 | E72: 1289.67 | F72: 1266.83 | G72: 1245.17 | H72: 1222.33 | I72: 1311.33 | J72: 1334.17 | K72: 1355.83 | L72: 1312.5 | M72: 1268 | N72: 2723200 | O72: 0.47%
A73: 65 | B73: Realty | C73: DLF | D73: 159.00 | E73: 156.33 | F73: 150.97 | G73: 142.93 | H73: 137.57 | I73: 164.37 | J73: 169.73 | K73: 177.77 | L73: 161.7 | M73: 148.3 | N73: 33905000 | O73: 4.58%
A74: 66 | B74: Pharma | C74: DRREDDY | D74: 2382.80 | E74: 2419.12 | F74: 2334.78 | G74: 2286.77 | H74: 2202.43 | I74: 2467.13 | J74: 2551.47 | K74: 2599.48 | L74: 2503.45 | M74: 2371.1 | N74: 4215750 | O74: -0.73%
A75: 67 | B75: Automobile | C75: EICHERMOT | D75: 21946.75 | E75: 21840.63 | F75: 20744.32 | G75: 19541.88 | H75: 18445.57 | I75: 23043.07 | J75: 24139.38 | K75: 25341.82 | L75: 22936.95 | M75: 20638.2 | N75: 307275 | O75: 11.15%
A76: 68 | B76: Infrastructure | C76: ENGINERSIN | D76: 112.35 | E76: 113.42 | F76: 109.18 | G76: 106.02 | H76: 101.78 | I76: 116.58 | J76: 120.82 | K76: 123.98 | L76: 117.65 | M76: 110.25 | N76: 10811500 | O76: -0.26%
A77: 69 | B77: Finance | C77: EQUITAS | D77: 113.60 | E77: 113.12 | F77: 110.28 | G77: 106.97 | H77: 104.13 | I77: 116.43 | J77: 119.27 | K77: 122.58 | L77: 115.95 | M77: 109.8 | N77: 15468000 | O77: -1.33%
A78: 70 | B78: Automobile | C78: ESCORTS | D78: 618.40 | E78: 617.32 | F78: 604.13 | G78: 589.87 | H78: 576.68 | I78: 631.58 | J78: 644.77 | K78: 659.03 | L78: 630.5 | M78: 603.05 | N78: 5457100 | O78: 0.22%
A79: 71 | B79: Automobile | C79: EXIDEIND | D79: 252.35 | E79: 253.23 | F79: 247.72 | G79: 243.08 | H79: 237.57 | I79: 257.87 | J79: 263.38 | K79: 268.02 | L79: 258.75 | M79: 248.6 | N79: 5672000 | O79: 10.95%
A80: 72 | B80: Banking | C80: FEDERALBNK | D80: 68.30 | E80: 68.50 | F80: 67.00 | G80: 65.70 | H80: 64.20 | I80: 69.80 | J80: 71.30 | K80: 72.60 | L80: 70 | M80: 67.2 | N80: 49142500 | O80: -2.82%
A81: 73 | B81: Oil_Gas | C81: GAIL | D81: 367.50 | E81: 369.52 | F81: 358.03 | G81: 348.57 | H81: 337.08 | I81: 378.98 | J81: 390.47 | K81: 399.93 | L81: 381 | M81: 360.05 | N81: 17860899 | O81: 0.31%
A82: 74 | B82: Pharma | C82: GLENMARK | D82: 602.40 | E82: 603.80 | F82: 579.65 | G82: 556.90 | H82: 532.75 | I82: 626.55 | J82: 650.70 | K82: 673.45 | L82: 627.95 | M82: 581.05 | N82: 3804000 | O82: 3.85%
A83: 75 | B83: Infrastructure | C83: GMRINFRA | D83: 16.25 | E83: 16.37 | F83: 15.88 | G83: 15.52 | H83: 15.03 | I83: 16.73 | J83: 17.22 | K83: 17.58 | L83: 16.85 | M83: 16 | N83: 188640000 | O83: -3.85%
A84: 76 | B84: Others | C84: GODFRYPHLP | D84: 710.10 | E84: 712.47 | F84: 692.43 | G84: 674.77 | H84: 654.73 | I84: 730.13 | J84: 750.17 | K84: 767.83 | L84: 732.5 | M84: 694.8 | N84: 627200 | O84: 0.67%
A85: 77 | B85: FMCG | C85: GODREJCP | D85: 724.90 | E85: 739.03 | F85: 706.07 | G85: 687.23 | H85: 654.27 | I85: 757.87 | J85: 790.83 | K85: 809.67 | L85: 772 | M85: 720.2 | N85: 4501200 | O85: 5.93%
A86: 78 | B86: FMCG | C86: GODREJIND | D86: 487.30 | E86: 492.28 | F86: 478.52 | G86: 469.73 | H86: 455.97 | I86: 501.07 | J86: 514.83 | K86: 523.62 | L86: 506.05 | M86: 483.5 | N86: 2124000 | O86: 2.61%
A87: 79 | B87: Pharma | C87: GRANULES | D87: 92.05 | E87: 93.27 | F87: 90.18 | G87: 88.32 | H87: 85.23 | I87: 95.13 | J87: 98.22 | K87: 100.08 | L87: 96.35 | M87: 91.4 | N87: 14135000 | O87: 1.14%
A88: 80 | B88: Cement | C88: GRASIM | D88: 961.60 | E88: 959.85 | F88: 942.70 | G88: 923.80 | H88: 906.65 | I88: 978.75 | J88: 995.90 | K88: 1014.80 | L88: 977 | M88: 940.95 | N88: 3763500 | O88: 4.35%
A89: 81 | B89: Others | C89: GSFC | D89: 94.60 | E89: 94.63 | F89: 92.57 | G89: 90.53 | H89: 88.47 | I89: 96.67 | J89: 98.73 | K89: 100.77 | L89: 96.7 | M89: 92.6 | N89: 13536000 | O89: 1.01%
A90: 82 | B90: Others | C90: HAVELLS | D90: 606.20 | E90: 605.67 | F90: 596.93 | G90: 587.67 | H90: 578.93 | I90: 614.93 | J90: 623.67 | K90: 632.93 | L90: 614.4 | M90: 596.4 | N90: 4131000 | O90: 1.15%
A91: 83 | B91: Others | C91: HCC | D91: 11.55 | E91: 11.43 | F91: 11.22 | G91: 10.88 | H91: 10.67 | I91: 11.77 | J91: 11.98 | K91: 12.32 | L91: 11.65 | M91: 11.1 | N91: 36864000 | O91: -1.87%
A92: 84 | B92: Technology | C92: HCLTECH | D92: 1083.60 | E92: 1083.62 | F92: 1068.53 | G92: 1053.47 | H92: 1038.38 | I92: 1098.68 | J92: 1113.77 | K92: 1128.83 | L92: 1098.7 | M92: 1068.55 | N92: 7319900 | O92: -3.43%
A93: 85 | B93: Finance | C93: HDFC | D93: 1782.75 | E93: 1778.95 | F93: 1755.95 | G93: 1729.15 | H93: 1706.15 | I93: 1805.75 | J93: 1828.75 | K93: 1855.55 | L93: 1801.95 | M93: 1752.15 | N93: 25642000 | O93: -0.36%
A94: 86 | B94: Banking | C94: HDFCBANK | D94: 1961.95 | E94: 1978.95 | F94: 1936.20 | G94: 1910.45 | H94: 1867.70 | I94: 2004.70 | J94: 2047.45 | K94: 2073.20 | L94: 2021.7 | M94: 1953.2 | N94: 13459000 | O94: -3.77%
A95: 88 | B95: Automobile | C95: HEROMOTOCO | D95: 2776.15 | E95: 2804.02 | F95: 2699.13 | G95: 2622.12 | H95: 2517.23 | I95: 2881.03 | J95: 2985.92 | K95: 3062.93 | L95: 2908.9 | M95: 2727 | N95: 1440400 | O95: 8.24%
A96: 89 | B96: Technology | C96: HEXAWARE | D96: 411.00 | E96: 416.48 | F96: 401.82 | G96: 392.63 | H96: 377.97 | I96: 425.67 | J96: 440.33 | K96: 449.52 | L96: 431.15 | M96: 407.3 | N96: 4308000 | O96: 0.53%
A97: 90 | B97: Metals | C97: HINDALCO | D97: 252.30 | E97: 254.63 | F97: 247.92 | G97: 243.53 | H97: 236.82 | I97: 259.02 | J97: 265.73 | K97: 270.12 | L97: 261.35 | M97: 250.25 | N97: 39907000 | O97: -3.44%
A98: 91 | B98: Oil_Gas | C98: HINDPETRO | D98: 226.05 | E98: 225.22 | F98: 194.83 | G98: 163.62 | H98: 133.23 | I98: 256.43 | J98: 286.82 | K98: 318.03 | L98: 255.6 | M98: 194 | N98: 25795350 | O98: 9.52%
A99: 92 | B99: FMCG | C99: HINDUNILVR | D99: 1567.05 | E99: 1574.10 | F99: 1551.20 | G99: 1535.35 | H99: 1512.45 | I99: 1589.95 | J99: 1612.85 | K99: 1628.70 | L99: 1597 | M99: 1558.25 | N99: 9104400 | O99: 0.68%
A100: 93 | B100: Metals | C100: HINDZINC | D100: 288.35 | E100: 288.98 | F100: 283.62 | G100: 278.88 | H100: 273.52 | I100: 293.72 | J100: 299.08 | K100: 303.82 | L100: 294.35 | M100: 284.25 | N100: 7987200 | O100: 4.44%
A101: 94 | B101: Finance | C101: IBULHSGFIN | D101: 952.05 | E101: 937.87 | F101: 914.13 | G101: 876.22 | H101: 852.48 | I101: 975.78 | J101: 999.52 | K101: 1037.43 | L101: 961.6 | M101: 899.95 | N101: 14735000 | O101: -5.28%
A102: 95 | B102: Banking | C102: ICICIBANK | D102: 317.15 | E102: 311.72 | F102: 301.93 | G102: 286.72 | H102: 276.93 | I102: 326.93 | J102: 336.72 | K102: 351.93 | L102: 321.5 | M102: 296.5 | N102: 105784250 | O102: 0.17%
A103: 96 | B103: Others | C103: ICICIPRULI | D103: 327.50 | E103: 324.00 | F103: 315.00 | G103: 302.50 | H103: 293.50 | I103: 336.50 | J103: 345.50 | K103: 358.00 | L103: 333 | M103: 311.5 | N103: 4704700 | O103: 0.75%
A104: 97 | B104: Banking | C104: IDBI | D104: 57.10 | E104: 56.48 | F104: 55.17 | G104: 53.23 | H104: 51.92 | I104: 58.42 | J104: 59.73 | K104: 61.67 | L104: 57.8 | M104: 54.55 | N104: 53590000 | O104: 0.85%
A105: 98 | B105: Telecom | C105: IDEA | D105: 33.95 | E105: 34.75 | F105: 32.20 | G105: 30.45 | H105: 27.90 | I105: 36.50 | J105: 39.05 | K105: 40.80 | L105: 37.3 | M105: 33 | N105: 154812000 | O105: 0.64%
A106: 99 | B106: Finance | C106: IDFC | D106: 40.20 | E106: 39.95 | F106: 39.20 | G106: 38.20 | H106: 37.45 | I106: 40.95 | J106: 41.70 | K106: 42.70 | L106: 40.7 | M106: 38.95 | N106: 117295200 | O106: -1.02%
A107: 100 | B107: Banking | C107: IDFCBANK | D107: 36.75 | E107: 36.82 | F107: 35.78 | G107: 34.82 | H107: 33.78 | I107: 37.78 | J107: 38.82 | K107: 39.78 | L107: 37.85 | M107: 35.85 | N107: 121726000 | O107: 2.24%
A108: 101 | B108: Finance | C108: IFCI | D108: 12.50 | E108: 12.58 | F108: 12.22 | G108: 11.93 | H108: 11.57 | I108: 12.87 | J108: 13.23 | K108: 13.52 | L108: 12.95 | M108: 12.3 | N108: 58625000 | O108: 0.09%
A109: 102 | B109: Oil_Gas | C109: IGL | D109: 236.50 | E109: 237.97 | F109: 232.43 | G109: 228.37 | H109: 222.83 | I109: 242.03 | J109: 247.57 | K109: 251.63 | L109: 243.5 | M109: 233.9 | N109: 4078250 | O109: 4.88%
A110: 103 | B110: Cement | C110: INDIACEM | D110: 99.75 | E110: 99.08 | F110: 96.67 | G110: 93.58 | H110: 91.17 | I110: 102.17 | J110: 104.58 | K110: 107.67 | L110: 101.5 | M110: 96 | N110: 18056500 | O110: -0.85%
A111: 104 | B111: Banking | C111: INDIANB | D111: 248.55 | E111: 249.20 | F111: 243.45 | G111: 238.35 | H111: 232.60 | I111: 254.30 | J111: 260.05 | K111: 265.15 | L111: 254.95 | M111: 244.1 | N111: 4828000 | O111: 0.67%
A112: 105 | B112: Others | C112: INDIGO | D112: 813.35 | E112: 805.78 | F112: 767.57 | G112: 721.78 | H112: 683.57 | I112: 851.57 | J112: 889.78 | K112: 935.57 | L112: 844 | M112: 760 | N112: 3324000 | O112: 3.63%
A113: 106 | B113: Banking | C113: INDUSINDBK | D113: 1598.30 | E113: 1598.07 | F113: 1559.08 | G113: 1519.87 | H113: 1480.88 | I113: 1637.28 | J113: 1676.27 | K113: 1715.48 | L113: 1637.05 | M113: 1558.85 | N113: 6943800 | O113: 0.77%
A114: 107 | B114: Technology | C114: INFIBEAM | D114: 58.40 | E114: 64.52 | F114: 51.28 | G114: 44.17 | H114: 30.93 | I114: 71.63 | J114: 84.87 | K114: 91.98 | L114: 77.75 | M114: 57.4 | N114: 23688000 | O114: 25.10%
A115: 108 | B115: Telecom | C115: INFRATEL | D115: 256.45 | E115: 254.23 | F115: 246.62 | G115: 236.78 | H115: 229.17 | I115: 264.07 | J115: 271.68 | K115: 281.52 | L115: 261.85 | M115: 244.4 | N115: 5819100 | O115: 6.27%
A116: 109 | B116: Technology | C116: INFY | D116: 706.70 | E116: 711.97 | F116: 694.93 | G116: 683.17 | H116: 666.13 | I116: 723.73 | J116: 740.77 | K116: 752.53 | L116: 729 | M116: 700.2 | N116: 26894400 | O116: 0.80%
A117: 110 | B117: Oil_Gas | C117: IOC | D117: 143.30 | E117: 143.38 | F117: 127.57 | G117: 111.83 | H117: 96.02 | I117: 159.12 | J117: 174.93 | K117: 190.67 | L117: 159.2 | M117: 127.65 | N117: 27126000 | O117: 8.18%
A118: 111 | B118: Infrastructure | C118: IRB | D118: 132.50 | E118: 134.40 | F118: 128.40 | G118: 124.30 | H118: 118.30 | I118: 138.50 | J118: 144.50 | K118: 148.60 | L118: 140.4 | M118: 130.3 | N118: 13575000 | O118: 2.63%
A119: 112 | B119: FMCG | C119: ITC | D119: 287.95 | E119: 290.27 | F119: 284.08 | G119: 280.22 | H119: 274.03 | I119: 294.13 | J119: 300.32 | K119: 304.18 | L119: 296.45 | M119: 286.4 | N119: 66535200 | O119: 1.36%
A120: 113 | B120: Others | C120: JETAIRWAYS | D120: 196.05 | E120: 189.32 | F120: 174.48 | G120: 152.92 | H120: 138.08 | I120: 210.88 | J120: 225.72 | K120: 247.28 | L120: 204.15 | M120: 167.75 | N120: 7471200 | O120: 2.30%
A121: 114 | B121: Metals | C121: JINDALSTEL | D121: 192.15 | E121: 189.83 | F121: 185.92 | G121: 179.68 | H121: 175.77 | I121: 196.07 | J121: 199.98 | K121: 206.22 | L121: 193.75 | M121: 183.6 | N121: 30584250 | O121: 1.80%
A122: 115 | B122: Others | C122: JISLJALEQS | D122: 66.70 | E122: 66.27 | F122: 64.73 | G122: 62.77 | H122: 61.23 | I122: 68.23 | J122: 69.77 | K122: 71.73 | L122: 67.8 | M122: 64.3 | N122: 37467000 | O122: 1.36%
A123: 116 | B123: Realty | C123: JPASSOCIAT | D123: 6.85 | E123: 6.93 | F123: 6.67 | G123: 6.48 | H123: 6.22 | I123: 7.12 | J123: 7.38 | K123: 7.57 | L123: 7.2 | M123: 6.75 | N123: 101320000 | O123: -0.43%
A124: 117 | B124: Metals | C124: JSWSTEEL | D124: 378.05 | E124: 379.65 | F124: 372.10 | G124: 366.15 | H124: 358.60 | I124: 385.60 | J124: 393.15 | K124: 399.10 | L124: 387.2 | M124: 373.7 | N124: 51465000 | O124: 2.08%
A125: 118 | B125: Others | C125: JUBLFOOD | D125: 1130.50 | E125: 1142.18 | F125: 1094.37 | G125: 1058.23 | H125: 1010.42 | I125: 1178.32 | J125: 1226.13 | K125: 1262.27 | L125: 1190 | M125: 1106.05 | N125: 3572000 | O125: -2.87%
A126: 119 | B126: Others | C126: JUSTDIAL | D126: 467.95 | E126: 464.00 | F126: 450.00 | G126: 432.05 | H126: 418.05 | I126: 481.95 | J126: 495.95 | K126: 513.90 | L126: 478 | M126: 446.05 | N126: 2469600 | O126: 0.46%
A127: 120 | B127: Others | C127: KAJARIACER | D127: 354.15 | E127: 358.22 | F127: 346.93 | G127: 339.72 | H127: 328.43 | I127: 365.43 | J127: 376.72 | K127: 383.93 | L127: 369.5 | M127: 351 | N127: 2496000 | O127: -1.73%
A128: 121 | B128: Banking | C128: KOTAKBANK | D128: 1076.05 | E128: 1077.97 | F128: 1058.58 | G128: 1041.12 | H128: 1021.73 | I128: 1095.43 | J128: 1114.82 | K128: 1132.28 | L128: 1097.35 | M128: 1060.5 | N128: 12802400 | O128: -3.61%
A129: 122 | B129: Technology | C129: KPIT | D129: 206.10 | E129: 208.97 | F129: 199.28 | G129: 192.47 | H129: 182.78 | I129: 215.78 | J129: 225.47 | K129: 232.28 | L129: 218.65 | M129: 202.15 | N129: 9792000 | O129: -0.41%
A130: 123 | B130: Others | C130: KSCL | D130: 517.95 | E130: 508.30 | F130: 482.65 | G130: 447.35 | H130: 421.70 | I130: 543.60 | J130: 569.25 | K130: 604.55 | L130: 533.95 | M130: 473 | N130: 1192500 | O130: 40.46%
A131: 124 | B131: Banking | C131: KTKBANK | D131: 98.40 | E131: 98.98 | F131: 96.72 | G131: 95.03 | H131: 92.77 | I131: 100.67 | J131: 102.93 | K131: 104.62 | L131: 101.25 | M131: 97.3 | N131: 16533000 | O131: 1.35%
A132: 125 | B132: Finance | C132: L&TFH | D132: 126.30 | E132: 126.65 | F132: 123.35 | G132: 120.40 | H132: 117.10 | I132: 129.60 | J132: 132.90 | K132: 135.85 | L132: 129.95 | M132: 123.7 | N132: 37656000 | O132: -4.79%
A133: 126 | B133: Finance | C133: LICHSGFIN | D133: 413.95 | E133: 412.80 | F133: 406.60 | G133: 399.25 | H133: 393.05 | I133: 420.15 | J133: 426.35 | K133: 433.70 | L133: 419 | M133: 405.45 | N133: 10249800 | O133: -3.38%
A134: 127 | B134: Capital_Goods | C134: LT | D134: 1253.85 | E134: 1259.83 | F134: 1234.87 | G134: 1215.88 | H134: 1190.92 | I134: 1278.82 | J134: 1303.78 | K134: 1322.77 | L134: 1284.8 | M134: 1240.85 | N134: 11268750 | O134: -1.58%
A135: 128 | B135: Pharma | C135: LUPIN | D135: 855.50 | E135: 865.40 | F135: 832.90 | G135: 810.30 | H135: 777.80 | I135: 888.00 | J135: 920.50 | K135: 943.10 | L135: 897.9 | M135: 842.8 | N135: 9863000 | O135: 2.68%
A136: 129 | B136: Automobile | C136: M&M | D136: 798.10 | E136: 787.53 | F136: 770.57 | G136: 743.03 | H136: 726.07 | I136: 815.07 | J136: 832.03 | K136: 859.57 | L136: 804.5 | M136: 760 | N136: 16118000 | O136: 1.93%
A137: 130 | B137: Finance | C137: M&MFIN | D137: 400.10 | E137: 396.90 | F137: 390.30 | G137: 380.50 | H137: 373.90 | I137: 406.70 | J137: 413.30 | K137: 423.10 | L137: 403.5 | M137: 387.1 | N137: 11325000 | O137: 1.33%
A138: 131 | B138: Others | C138: MANAPPURAM | D138: 73.30 | E138: 73.62 | F138: 71.88 | G138: 70.47 | H138: 68.73 | I138: 75.03 | J138: 76.77 | K138: 78.18 | L138: 75.35 | M138: 72.2 | N138: 20382000 | O138: 1.62%
A139: 132 | B139: FMCG | C139: MARICO | D139: 314.85 | E139: 318.17 | F139: 309.33 | G139: 303.82 | H139: 294.98 | I139: 323.68 | J139: 332.52 | K139: 338.03 | L139: 327 | M139: 312.65 | N139: 9526400 | O139: 11.78%
A140: 133 | B140: Automobile | C140: MARUTI | D140: 7221.30 | E140: 7193.85 | F140: 7069.70 | G140: 6918.10 | H140: 6793.95 | I140: 7345.45 | J140: 7469.60 | K140: 7621.20 | L140: 7318 | M140: 7042.25 | N140: 3199275 | O140: 0.10%
A141: 134 | B141: FMCG | C141: MCDOWELL-N | D141: 492.00 | E141: 493.92 | F141: 483.83 | G141: 475.67 | H141: 465.58 | I141: 502.08 | J141: 512.17 | K141: 520.33 | L141: 504 | M141: 485.75 | N141: 10818750 | O141: -1.78%
A142: 135 | B142: Others | C142: MCX | D142: 696.90 | E142: 696.27 | F142: 679.23 | G142: 661.57 | H142: 644.53 | I142: 713.93 | J142: 730.97 | K142: 748.63 | L142: 713.3 | M142: 678.6 | N142: 4325300 | O142: 0.24%
A143: 136 | B143: Finance | C143: MFSL | D143: 360.20 | E143: 372.55 | F143: 339.10 | G143: 318.00 | H143: 284.55 | I143: 393.65 | J143: 427.10 | K143: 448.20 | L143: 406 | M143: 351.45 | N143: 2720400 | O143: 9.84%
A144: 137 | B144: Others | C144: MGL | D144: 793.85 | E144: 798.58 | F144: 782.37 | G144: 770.88 | H144: 754.67 | I144: 810.07 | J144: 826.28 | K144: 837.77 | L144: 814.8 | M144: 787.1 | N144: 2170200 | O144: -1.95%
A145: 138 | B145: Technology | C145: MINDTREE | D145: 1064.05 | E145: 1066.60 | F145: 1048.20 | G145: 1032.35 | H145: 1013.95 | I145: 1082.45 | J145: 1100.85 | K145: 1116.70 | L145: 1085 | M145: 1050.75 | N145: 4279200 | O145: -1.19%
A146: 139 | B146: Automobile | C146: MOTHERSUMI | D146: 242.80 | E146: 242.67 | F146: 237.53 | G146: 232.27 | H146: 227.13 | I146: 247.93 | J146: 253.07 | K146: 258.33 | L146: 247.8 | M146: 237.4 | N146: 16612800 | O146: 1.01%
A147: 140 | B147: Automobile | C147: MRF | D147: 61804.80 | E147: 62102.32 | F147: 61109.68 | G147: 60414.57 | H147: 59421.93 | I147: 62797.43 | J147: 63790.07 | K147: 64485.18 | L147: 63094.95 | M147: 61407.2 | N147: 28190 | O147: -0.46%
A148: 141 | B148: Others | C148: MRPL | D148: 70.20 | E148: 70.27 | F148: 68.53 | G148: 66.87 | H148: 65.13 | I148: 71.93 | J148: 73.67 | K148: 75.33 | L148: 72 | M148: 68.6 | N148: 5913000 | O148: 1.39%
A149: 142 | B149: Finance | C149: MUTHOOTFIN | D149: 397.55 | E149: 398.75 | F149: 390.00 | G149: 382.45 | H149: 373.70 | I149: 406.30 | J149: 415.05 | K149: 422.60 | L149: 407.5 | M149: 391.2 | N149: 2343000 | O149: -1.76%
A150: 143 | B150: Others | C150: NATIONALUM | D150: 69.40 | E150: 69.93 | F150: 68.12 | G150: 66.83 | H150: 65.02 | I150: 71.22 | J150: 73.03 | K150: 74.32 | L150: 71.75 | M150: 68.65 | N150: 49736000 | O150: -1.69%
A151: 144 | B151: Others | C151: NBCC | D151: 56.85 | E151: 57.10 | F151: 55.50 | G151: 54.15 | H151: 52.55 | I151: 58.45 | J151: 60.05 | K151: 61.40 | L151: 58.7 | M151: 55.75 | N151: 22428000 | O151: -0.19%
A152: 145 | B152: Infrastructure | C152: NCC | D152: 75.00 | E152: 75.02 | F152: 72.03 | G152: 69.07 | H152: 66.08 | I152: 77.98 | J152: 80.97 | K152: 83.93 | L152: 78 | M152: 72.05 | N152: 44848000 | O152: -2.79%
A153: 146 | B153: Others | C153: NESTLEIND | D153: 9373.30 | E153: 9330.25 | F153: 9193.25 | G153: 9013.20 | H153: 8876.20 | I153: 9510.30 | J153: 9647.30 | K153: 9827.35 | L153: 9467.25 | M153: 9150.2 | N153: 359900 | O153: 0.64%
A154: 147 | B154: Power | C154: NHPC | D154: 24.15 | E154: 23.73 | F154: 23.22 | G154: 22.28 | H154: 21.77 | I154: 24.67 | J154: 25.18 | K154: 26.12 | L154: 24.25 | M154: 22.8 | N154: 21924000 | O154: -0.98%
A155: 148 | B155: Technology | C155: NIITTECH | D155: 1198.20 | E155: 1189.52 | F155: 1166.83 | G155: 1135.47 | H155: 1112.78 | I155: 1220.88 | J155: 1243.57 | K155: 1274.93 | L155: 1212.2 | M155: 1158.15 | N155: 1422000 | O155: -7.60%
A156: 149 | B156: Metals | C156: NMDC | D156: 115.40 | E156: 115.07 | F156: 112.98 | G156: 110.57 | H156: 108.48 | I156: 117.48 | J156: 119.57 | K156: 121.98 | L156: 117.15 | M156: 112.65 | N156: 21438000 | O156: 0.28%
A157: 150 | B157: Power | C157: NTPC | D157: 167.80 | E157: 167.52 | F157: 165.63 | G157: 163.47 | H157: 161.58 | I157: 169.68 | J157: 171.57 | K157: 173.73 | L157: 169.4 | M157: 165.35 | N157: 33916000 | O157: -1.40%
A158: 151 | B158: Technology | C158: OFSS | D158: 3979.80 | E158: 3989.82 | F158: 3947.93 | G158: 3916.07 | H158: 3874.18 | I158: 4021.68 | J158: 4063.57 | K158: 4095.43 | L158: 4031.7 | M158: 3957.95 | N158: 340050 | O158: 0.00%
A159: 152 | B159: Oil_Gas | C159: OIL | D159: 210.00 | E159: 209.85 | F159: 199.85 | G159: 189.70 | H159: 179.70 | I159: 220.00 | J159: 230.00 | K159: 240.15 | L159: 219.85 | M159: 199.7 | N159: 3116883 | O159: -5.27%
A160: 153 | B160: Oil_Gas | C160: ONGC | D160: 174.25 | E160: 173.85 | F160: 164.35 | G160: 154.45 | H160: 144.95 | I160: 183.75 | J160: 193.25 | K160: 203.15 | L160: 183.35 | M160: 163.95 | N160: 47088750 | O160: 2.83%
A161: 154 | B161: Banking | C161: ORIENTBANK | D161: 63.40 | E161: 63.82 | F161: 61.93 | G161: 60.47 | H161: 58.58 | I161: 65.28 | J161: 67.17 | K161: 68.63 | L161: 65.7 | M161: 62.35 | N161: 12720000 | O161: 7.18%
A162: 155 | B162: Textile | C162: PAGEIND | D162: 30681.35 | E162: 30730.87 | F162: 29761.78 | G162: 28842.22 | H162: 27873.13 | I162: 31650.43 | J162: 32619.52 | K162: 33539.08 | L162: 31699.95 | M162: 29811.3 | N162: 134975 | O162: 1.09%
A163: 156 | B163: Others | C163: PCJEWELLER | D163: 56.60 | E163: 55.88 | F163: 53.62 | G163: 50.63 | H163: 48.37 | I163: 58.87 | J163: 61.13 | K163: 64.12 | L163: 58.15 | M163: 52.9 | N163: 9213000 | O163: -0.89%
A164: 157 | B164: Pharma | C164: PEL | D164: 2297.15 | E164: 2290.63 | F164: 2236.57 | G164: 2175.98 | H164: 2121.92 | I164: 2351.22 | J164: 2405.28 | K164: 2465.87 | L164: 2344.7 | M164: 2230.05 | N164: 3717922 | O164: -1.16%
A165: 158 | B165: Oil_Gas | C165: PETRONET | D165: 216.45 | E165: 216.38 | F165: 210.82 | G165: 205.18 | H165: 199.62 | I165: 222.02 | J165: 227.58 | K165: 233.22 | L165: 221.95 | M165: 210.75 | N165: 13407000 | O165: 5.00%
A166: 159 | B166: Finance | C166: PFC | D166: 78.40 | E166: 78.53 | F166: 76.92 | G166: 75.43 | H166: 73.82 | I166: 80.02 | J166: 81.63 | K166: 83.12 | L166: 80.15 | M166: 77.05 | N166: 80712000 | O166: 0.63%
A167: 160 | B167: FMCG | C167: PIDILITIND | D167: 972.75 | E167: 981.37 | F167: 954.73 | G167: 936.72 | H167: 910.08 | I167: 999.38 | J167: 1026.02 | K167: 1044.03 | L167: 1008 | M167: 963.35 | N167: 3258000 | O167: 1.15%
A168: 161 | B168: Banking | C168: PNB | D168: 65.00 | E168: 64.62 | F168: 63.43 | G168: 61.87 | H168: 60.68 | I168: 66.18 | J168: 67.37 | K168: 68.93 | L168: 65.8 | M168: 63.05 | N168: 113047000 | O168: -1.33%
A169: 162 | B169: Power | C169: POWERGRID | D169: 189.70 | E169: 188.83 | F169: 186.67 | G169: 183.63 | H169: 181.47 | I169: 191.87 | J169: 194.03 | K169: 197.07 | L169: 191 | M169: 185.8 | N169: 41692000 | O169: 0.06%
A170: 163 | B170: Power | C170: PTC | D170: 68.75 | E170: 69.30 | F170: 67.10 | G170: 65.45 | H170: 63.25 | I170: 70.95 | J170: 73.15 | K170: 74.80 | L170: 71.5 | M170: 67.65 | N170: 9976000 | O170: 0.40%
A171: 164 | B171: Others | C171: PVR | D171: 1203.80 | E171: 1215.73 | F171: 1185.07 | G171: 1166.33 | H171: 1135.67 | I171: 1234.47 | J171: 1265.13 | K171: 1283.87 | L171: 1246.4 | M171: 1197 | N171: 1044400 | O171: 1.75%
A172: 165 | B172: Cement | C172: RAMCOCEM | D172: 634.60 | E172: 629.07 | F172: 619.03 | G172: 603.47 | H172: 593.43 | I172: 644.63 | J172: 654.67 | K172: 670.23 | L172: 639.1 | M172: 613.5 | N172: 824800 | O172: 1.78%
A173: 166 | B173: Others | C173: RAYMOND | D173: 659.95 | E173: 662.48 | F173: 647.47 | G173: 634.98 | H173: 619.97 | I173: 674.97 | J173: 689.98 | K173: 702.47 | L173: 677.5 | M173: 650 | N173: 4904800 | O173: -0.57%
A174: 167 | B174: Banking | C174: RBLBANK | D174: 508.05 | E174: 511.23 | F174: 500.92 | G174: 493.78 | H174: 483.47 | I174: 518.37 | J174: 528.68 | K174: 535.82 | L174: 521.55 | M174: 504.1 | N174: 4716000 | O174: -1.26%
A175: 168 | B175: Telecom | C175: RCOM | D175: 11.90 | E175: 12.03 | F175: 11.47 | G175: 11.03 | H175: 10.47 | I175: 12.47 | J175: 13.03 | K175: 13.47 | L175: 12.6 | M175: 11.6 | N175: 95144000 | O175: 0.09%
A176: 169 | B176: Power | C176: RECLTD | D176: 104.10 | E176: 104.10 | F176: 102.15 | G176: 100.20 | H176: 98.25 | I176: 106.05 | J176: 108.00 | K176: 109.95 | L176: 106.05 | M176: 102.15 | N176: 38160000 | O176: -2.15%
A177: 170 | B177: Finance | C177: RELCAPITAL | D177: 270.90 | E177: 271.85 | F177: 262.40 | G177: 253.90 | H177: 244.45 | I177: 280.35 | J177: 289.80 | K177: 298.30 | L177: 281.3 | M177: 263.35 | N177: 10924500 | O177: 1.41%
A178: 171 | B178: Oil_Gas | C178: RELIANCE | D178: 1125.25 | E178: 1164.15 | F178: 1072.35 | G178: 1019.45 | H178: 927.65 | I178: 1217.05 | J178: 1308.85 | K178: 1361.75 | L178: 1255.95 | M178: 1111.25 | N178: 46573000 | O178: 3.94%
A179: 172 | B179: Power | C179: RELINFRA | D179: 297.60 | E179: 299.07 | F179: 290.38 | G179: 283.17 | H179: 274.48 | I179: 306.28 | J179: 314.97 | K179: 322.18 | L179: 307.75 | M179: 291.85 | N179: 8544900 | O179: 1.28%
A180: 173 | B180: Others | C180: REPCOHOME | D180: 404.75 | E180: 405.93 | F180: 396.07 | G180: 387.38 | H180: 377.52 | I180: 414.62 | J180: 424.48 | K180: 433.17 | L180: 415.8 | M180: 397.25 | N180: 587700 | O180: 0.93%
A181: 174 | B181: Power | C181: RPOWER | D181: 27.40 | E181: 27.02 | F181: 26.43 | G181: 25.47 | H181: 24.88 | I181: 27.98 | J181: 28.57 | K181: 29.53 | L181: 27.6 | M181: 26.05 | N181: 44356000 | O181: -2.04%
A182: 175 | B182: Metals | C182: SAIL | D182: 69.50 | E182: 69.67 | F182: 67.98 | G182: 66.47 | H182: 64.78 | I182: 71.18 | J182: 72.87 | K182: 74.38 | L182: 71.35 | M182: 68.15 | N182: 73308000 | O182: -0.91%
A183: 176 | B183: Banking | C183: SBIN | D183: 271.60 | E183: 270.65 | F183: 267.50 | G183: 263.40 | H183: 260.25 | I183: 274.75 | J183: 277.90 | K183: 282.00 | L183: 273.8 | M183: 266.55 | N183: 83583000 | O183: -0.18%
A184: 177 | B184: Cement | C184: SHREECEM | D184: 16487.75 | E184: 16432.92 | F184: 16065.88 | G184: 15644.02 | H184: 15276.98 | I184: 16854.78 | J184: 17221.82 | K184: 17643.68 | L184: 16799.95 | M184: 16011.05 | N184: 98700 | O184: -1.79%
A185: 178 | B185: Capital_Goods | C185: SIEMENS | D185: 964.30 | E185: 961.80 | F185: 943.00 | G185: 921.70 | H185: 902.90 | I185: 983.10 | J185: 1001.90 | K185: 1023.20 | L185: 980.6 | M185: 940.5 | N185: 1299500 | O185: -1.18%
A186: 179 | B186: Banking | C186: SOUTHBANK | D186: 14.35 | E186: 14.28 | F186: 13.97 | G186: 13.58 | H186: 13.27 | I186: 14.67 | J186: 14.98 | K186: 15.37 | L186: 14.6 | M186: 13.9 | N186: 127857978 | O186: -0.26%
A187: 180 | B187: Others | C187: SREINFRA | D187: 34.65 | E187: 34.68 | F187: 33.57 | G187: 32.48 | H187: 31.37 | I187: 35.77 | J187: 36.88 | K187: 37.97 | L187: 35.8 | M187: 33.6 | N187: 15358000 | O187: 0.60%
A188: 181 | B188: Textile | C188: SRF | D188: 1744.55 | E188: 1737.88 | F188: 1704.27 | G188: 1663.98 | H188: 1630.37 | I188: 1778.17 | J188: 1811.78 | K188: 1852.07 | L188: 1771.5 | M188: 1697.6 | N188: 655000 | O188: -9.28%
A189: 182 | B189: Finance | C189: SRTRANSFIN | D189: 1098.00 | E189: 1097.37 | F189: 1063.23 | G189: 1028.47 | H189: 994.33 | I189: 1132.13 | J189: 1166.27 | K189: 1201.03 | L189: 1131.5 | M189: 1062.6 | N189: 4572600 | O189: -6.04%
A190: 183 | B190: Pharma | C190: STAR | D190: 425.75 | E190: 431.67 | F190: 414.68 | G190: 403.62 | H190: 386.63 | I190: 442.73 | J190: 459.72 | K190: 470.78 | L190: 448.65 | M190: 420.6 | N190: 4737600 | O190: -1.84%
A191: 184 | B191: Pharma | C191: SUNPHARMA | D191: 602.50 | E191: 606.50 | F191: 589.40 | G191: 576.30 | H191: 559.20 | I191: 619.60 | J191: 636.70 | K191: 649.80 | L191: 623.6 | M191: 593.4 | N191: 31443500 | O191: 0.19%
A192: 185 | B192: Media | C192: SUNTV | D192: 639.25 | E192: 633.88 | F192: 623.77 | G192: 608.28 | H192: 598.17 | I192: 649.37 | J192: 659.48 | K192: 674.97 | L192: 644 | M192: 618.4 | N192: 6618000 | O192: -1.33%
A193: 186 | B193: Power | C193: SUZLON | D193: 5.75 | E193: 5.75 | F193: 5.60 | G193: 5.45 | H193: 5.30 | I193: 5.90 | J193: 6.05 | K193: 6.20 | L193: 5.9 | M193: 5.6 | N193: 318060000 | O193: 1.42%
A194: 187 | B194: Banking | C194: SYNDIBANK | D194: 32.40 | E194: 32.35 | F194: 31.55 | G194: 30.70 | H194: 29.90 | I194: 33.20 | J194: 34.00 | K194: 34.85 | L194: 33.15 | M194: 31.5 | N194: 25173000 | O194: 0.18%
A195: 188 | B195: Fertilisers | C195: TATACHEM | D195: 662.40 | E195: 662.72 | F195: 651.43 | G195: 640.47 | H195: 629.18 | I195: 673.68 | J195: 684.97 | K195: 695.93 | L195: 674 | M195: 651.75 | N195: 3092250 | O195: 0.34%
A196: 189 | B196: Telecom | C196: TATACOMM | D196: 481.90 | E196: 481.97 | F196: 471.28 | G196: 460.67 | H196: 449.98 | I196: 492.58 | J196: 503.27 | K196: 513.88 | L196: 492.65 | M196: 471.35 | N196: 2950400 | O196: -1.99%
A197: 190 | B197: Technology | C197: TATAELXSI | D197: 1155.50 | E197: 1165.05 | F197: 1135.45 | G197: 1115.40 | H197: 1085.80 | I197: 1185.10 | J197: 1214.70 | K197: 1234.75 | L197: 1194.65 | M197: 1145 | N197: 1860800 | O197: 2.38%
A198: 191 | B198: FMCG | C198: TATAGLOBAL | D198: 219.05 | E198: 221.52 | F198: 215.03 | G198: 211.02 | H198: 204.53 | I198: 225.53 | J198: 232.02 | K198: 236.03 | L198: 228 | M198: 217.5 | N198: 11918250 | O198: 3.64%
A199: 192 | B199: Automobile | C199: TATAMOTORS | D199: 224.50 | E199: 226.60 | F199: 221.00 | G199: 217.50 | H199: 211.90 | I199: 230.10 | J199: 235.70 | K199: 239.20 | L199: 232.2 | M199: 223.1 | N199: 76300500 | O199: 1.21%
A200: 193 | B200: Automobile | C200: TATAMTRDVR | D200: 121.00 | E200: 120.98 | F200: 118.22 | G200: 115.43 | H200: 112.67 | I200: 123.77 | J200: 126.53 | K200: 129.32 | L200: 123.75 | M200: 118.2 | N200: 30786000 | O200: -2.65%
A201: 194 | B201: Power | C201: TATAPOWER | D201: 67.10 | E201: 67.15 | F201: 66.10 | G201: 65.10 | H201: 64.05 | I201: 68.15 | J201: 69.20 | K201: 70.20 | L201: 68.2 | M201: 66.15 | N201: 43659000 | O201: 0.79%
A202: 195 | B202: Metals | C202: TATASTEEL | D202: 584.05 | E202: 581.75 | F202: 574.00 | G202: 563.95 | H202: 556.20 | I202: 591.80 | J202: 599.55 | K202: 609.60 | L202: 589.5 | M202: 571.7 | N202: 33140335 | O202: -1.32%
A203: 196 | B203: Technology | C203: TCS | D203: 2075.70 | E203: 2103.42 | F203: 2042.48 | G203: 2009.27 | H203: 1948.33 | I203: 2136.63 | J203: 2197.57 | K203: 2230.78 | L203: 2164.35 | M203: 2070.2 | N203: 8214000 | O203: 2.63%
A204: 197 | B204: Technology | C204: TECHM | D204: 722.90 | E204: 729.20 | F204: 710.85 | G204: 698.80 | H204: 680.45 | I204: 741.25 | J204: 759.60 | K204: 771.65 | L204: 747.55 | M204: 717.15 | N204: 14907600 | O204: 0.46%
A205: 198 | B205: FMCG | C205: TITAN | D205: 778.90 | E205: 780.57 | F205: 761.33 | G205: 743.77 | H205: 724.53 | I205: 798.13 | J205: 817.37 | K205: 834.93 | L205: 799.8 | M205: 763 | N205: 14215500 | O205: 1.66%
A206: 199 | B206: Pharma | C206: TORNTPHARM | D206: 1637.30 | E206: 1632.88 | F206: 1610.82 | G206: 1584.33 | H206: 1562.27 | I206: 1659.37 | J206: 1681.43 | K206: 1707.92 | L206: 1654.95 | M206: 1606.4 | N206: 542000 | O206: -6.95%
... 33 more rows

Sheet Cash Intra
M5: Back to Main Page
A6: FOR INTRA DAY TRADING | K6: =Main!B10 -> 2018-10-05
A8: Sr.no | B8: Scrip | C8: CLOSE RATE | D8: Pivot Point | E8: Supports | H8: Resistances
C9: Point | E9: S1 | F9: S2 | G9: S3 | H9: R1 | I9: R2 | J9: R3 | K9: HIGH | L9: LOW | M9: Total Trade Quanity in Lakhs
A10: 1 | B10: Nifty 50 | C10: 10599.25 | D10: 10633.73 | E10: 10512.77 | F10: 10426.28 | G10: 10305.32 | H10: 10720.22 | I10: 10841.18 | J10: 10927.67 | K10: 10754.7 | L10: 10547.25
A11: 2 | B11: Nifty Bank | C11: 24819.3 | D11: 24737.92 | E11: 24582.43 | F11: 24345.57 | G11: 24190.08 | H11: 24974.78 | I11: 25130.27 | J11: 25367.13 | K11: 24893.4 | L11: 24501.05
A12: 3 | B12: Nifty CPSE | C12: 2232.1 | D12: 2236.92 | E12: 2149.73 | F12: 2067.37 | G12: 1980.18 | H12: 2319.28 | I12: 2406.47 | J12: 2488.83 | K12: 2324.1 | L12: 2154.55
A13: 4 | B13: Nifty Infra | C13: 2919.7 | D13: 2929.65 | E13: 2892.05 | F13: 2864.40 | G13: 2826.80 | H13: 2957.30 | I13: 2994.90 | J13: 3022.55 | K13: 2967.25 | L13: 2902
A14: 5 | B14: Nifty IT | C14: 15441.1 | D14: 15560.07 | E14: 15284.93 | F14: 15128.77 | G14: 14853.63 | H14: 15716.23 | I14: 15991.37 | J14: 16147.53 | K14: 15835.2 | L14: 15403.9
A15: 6 | B15: Nifty PSE | C15: 3486.45 | D15: 3500.25 | E15: 3382.65 | F15: 3278.85 | G15: 3161.25 | H15: 3604.05 | I15: 3721.65 | J15: 3825.45 | K15: 3617.85 | L15: 3396.45
A16: 7 | B16: Nifty Midcap 50 | C16: 4553.3 | D16: 4560.77 | E16: 4496.83 | F16: 4440.37 | G16: 4376.43 | H16: 4617.23 | I16: 4681.17 | J16: 4737.63 | K16: 4624.7 | L16: 4504.3
A17: 8 | B17: ABB | C17: 1382.9 | D17: 1393.30 | E17: 1366.60 | F17: 1350.30 | G17: 1323.60 | H17: 1409.60 | I17: 1436.30 | J17: 1452.60 | K17: 1420 | L17: 1377 | M17: 0.54211
A18: 9 | B18: ACC | C18: 1527.9 | D18: 1508.38 | E18: 1481.52 | F18: 1435.13 | G18: 1408.27 | H18: 1554.77 | I18: 1581.63 | J18: 1628.02 | K18: 1535.25 | L18: 1462 | M18: 9.63587
A19: 10 | B19: AIAENG | C19: 1703 | D19: 1710.25 | E19: 1685.75 | F19: 1668.50 | G19: 1644.00 | H19: 1727.50 | I19: 1752.00 | J19: 1769.25 | K19: 1734.75 | L19: 1693 | M19: 1.01219
A20: 11 | B20: AUBANK | C20: 555.7 | D20: 558.57 | E20: 547.13 | F20: 538.57 | G20: 527.13 | H20: 567.13 | I20: 578.57 | J20: 587.13 | K20: 570 | L20: 550 | M20: 3.26917
A21: 12 | B21: ADANIENT | C21: 132.95 | D21: 131.42 | E21: 128.53 | F21: 124.12 | G21: 121.23 | H21: 135.83 | I21: 138.72 | J21: 143.13 | K21: 134.3 | L21: 127 | M21: 71.84987
A22: 13 | B22: ADANIPORTS | C22: 317.05 | D22: 320.15 | E22: 310.90 | F22: 304.75 | G22: 295.50 | H22: 326.30 | I22: 335.55 | J22: 341.70 | K22: 329.4 | L22: 314 | M22: 45.08937
A23: 14 | B23: ADANIPOWER | C23: 24.35 | D23: 24.62 | E23: 23.53 | F23: 22.72 | G23: 21.63 | H23: 25.43 | I23: 26.52 | J23: 27.33 | K23: 25.7 | L23: 23.8 | M23: 211.49699
A24: 15 | B24: ABFRL | C24: 182.55 | D24: 181.18 | E24: 176.37 | F24: 170.18 | G24: 165.37 | H24: 187.37 | I24: 192.18 | J24: 198.37 | K24: 186 | L24: 175 | M24: 5.31009
A25: 16 | B25: AJANTPHARM | C25: 1005.35 | D25: 1015.80 | E25: 988.55 | F25: 971.75 | G25: 944.50 | H25: 1032.60 | I25: 1059.85 | J25: 1076.65 | K25: 1043.05 | L25: 999 | M25: 3.13168
A26: 17 | B26: ALKEM | C26: 2043 | D26: 2038.40 | E26: 2014.60 | F26: 1986.20 | G26: 1962.40 | H26: 2066.80 | I26: 2090.60 | J26: 2119.00 | K26: 2062.2 | L26: 2010 | M26: 0.11593
A27: 18 | B27: AMARAJABAT | C27: 729.25 | D27: 731.77 | E27: 717.63 | F27: 706.02 | G27: 691.88 | H27: 743.38 | I27: 757.52 | J27: 769.13 | K27: 745.9 | L27: 720.15 | M27: 5.68427
A28: 19 | B28: AMBUJACEM | C28: 213.7 | D28: 212.47 | E28: 208.48 | F28: 203.27 | G28: 199.28 | H28: 217.68 | I28: 221.67 | J28: 226.88 | K28: 216.45 | L28: 207.25 | M28: 47.56385
A29: 20 | B29: APOLLOHOSP | C29: 1047.2 | D29: 1050.65 | E29: 1031.75 | F29: 1016.30 | G29: 997.40 | H29: 1066.10 | I29: 1085.00 | J29: 1100.45 | K29: 1069.55 | L29: 1035.2 | M29: 4.20704
A30: 21 | B30: APOLLOTYRE | C30: 203.3 | D30: 202.42 | E30: 199.38 | F30: 195.47 | G30: 192.43 | H30: 206.33 | I30: 209.37 | J30: 213.28 | K30: 205.45 | L30: 198.5 | M30: 29.91297
A31: 22 | B31: ARVIND | C31: 317 | D31: 314.68 | E31: 308.77 | F31: 300.53 | G31: 294.62 | H31: 322.92 | I31: 328.83 | J31: 337.07 | K31: 320.6 | L31: 306.45 | M31: 10.96335
A32: 23 | B32: ASHOKLEY | C32: 118.05 | D32: 117.75 | E32: 115.50 | F32: 112.95 | G32: 110.70 | H32: 120.30 | I32: 122.55 | J32: 125.10 | K32: 120 | L32: 115.2 | M32: 188.20134
A33: 24 | B33: ASIANPAINT | C33: 1224.7 | D33: 1225.97 | E33: 1212.73 | F33: 1200.77 | G33: 1187.53 | H33: 1237.93 | I33: 1251.17 | J33: 1263.13 | K33: 1239.2 | L33: 1214 | M33: 15.57441
A34: 25 | B34: AUROPHARMA | C34: 757.05 | D34: 755.05 | E34: 738.20 | F34: 719.35 | G34: 702.50 | H34: 773.90 | I34: 790.75 | J34: 809.60 | K34: 771.9 | L34: 736.2 | M34: 36.52071
A35: 26 | B35: DMART | C35: 1346.35 | D35: 1318.85 | E35: 1267.70 | F35: 1189.05 | G35: 1137.90 | H35: 1397.50 | I35: 1448.65 | J35: 1527.30 | K35: 1370 | L35: 1240.2 | M35: 15.69172
A36: 27 | B36: AXISBANK | C36: 586.25 | D36: 576.87 | E36: 563.18 | F36: 540.12 | G36: 526.43 | H36: 599.93 | I36: 613.62 | J36: 636.68 | K36: 590.55 | L36: 553.8 | M36: 168.77024
A37: 28 | B37: BAJAJ-AUTO | C37: 2657 | D37: 2667.58 | E37: 2615.67 | F37: 2574.33 | G37: 2522.42 | H37: 2708.92 | I37: 2760.83 | J37: 2802.17 | K37: 2719.5 | L37: 2626.25 | M37: 6.38156
A38: 29 | B38: BAJFINANCE | C38: 2179.15 | D38: 2169.90 | E38: 2127.80 | F38: 2076.45 | G38: 2034.35 | H38: 2221.25 | I38: 2263.35 | J38: 2314.70 | K38: 2212 | L38: 2118.55 | M38: 40.02718
A39: 30 | B39: BAJAJFINSV | C39: 5632.1 | D39: 5628.95 | E39: 5527.90 | F39: 5423.70 | G39: 5322.65 | H39: 5733.15 | I39: 5834.20 | J39: 5938.40 | K39: 5730 | L39: 5524.75 | M39: 2.09825
A40: 31 | B40: BALKRISIND | C40: 1046.4 | D40: 1046.62 | E40: 1016.78 | F40: 987.17 | G40: 957.33 | H40: 1076.23 | I40: 1106.07 | J40: 1135.68 | K40: 1076.45 | L40: 1017 | M40: 6.98017
A41: 32 | B41: BANKBARODA | C41: 103.35 | D41: 103.02 | E41: 100.68 | F41: 98.02 | G41: 95.68 | H41: 105.68 | I41: 108.02 | J41: 110.68 | K41: 105.35 | L41: 100.35 | M41: 224.01811
A42: 33 | B42: BANKINDIA | C42: 79.1 | D42: 79.28 | E42: 76.92 | F42: 74.73 | G42: 72.37 | H42: 81.47 | I42: 83.83 | J42: 86.02 | K42: 81.65 | L42: 77.1 | M42: 79.2736
A43: 34 | B43: BATAINDIA | C43: 867.85 | D43: 879.12 | E43: 850.23 | F43: 832.62 | G43: 803.73 | H43: 896.73 | I43: 925.62 | J43: 943.23 | K43: 908 | L43: 861.5 | M43: 18.19895
A44: 35 | B44: BERGEPAINT | C44: 273.25 | D44: 275.25 | E44: 268.00 | F44: 262.75 | G44: 255.50 | H44: 280.50 | I44: 287.75 | J44: 293.00 | K44: 282.5 | L44: 270 | M44: 9.12596
A45: 36 | B45: BEL | C45: 82.25 | D45: 82.08 | E45: 80.67 | F45: 79.08 | G45: 77.67 | H45: 83.67 | I45: 85.08 | J45: 86.67 | K45: 83.5 | L45: 80.5 | M45: 81.60811
A46: 37 | B46: BHARATFIN | C46: 989.65 | D46: 988.27 | E46: 965.53 | F46: 941.42 | G46: 918.68 | H46: 1012.38 | I46: 1035.12 | J46: 1059.23 | K46: 1011 | L46: 964.15 | M46: 14.77707
A47: 38 | B47: BHARATFORG | C47: 591.65 | D47: 592.60 | E47: 585.20 | F47: 578.75 | G47: 571.35 | H47: 599.05 | I47: 606.45 | J47: 612.90 | K47: 600 | L47: 586.15 | M47: 7.99249
A48: 39 | B48: BHEL | C48: 73.5 | D48: 73.50 | E48: 72.10 | F48: 70.70 | G48: 69.30 | H48: 74.90 | I48: 76.30 | J48: 77.70 | K48: 74.9 | L48: 72.1 | M48: 104.44564
A49: 40 | B49: BPCL | C49: 331.15 | D49: 339.60 | E49: 295.40 | F49: 259.65 | G49: 215.45 | H49: 375.35 | I49: 419.55 | J49: 455.30 | K49: 383.8 | L49: 303.85 | M49: 99.20597
A50: 41 | B50: BHARTIARTL | C50: 310.15 | D50: 309.92 | E50: 302.38 | F50: 294.62 | G50: 287.08 | H50: 317.68 | I50: 325.22 | J50: 332.98 | K50: 317.45 | L50: 302.15 | M50: 80.83991
A51: 42 | B51: INFRATEL | C51: 256.15 | D51: 253.33 | E51: 245.07 | F51: 233.98 | G51: 225.72 | H51: 264.42 | I51: 272.68 | J51: 283.77 | K51: 261.6 | L51: 242.25 | M51: 49.72966
A52: 43 | B52: BIOCON | C52: 624.65 | D52: 633.05 | E52: 610.60 | F52: 596.55 | G52: 574.10 | H52: 647.10 | I52: 669.55 | J52: 683.60 | K52: 655.5 | L52: 619 | M52: 23.01884
A53: 44 | B53: BOSCHLTD | C53: 19123.8 | D53: 19174.60 | E53: 18649.20 | F53: 18174.60 | G53: 17649.20 | H53: 19649.20 | I53: 20174.60 | J53: 20649.20 | K53: 19700 | L53: 18700 | M53: 0.34396
A54: 45 | B54: BRITANNIA | C54: 5625.35 | D54: 5624.58 | E54: 5551.17 | F54: 5476.98 | G54: 5403.57 | H54: 5698.77 | I54: 5772.18 | J54: 5846.37 | K54: 5698 | L54: 5550.4 | M54: 3.18749
A55: 46 | B55: CRISIL | C55: 1622.15 | D55: 1637.78 | E55: 1585.37 | F55: 1548.58 | G55: 1496.17 | H55: 1674.57 | I55: 1726.98 | J55: 1763.77 | K55: 1690.2 | L55: 1601 | M55: 0.20076
A56: 47 | B56: CADILAHC | C56: 383.25 | D56: 383.85 | E56: 375.70 | F56: 368.15 | G56: 360.00 | H56: 391.40 | I56: 399.55 | J56: 407.10 | K56: 392 | L56: 376.3 | M56: 16.13796
A57: 48 | B57: CANBK | C57: 229.1 | D57: 229.53 | E57: 225.07 | F57: 221.03 | G57: 216.57 | H57: 233.57 | I57: 238.03 | J57: 242.07 | K57: 234 | L57: 225.5 | M57: 63.12203
A58: 49 | B58: CASTROLIND | C58: 141.55 | D58: 141.47 | E58: 140.33 | F58: 139.12 | G58: 137.98 | H58: 142.68 | I58: 143.82 | J58: 145.03 | K58: 142.6 | L58: 140.25 | M58: 8.29793
A59: 50 | B59: CENTRALBK | C59: 36.2 | D59: 37.47 | E59: 34.93 | F59: 33.67 | G59: 31.13 | H59: 38.73 | I59: 41.27 | J59: 42.53 | K59: 40 | L59: 36.2 | M59: 30.25106
A60: 51 | B60: CENTURYTEX | C60: 798.1 | D60: 793.98 | E60: 781.52 | F60: 764.93 | G60: 752.47 | H60: 810.57 | I60: 823.03 | J60: 839.62 | K60: 806.45 | L60: 777.4 | M60: 6.49525
A61: 52 | B61: CHOLAFIN | C61: 1192.9 | D61: 1178.63 | E61: 1154.27 | F61: 1115.63 | G61: 1091.27 | H61: 1217.27 | I61: 1241.63 | J61: 1280.27 | K61: 1203 | L61: 1140 | M61: 2.98731
A62: 53 | B62: CIPLA | C62: 638.4 | D62: 641.72 | E62: 628.78 | F62: 619.17 | G62: 606.23 | H62: 651.33 | I62: 664.27 | J62: 673.88 | K62: 654.65 | L62: 632.1 | M62: 17.36407
A63: 54 | B63: COALINDIA | C63: 273.3 | D63: 273.23 | E63: 268.67 | F63: 264.03 | G63: 259.47 | H63: 277.87 | I63: 282.43 | J63: 287.07 | K63: 277.8 | L63: 268.6 | M63: 36.88374
A64: 55 | B64: COLPAL | C64: 1068.9 | D64: 1073.32 | E64: 1054.68 | F64: 1040.47 | G64: 1021.83 | H64: 1087.53 | I64: 1106.17 | J64: 1120.38 | K64: 1091.95 | L64: 1059.1 | M64: 2.87027
A65: 56 | B65: CONCOR | C65: 610.6 | D65: 617.23 | E65: 593.87 | F65: 577.13 | G65: 553.77 | H65: 633.97 | I65: 657.33 | J65: 674.07 | K65: 640.6 | L65: 600.5 | M65: 7.74982
A66: 57 | B66: COROMANDEL | C66: 381.15 | D66: 380.85 | E66: 369.00 | F66: 356.85 | G66: 345.00 | H66: 393.00 | I66: 404.85 | J66: 417.00 | K66: 392.7 | L66: 368.7 | M66: 1.42856
A67: 58 | B67: CROMPTON | C67: 212.05 | D67: 209.03 | E67: 203.07 | F67: 194.08 | G67: 188.12 | H67: 218.02 | I67: 223.98 | J67: 232.97 | K67: 215 | L67: 200.05 | M67: 13.44431
A68: 59 | B68: CUMMINSIND | C68: 675.55 | D68: 669.08 | E68: 658.17 | F68: 640.78 | G68: 629.87 | H68: 686.47 | I68: 697.38 | J68: 714.77 | K68: 680 | L68: 651.7 | M68: 5.28924
A69: 60 | B69: DLF | C69: 158.4 | D69: 155.60 | E69: 150.35 | F69: 142.30 | G69: 137.05 | H69: 163.65 | I69: 168.90 | J69: 176.95 | K69: 160.85 | L69: 147.55 | M69: 137.13891
A70: 61 | B70: DABUR | C70: 415.45 | D70: 416.85 | E70: 408.70 | F70: 401.95 | G70: 393.80 | H70: 423.60 | I70: 431.75 | J70: 438.50 | K70: 425 | L70: 410.1 | M70: 20.16129
A71: 62 | B71: DALMIABHA | C71: 2159.3 | D71: 2192.12 | E71: 2082.28 | F71: 2005.27 | G71: 1895.43 | H71: 2269.13 | I71: 2378.97 | J71: 2455.98 | K71: 2301.95 | L71: 2115.1 | M71: 1.45826
A72: 63 | B72: DHFL | C72: 297.3 | D72: 300.73 | E72: 287.57 | F72: 277.83 | G72: 264.67 | H72: 310.47 | I72: 323.63 | J72: 333.37 | K72: 313.9 | L72: 291 | M72: 203.56991
A73: 64 | B73: DISHTV | C73: 55.45 | D73: 55.72 | E73: 53.73 | F73: 52.02 | G73: 50.03 | H73: 57.43 | I73: 59.42 | J73: 61.13 | K73: 57.7 | L73: 54 | M73: 80.29986
A74: 65 | B74: DIVISLAB | C74: 1283.9 | D74: 1283.28 | E74: 1260.87 | F74: 1237.83 | G74: 1215.42 | H74: 1306.32 | I74: 1328.73 | J74: 1351.77 | K74: 1305.7 | L74: 1260.25 | M74: 11.97193
A75: 66 | B75: LALPATHLAB | C75: 926.65 | D75: 933.27 | E75: 911.38 | F75: 896.12 | G75: 874.23 | H75: 948.53 | I75: 970.42 | J75: 985.68 | K75: 955.15 | L75: 918 | M75: 0.26478
A76: 67 | B76: DRREDDY | C76: 2372.45 | D76: 2408.88 | E76: 2323.82 | F76: 2275.18 | G76: 2190.12 | H76: 2457.52 | I76: 2542.58 | J76: 2591.22 | K76: 2493.95 | L76: 2360.25 | M76: 8.04214
A77: 68 | B77: EDELWEISS | C77: 190.05 | D77: 189.50 | E77: 184.30 | F77: 178.55 | G77: 173.35 | H77: 195.25 | I77: 200.45 | J77: 206.20 | K77: 194.7 | L77: 183.75 | M77: 33.49261
A78: 69 | B78: EICHERMOT | C78: 21907.85 | D78: 21603.00 | E78: 20306.00 | F78: 18704.15 | G78: 17407.15 | H78: 23204.85 | I78: 24501.85 | J78: 26103.70 | K78: 22900 | L78: 20001.15 | M78: 4.12533
A79: 70 | B79: EMAMILTD | C79: 473.75 | D79: 478.08 | E79: 461.67 | F79: 449.58 | G79: 433.17 | H79: 490.17 | I79: 506.58 | J79: 518.67 | K79: 494.5 | L79: 466 | M79: 2.65583
A80: 71 | B80: ENDURANCE | C80: 1278.35 | D80: 1283.72 | E80: 1245.63 | F80: 1212.92 | G80: 1174.83 | H80: 1316.43 | I80: 1354.52 | J80: 1387.23 | K80: 1321.8 | L80: 1251 | M80: 0.36364
A81: 72 | B81: ENGINERSIN | C81: 112.75 | D81: 113.72 | E81: 110.03 | F81: 107.32 | G81: 103.63 | H81: 116.43 | I81: 120.12 | J81: 122.83 | K81: 117.4 | L81: 111 | M81: 35.52537
A82: 73 | B82: EXIDEIND | C82: 252.3 | D82: 252.65 | E82: 247.30 | F82: 242.30 | G82: 236.95 | H82: 257.65 | I82: 263.00 | J82: 268.00 | K82: 258 | L82: 247.65 | M82: 20.50236
A83: 74 | B83: FEDERALBNK | C83: 68.05 | D83: 68.27 | E83: 66.83 | F83: 65.62 | G83: 64.18 | H83: 69.48 | I83: 70.92 | J83: 72.13 | K83: 69.7 | L83: 67.05 | M83: 117.38745
A84: 75 | B84: GAIL | C84: 367.95 | D84: 367.58 | E84: 355.37 | F84: 342.78 | G84: 330.57 | H84: 380.17 | I84: 392.38 | J84: 404.97 | K84: 379.8 | L84: 355 | M84: 55.60627
A85: 76 | B85: GMRINFRA | C85: 16.25 | D85: 16.35 | E85: 15.85 | F85: 15.45 | G85: 14.95 | H85: 16.75 | I85: 17.25 | J85: 17.65 | K85: 16.85 | L85: 15.95 | M85: 505.2871
A86: 77 | B86: GSKCONS | C86: 6551.65 | D86: 6558.52 | E86: 6437.13 | F86: 6322.62 | G86: 6201.23 | H86: 6673.03 | I86: 6794.42 | J86: 6908.93 | K86: 6679.9 | L86: 6444 | M86: 0.12584
A87: 78 | B87: GLAXO | C87: 1360.8 | D87: 1379.40 | E87: 1308.80 | F87: 1256.80 | G87: 1186.20 | H87: 1431.40 | I87: 1502.00 | J87: 1554.00 | K87: 1450 | L87: 1327.4 | M87: 0.55002
A88: 79 | B88: GLENMARK | C88: 601.8 | D88: 601.77 | E88: 578.13 | F88: 554.47 | G88: 530.83 | H88: 625.43 | I88: 649.07 | J88: 672.73 | K88: 625.4 | L88: 578.1 | M88: 17.32079
A89: 80 | B89: GODREJCP | C89: 720.6 | D89: 735.03 | E89: 700.57 | F89: 680.53 | G89: 646.07 | H89: 755.07 | I89: 789.53 | J89: 809.57 | K89: 769.5 | L89: 715 | M89: 14.43003
A90: 81 | B90: GODREJIND | C90: 486.25 | D90: 492.22 | E90: 477.43 | F90: 468.62 | G90: 453.83 | H90: 501.03 | I90: 515.82 | J90: 524.63 | K90: 507 | L90: 483.4 | M90: 4.59892
A91: 82 | B91: GRUH | C91: 281.45 | D91: 276.92 | E91: 265.03 | F91: 248.62 | G91: 236.73 | H91: 293.33 | I91: 305.22 | J91: 321.63 | K91: 288.8 | L91: 260.5 | M91: 6.40901
A92: 83 | B92: GPPL | C92: 101.8 | D92: 102.68 | E92: 100.12 | F92: 98.43 | G92: 95.87 | H92: 104.37 | I92: 106.93 | J92: 108.62 | K92: 105.25 | L92: 101 | M92: 1.4989
A93: 84 | B93: GSPL | C93: 181.3 | D93: 180.18 | E93: 176.62 | F93: 171.93 | G93: 168.37 | H93: 184.87 | I93: 188.43 | J93: 193.12 | K93: 183.75 | L93: 175.5 | M93: 8.72725
A94: 85 | B94: HCLTECH | C94: 1077.1 | D94: 1076.98 | E94: 1061.12 | F94: 1045.13 | G94: 1029.27 | H94: 1092.97 | I94: 1108.83 | J94: 1124.82 | K94: 1092.85 | L94: 1061 | M94: 19.45559
A95: 86 | B95: HDFCBANK | C95: 1957.75 | D95: 1972.85 | E95: 1927.90 | F95: 1898.05 | G95: 1853.10 | H95: 2002.70 | I95: 2047.65 | J95: 2077.50 | K95: 2017.8 | L95: 1943 | M95: 44.92646
A96: 87 | B96: HAVELLS | C96: 605.7 | D96: 604.83 | E96: 596.07 | F96: 586.43 | G96: 577.67 | H96: 614.47 | I96: 623.23 | J96: 632.87 | K96: 613.6 | L96: 595.2 | M96: 13.04505
A97: 88 | B97: HEROMOTOCO | C97: 2763.5 | D97: 2787.88 | E97: 2688.77 | F97: 2614.03 | G97: 2514.92 | H97: 2862.62 | I97: 2961.73 | J97: 3036.47 | K97: 2887 | L97: 2713.15 | M97: 11.72793
A98: 89 | B98: HEXAWARE | C98: 408.9 | D98: 415.23 | E98: 398.67 | F98: 388.43 | G98: 371.87 | H98: 425.47 | I98: 442.03 | J98: 452.27 | K98: 431.8 | L98: 405 | M98: 14.97192
A99: 90 | B99: HINDALCO | C99: 251.85 | D99: 253.70 | E99: 247.65 | F99: 243.45 | G99: 237.40 | H99: 257.90 | I99: 263.95 | J99: 268.15 | K99: 259.75 | L99: 249.5 | M99: 171.58063
A100: 91 | B100: HINDPETRO | C100: 217.15 | D100: 220.82 | E100: 187.33 | F100: 157.52 | G100: 124.03 | H100: 250.63 | I100: 284.12 | J100: 313.93 | K100: 254.3 | L100: 191 | M100: 165.67166
A101: 92 | B101: HINDUNILVR | C101: 1573.95 | D101: 1579.62 | E101: 1556.43 | F101: 1538.92 | G101: 1515.73 | H101: 1597.13 | I101: 1620.32 | J101: 1637.83 | K101: 1602.8 | L101: 1562.1 | M101: 15.44573
A102: 93 | B102: HINDZINC | C102: 288.9 | D102: 290.28 | E102: 284.07 | F102: 279.23 | G102: 273.02 | H102: 295.12 | I102: 301.33 | J102: 306.17 | K102: 296.5 | L102: 285.45 | M102: 11.94793
A103: 94 | B103: HUDCO | C103: 44.6 | D103: 44.28 | E103: 43.57 | F103: 42.53 | G103: 41.82 | H103: 45.32 | I103: 46.03 | J103: 47.07 | K103: 45 | L103: 43.25 | M103: 10.80839
A104: 95 | B104: HDFC | C104: 1778.45 | D104: 1772.92 | E104: 1747.88 | F104: 1717.32 | G104: 1692.28 | H104: 1803.48 | I104: 1828.52 | J104: 1859.08 | K104: 1797.95 | L104: 1742.35 | M104: 42.80606
A105: 96 | B105: ITC | C105: 287.1 | D105: 289.32 | E105: 282.93 | F105: 278.77 | G105: 272.38 | H105: 293.48 | I105: 299.87 | J105: 304.03 | K105: 295.7 | L105: 285.15 | M105: 81.05763
A106: 97 | B106: ICICIBANK | C106: 316.5 | D106: 310.85 | E106: 300.45 | F106: 284.40 | G106: 274.00 | H106: 326.90 | I106: 337.30 | J106: 353.35 | K106: 321.25 | L106: 294.8 | M106: 562.68976
A107: 98 | B107: ICICIPRULI | C107: 326.15 | D107: 322.55 | E107: 313.10 | F107: 300.05 | G107: 290.60 | H107: 335.60 | I107: 345.05 | J107: 358.10 | K107: 332 | L107: 309.5 | M107: 30.2154
A108: 99 | B108: IDBI | C108: 56.95 | D108: 56.33 | E108: 55.07 | F108: 53.18 | G108: 51.92 | H108: 58.22 | I108: 59.48 | J108: 61.37 | K108: 57.6 | L108: 54.45 | M108: 173.77252
A109: 100 | B109: IDFCBANK | C109: 36.7 | D109: 36.80 | E109: 35.90 | F109: 35.10 | G109: 34.20 | H109: 37.60 | I109: 38.50 | J109: 39.30 | K109: 37.7 | L109: 36 | M109: 106.22387
A110: 101 | B110: IDFC | C110: 39.95 | D110: 39.82 | E110: 39.03 | F110: 38.12 | G110: 37.33 | H110: 40.73 | I110: 41.52 | J110: 42.43 | K110: 40.6 | L110: 38.9 | M110: 55.23302
A111: 102 | B111: IRB | C111: 131.9 | D111: 133.87 | E111: 128.03 | F111: 124.17 | G111: 118.33 | H111: 137.73 | I111: 143.57 | J111: 147.43 | K111: 139.7 | L111: 130 | M111: 24.01418
A112: 103 | B112: IDEA | C112: 33.8 | D112: 34.65 | E112: 32.25 | F112: 30.70 | G112: 28.30 | H112: 36.20 | I112: 38.60 | J112: 40.15 | K112: 37.05 | L112: 33.1 | M112: 339.92921
A113: 104 | B113: IBULHSGFIN | C113: 950.25 | D113: 935.45 | E113: 911.90 | F113: 873.55 | G113: 850.00 | H113: 973.80 | I113: 997.35 | J113: 1035.70 | K113: 959 | L113: 897.1 | M113: 72.02226
A114: 105 | B114: INDIANB | C114: 247.75 | D114: 247.85 | E114: 241.90 | F114: 236.05 | G114: 230.10 | H114: 253.70 | I114: 259.65 | J114: 265.50 | K114: 253.8 | L114: 242 | M114: 15.05354
A115: 106 | B115: INDHOTEL | C115: 123.5 | D115: 123.30 | E115: 121.85 | F115: 120.20 | G115: 118.75 | H115: 124.95 | I115: 126.40 | J115: 128.05 | K115: 124.75 | L115: 121.65 | M115: 8.42398
A116: 107 | B116: IOC | C116: 140.3 | D116: 141.80 | E116: 125.25 | F116: 110.20 | G116: 93.65 | H116: 156.85 | I116: 173.40 | J116: 188.45 | K116: 158.35 | L116: 126.75 | M116: 155.9252
A117: 108 | B117: IGL | C117: 235.35 | D117: 236.98 | E117: 230.97 | F117: 226.58 | G117: 220.57 | H117: 241.37 | I117: 247.38 | J117: 251.77 | K117: 243 | L117: 232.6 | M117: 40.31268
A118: 109 | B118: INDUSINDBK | C118: 1589.5 | D118: 1589.35 | E118: 1551.50 | F118: 1513.50 | G118: 1475.65 | H118: 1627.35 | I118: 1665.20 | J118: 1703.20 | K118: 1627.2 | L118: 1551.35 | M118: 30.65332
A119: 110 | B119: NAUKRI | C119: 1375.4 | D119: 1371.68 | E119: 1314.37 | F119: 1253.33 | G119: 1196.02 | H119: 1432.72 | I119: 1490.03 | J119: 1551.07 | K119: 1429 | L119: 1310.65 | M119: 2.05787
A120: 111 | B120: INFY | C120: 707.2 | D120: 713.15 | E120: 696.55 | F120: 685.90 | G120: 669.30 | H120: 723.80 | I120: 740.40 | J120: 751.05 | K120: 729.75 | L120: 702.5 | M120: 61.73037
A121: 112 | B121: INDIGO | C121: 816.7 | D121: 805.15 | E121: 770.60 | F121: 724.50 | G121: 689.95 | H121: 851.25 | I121: 885.80 | J121: 931.90 | K121: 839.7 | L121: 759.05 | M121: 30.41589
A122: 113 | B122: IPCALAB | C122: 641.85 | D122: 644.52 | E122: 629.93 | F122: 618.02 | G122: 603.43 | H122: 656.43 | I122: 671.02 | J122: 682.93 | K122: 659.1 | L122: 632.6 | M122: 0.64847
A123: 114 | B123: JSWENERGY | C123: 63.1 | D123: 62.67 | E123: 61.93 | F123: 60.77 | G123: 60.03 | H123: 63.83 | I123: 64.57 | J123: 65.73 | K123: 63.4 | L123: 61.5 | M123: 6.97956
A124: 115 | B124: JSWSTEEL | C124: 377.6 | D124: 379.13 | E124: 371.77 | F124: 365.93 | G124: 358.57 | H124: 384.97 | I124: 392.33 | J124: 398.17 | K124: 386.5 | L124: 373.3 | M124: 70.84897
A125: 116 | B125: JINDALSTEL | C125: 191.2 | D125: 189.02 | E125: 185.18 | F125: 179.17 | G125: 175.33 | H125: 195.03 | I125: 198.87 | J125: 204.88 | K125: 192.85 | L125: 183 | M125: 112.80891
A126: 117 | B126: JUBLFOOD | C126: 1125.7 | D126: 1138.08 | E126: 1091.62 | F126: 1057.53 | G126: 1011.07 | H126: 1172.17 | I126: 1218.63 | J126: 1252.72 | K126: 1184.55 | L126: 1104 | M126: 20.71441
A127: 118 | B127: JUBILANT | C127: 705.3 | D127: 699.43 | E127: 688.12 | F127: 670.93 | G127: 659.62 | H127: 716.62 | I127: 727.93 | J127: 745.12 | K127: 710.75 | L127: 682.25 | M127: 8.84821
A128: 119 | B128: KARURVYSYA | C128: 79.2 | D128: 78.70 | E128: 77.75 | F128: 76.30 | G128: 75.35 | H128: 80.15 | I128: 81.10 | J128: 82.55 | K128: 79.65 | L128: 77.25 | M128: 21.89922
A129: 120 | B129: KOTAKBANK | C129: 1074.5 | D129: 1075.22 | E129: 1055.88 | F129: 1037.27 | G129: 1017.93 | H129: 1093.83 | I129: 1113.17 | J129: 1131.78 | K129: 1094.55 | L129: 1056.6 | M129: 34.39111
A130: 121 | B130: L&TFH | C130: 125.95 | D130: 126.28 | E130: 123.22 | F130: 120.48 | G130: 117.42 | H130: 129.02 | I130: 132.08 | J130: 134.82 | K130: 129.35 | L130: 123.55 | M130: 97.5795
A131: 122 | B131: LICHSGFIN | C131: 411.4 | D131: 410.95 | E131: 404.40 | F131: 397.40 | G131: 390.85 | H131: 417.95 | I131: 424.50 | J131: 431.50 | K131: 417.5 | L131: 403.95 | M131: 22.73298
A132: 123 | B132: LT | C132: 1257.9 | D132: 1267.35 | E132: 1241.80 | F132: 1225.70 | G132: 1200.15 | H132: 1283.45 | I132: 1309.00 | J132: 1325.10 | K132: 1292.9 | L132: 1251.25 | M132: 73.98229
A133: 124 | B133: LUPIN | C133: 854.75 | D133: 863.92 | E133: 832.93 | F133: 811.12 | G133: 780.13 | H133: 885.73 | I133: 916.72 | J133: 938.53 | K133: 894.9 | L133: 842.1 | M133: 27.57822
A134: 125 | B134: MRF | C134: 61603.8 | D134: 61901.25 | E134: 61102.55 | F134: 60601.30 | G134: 59802.60 | H134: 62402.50 | I134: 63201.20 | J134: 63702.45 | K134: 62699.95 | L134: 61400 | M134: 0.13688
A135: 126 | B135: MGL | C135: 793.85 | D135: 798.02 | E135: 781.93 | F135: 770.02 | G135: 753.93 | H135: 809.93 | I135: 826.02 | J135: 837.93 | K135: 814.1 | L135: 786.1 | M135: 5.11205
A136: 127 | B136: M&MFIN | C136: 398.8 | D136: 395.07 | E136: 389.13 | F136: 379.47 | G136: 373.53 | H136: 404.73 | I136: 410.67 | J136: 420.33 | K136: 401 | L136: 385.4 | M136: 24.35355
A137: 128 | B137: M&M | C137: 794.7 | D137: 786.72 | E137: 773.43 | F137: 752.17 | G137: 738.88 | H137: 807.98 | I137: 821.27 | J137: 842.53 | K137: 800 | L137: 765.45 | M137: 50.36305
A138: 129 | B138: MANAPPURAM | C138: 72.95 | D138: 73.35 | E138: 71.60 | F138: 70.25 | G138: 68.50 | H138: 74.70 | I138: 76.45 | J138: 77.80 | K138: 75.1 | L138: 72 | M138: 31.47291
A139: 130 | B139: MRPL | C139: 70.5 | D139: 70.25 | E139: 68.70 | F139: 66.90 | G139: 65.35 | H139: 72.05 | I139: 73.60 | J139: 75.40 | K139: 71.8 | L139: 68.45 | M139: 29.36409
A140: 131 | B140: MARICO | C140: 314.05 | D140: 316.92 | E140: 308.13 | F140: 302.22 | G140: 293.43 | H140: 322.83 | I140: 331.62 | J140: 337.53 | K140: 325.7 | L140: 311 | M140: 20.29729
A141: 132 | B141: MARUTI | C141: 7198.75 | D141: 7169.25 | E141: 7050.50 | F141: 6902.25 | G141: 6783.50 | H141: 7317.50 | I141: 7436.25 | J141: 7584.50 | K141: 7288 | L141: 7021 | M141: 11.04174
A142: 133 | B142: MFSL | C142: 359.45 | D142: 372.03 | E142: 339.12 | F142: 318.78 | G142: 285.87 | H142: 392.37 | I142: 425.28 | J142: 445.62 | K142: 404.95 | L142: 351.7 | M142: 27.68714
A143: 134 | B143: MINDTREE | C143: 1063.35 | D143: 1065.33 | E143: 1046.82 | F143: 1030.28 | G143: 1011.77 | H143: 1081.87 | I143: 1100.38 | J143: 1116.92 | K143: 1083.85 | L143: 1048.8 | M143: 7.16518
A144: 135 | B144: MOTHERSUMI | C144: 242.05 | D144: 241.93 | E144: 237.12 | F144: 232.18 | G144: 227.37 | H144: 246.87 | I144: 251.68 | J144: 256.62 | K144: 246.75 | L144: 237 | M144: 36.91128
A145: 136 | B145: MPHASIS | C145: 1148.1 | D145: 1150.75 | E145: 1137.60 | F145: 1127.10 | G145: 1113.95 | H145: 1161.25 | I145: 1174.40 | J145: 1184.90 | K145: 1163.9 | L145: 1140.25 | M145: 5.92294
A146: 137 | B146: MUTHOOTFIN | C146: 396.5 | D146: 398.02 | E146: 388.48 | F146: 380.47 | G146: 370.93 | H146: 406.03 | I146: 415.57 | J146: 423.58 | K146: 407.55 | L146: 390 | M146: 8.37063
A147: 138 | B147: NATCOPHARM | C147: 719.5 | D147: 724.75 | E147: 699.60 | F147: 679.70 | G147: 654.55 | H147: 744.65 | I147: 769.80 | J147: 789.70 | K147: 749.9 | L147: 704.85 | M147: 1.61651
A148: 139 | B148: NBCC | C148: 56.75 | D148: 56.95 | E148: 55.45 | F148: 54.15 | G148: 52.65 | H148: 58.25 | I148: 59.75 | J148: 61.05 | K148: 58.45 | L148: 55.65 | M148: 60.58909
A149: 140 | B149: NHPC | C149: 24 | D149: 23.60 | E149: 23.05 | F149: 22.10 | G149: 21.55 | H149: 24.55 | I149: 25.10 | J149: 26.05 | K149: 24.15 | L149: 22.65 | M149: 96.95134
A150: 141 | B150: NMDC | C150: 115.1 | D150: 114.87 | E150: 112.73 | F150: 110.37 | G150: 108.23 | H150: 117.23 | I150: 119.37 | J150: 121.73 | K150: 117 | L150: 112.5 | M150: 25.77391
A151: 142 | B151: NTPC | C151: 166.8 | D151: 166.72 | E151: 164.83 | F151: 162.87 | G151: 160.98 | H151: 168.68 | I151: 170.57 | J151: 172.53 | K151: 168.6 | L151: 164.75 | M151: 54.69579
A152: 143 | B152: NATIONALUM | C152: 69.1 | D152: 69.67 | E152: 67.83 | F152: 66.57 | G152: 64.73 | H152: 70.93 | I152: 72.77 | J152: 74.03 | K152: 71.5 | L152: 68.4 | M152: 177.05686
A153: 144 | B153: OBEROIRLTY | C153: 395.35 | D153: 393.53 | E153: 387.07 | F153: 378.78 | G153: 372.32 | H153: 401.82 | I153: 408.28 | J153: 416.57 | K153: 400 | L153: 385.25 | M153: 4.76921
A154: 145 | B154: ONGC | C154: 172.4 | D154: 172.77 | E154: 162.98 | F154: 153.57 | G154: 143.78 | H154: 182.18 | I154: 191.97 | J154: 201.38 | K154: 182.55 | L154: 163.35 | M154: 78.66152
A155: 146 | B155: OIL | C155: 209 | D155: 209.57 | E155: 198.98 | F155: 188.97 | G155: 178.38 | H155: 219.58 | I155: 230.17 | J155: 240.18 | K155: 220.15 | L155: 199.55 | M155: 7.98418
A156: 147 | B156: OFSS | C156: 3967.4 | D156: 3981.17 | E156: 3935.68 | F156: 3903.97 | G156: 3858.48 | H156: 4012.88 | I156: 4058.37 | J156: 4090.08 | K156: 4026.65 | L156: 3949.45 | M156: 0.31487
A157: 148 | B157: PCJEWELLER | C157: 56.3 | D157: 55.60 | E157: 53.30 | F157: 50.30 | G157: 48.00 | H157: 58.60 | I157: 60.90 | J157: 63.90 | K157: 57.9 | L157: 52.6 | M157: 125.57475
A158: 149 | B158: PIIND | C158: 702.7 | D158: 705.82 | E158: 696.88 | F158: 691.07 | G158: 682.13 | H158: 711.63 | I158: 720.57 | J158: 726.38 | K158: 714.75 | L158: 700 | M158: 1.11276
A159: 150 | B159: PNBHOUSING | C159: 888.95 | D159: 890.45 | E159: 865.90 | F159: 842.85 | G159: 818.30 | H159: 913.50 | I159: 938.05 | J159: 961.10 | K159: 915 | L159: 867.4 | M159: 4.06199
A160: 151 | B160: PAGEIND | C160: 30638.1 | D160: 30941.97 | E160: 29783.78 | F160: 28929.47 | G160: 27771.28 | H160: 31796.28 | I160: 32954.47 | J160: 33808.78 | K160: 32100.15 | L160: 30087.65 | M160: 0.4187
A161: 152 | B161: PETRONET | C161: 214.2 | D161: 214.83 | E161: 208.67 | F161: 203.13 | G161: 196.97 | H161: 220.37 | I161: 226.53 | J161: 232.07 | K161: 221 | L161: 209.3 | M161: 73.77593
A162: 153 | B162: PIDILITIND | C162: 967.75 | D162: 970.23 | E162: 955.47 | F162: 943.18 | G162: 928.42 | H162: 982.52 | I162: 997.28 | J162: 1009.57 | K162: 985 | L162: 957.95 | M162: 4.99095
A163: 154 | B163: PEL | C163: 2297.7 | D163: 2287.65 | E163: 2235.60 | F163: 2173.50 | G163: 2121.45 | H163: 2349.75 | I163: 2401.80 | J163: 2463.90 | K163: 2339.7 | L163: 2225.55 | M163: 6.28296
A164: 155 | B164: PFC | C164: 78.4 | D164: 78.45 | E164: 76.95 | F164: 75.50 | G164: 74.00 | H164: 79.90 | I164: 81.40 | J164: 82.85 | K164: 79.95 | L164: 77 | M164: 80.26775
A165: 156 | B165: POWERGRID | C165: 189.25 | D165: 188.25 | E165: 185.55 | F165: 181.85 | G165: 179.15 | H165: 191.95 | I165: 194.65 | J165: 198.35 | K165: 190.95 | L165: 184.55 | M165: 63.21994
A166: 157 | B166: PRESTIGE | C166: 196.4 | D166: 198.73 | E166: 191.67 | F166: 186.93 | G166: 179.87 | H166: 203.47 | I166: 210.53 | J166: 215.27 | K166: 205.8 | L166: 194 | M166: 2.06531
A167: 158 | B167: PGHH | C167: 9364.55 | D167: 9400.52 | E167: 9302.03 | F167: 9239.52 | G167: 9141.03 | H167: 9463.03 | I167: 9561.52 | J167: 9624.03 | K167: 9499 | L167: 9338 | M167: 0.07953
A168: 159 | B168: PNB | C168: 64.8 | D168: 64.38 | E168: 63.27 | F168: 61.73 | G168: 60.62 | H168: 65.92 | I168: 67.03 | J168: 68.57 | K168: 65.5 | L168: 62.85 | M168: 322.08001
A169: 160 | B169: RBLBANK | C169: 508.85 | D169: 512.00 | E169: 502.85 | F169: 496.85 | G169: 487.70 | H169: 518.00 | I169: 527.15 | J169: 533.15 | K169: 521.15 | L169: 506 | M169: 13.41158
A170: 161 | B170: RAJESHEXPO | C170: 671.1 | D170: 659.33 | E170: 640.77 | F170: 610.43 | G170: 591.87 | H170: 689.67 | I170: 708.23 | J170: 738.57 | K170: 677.9 | L170: 629 | M170: 4.44808
A171: 162 | B171: RELCAPITAL | C171: 270.3 | D171: 272.15 | E171: 264.30 | F171: 258.30 | G171: 250.45 | H171: 278.15 | I171: 286.00 | J171: 292.00 | K171: 280 | L171: 266.15 | M171: 70.68108
A172: 163 | B172: RCOM | C172: 11.85 | D172: 12.00 | E172: 11.45 | F172: 11.05 | G172: 10.50 | H172: 12.40 | I172: 12.95 | J172: 13.35 | K172: 12.55 | L172: 11.6 | M172: 1097.38369
A173: 164 | B173: RELIANCE | C173: 1122.25 | D173: 1139.55 | E173: 1088.70 | F173: 1055.15 | G173: 1004.30 | H173: 1173.10 | I173: 1223.95 | J173: 1257.50 | K173: 1190.4 | L173: 1106 | M173: 232.12443
A174: 165 | B174: RELINFRA | C174: 297.1 | D174: 297.73 | E174: 289.47 | F174: 281.83 | G174: 273.57 | H174: 305.37 | I174: 313.63 | J174: 321.27 | K174: 306 | L174: 290.1 | M174: 44.62915
A175: 166 | B175: RPOWER | C175: 27.2 | D175: 26.90 | E175: 26.30 | F175: 25.40 | G175: 24.80 | H175: 27.80 | I175: 28.40 | J175: 29.30 | K175: 27.5 | L175: 26 | M175: 87.39724
A176: 167 | B176: RECLTD | C176: 104.05 | D176: 103.85 | E176: 102.10 | F176: 100.15 | G176: 98.40 | H176: 105.80 | I176: 107.55 | J176: 109.50 | K176: 105.6 | L176: 101.9 | M176: 66.15761
A177: 168 | B177: SRF | C177: 1749.1 | D177: 1738.45 | E177: 1707.95 | F177: 1666.80 | G177: 1636.30 | H177: 1779.60 | I177: 1810.10 | J177: 1851.25 | K177: 1768.95 | L177: 1697.3 | M177: 4.5863
A178: 169 | B178: SHREECEM | C178: 16384.15 | D178: 16270.47 | E178: 16040.93 | F178: 15697.72 | G178: 15468.18 | H178: 16613.68 | I178: 16843.22 | J178: 17186.43 | K178: 16500 | L178: 15927.25 | M178: 0.68926
A179: 170 | B179: SRTRANSFIN | C179: 1094.2 | D179: 1093.15 | E179: 1058.35 | F179: 1022.50 | G179: 987.70 | H179: 1129.00 | I179: 1163.80 | J179: 1199.65 | K179: 1127.95 | L179: 1057.3 | M179: 22.94597
A180: 171 | B180: SIEMENS | C180: 963.4 | D180: 961.32 | E180: 942.63 | F180: 921.87 | G180: 903.18 | H180: 982.08 | I180: 1000.77 | J180: 1021.53 | K180: 980 | L180: 940.55 | M180: 2.9541
A181: 172 | B181: SBIN | C181: 271.35 | D181: 269.92 | E181: 267.13 | F181: 262.92 | G181: 260.13 | H181: 274.13 | I181: 276.92 | J181: 281.13 | K181: 272.7 | L181: 265.7 | M181: 177.54204
A182: 173 | B182: SAIL | C182: 69.25 | D182: 69.35 | E182: 67.60 | F182: 65.95 | G182: 64.20 | H182: 71.00 | I182: 72.75 | J182: 74.40 | K182: 71.1 | L182: 67.7 | M182: 175.47538
A183: 174 | B183: SPARC | C183: 318.45 | D183: 320.12 | E183: 312.18 | F183: 305.92 | G183: 297.98 | H183: 326.38 | I183: 334.32 | J183: 340.58 | K183: 328.05 | L183: 313.85 | M183: 1.58375
A184: 175 | B184: SUNPHARMA | C184: 599.05 | D184: 603.55 | E184: 586.35 | F184: 573.65 | G184: 556.45 | H184: 616.25 | I184: 633.45 | J184: 646.15 | K184: 620.75 | L184: 590.85 | M184: 48.51894
A185: 176 | B185: SUNTV | C185: 638.6 | D185: 631.77 | E185: 618.33 | F185: 598.07 | G185: 584.63 | H185: 652.03 | I185: 665.47 | J185: 685.73 | K185: 645.2 | L185: 611.5 | M185: 16.3683
A186: 177 | B186: SUZLON | C186: 5.7 | D186: 5.72 | E186: 5.53 | F186: 5.37 | G186: 5.18 | H186: 5.88 | I186: 6.07 | J186: 6.23 | K186: 5.9 | L186: 5.55 | M186: 354.87116
A187: 178 | B187: SYNDIBANK | C187: 32.2 | D187: 32.17 | E187: 31.38 | F187: 30.57 | G187: 29.78 | H187: 32.98 | I187: 33.77 | J187: 34.58 | K187: 32.95 | L187: 31.35 | M187: 32.11065
A188: 179 | B188: SYNGENE | C188: 599.75 | D188: 593.17 | E188: 583.38 | F188: 567.02 | G188: 557.23 | H188: 609.53 | I188: 619.32 | J188: 635.68 | K188: 602.95 | L188: 576.8 | M188: 0.45961
A189: 180 | B189: TV18BRDCST | C189: 35.1 | D189: 34.97 | E189: 34.43 | F189: 33.77 | G189: 33.23 | H189: 35.63 | I189: 36.17 | J189: 36.83 | K189: 35.5 | L189: 34.3 | M189: 49.97294
A190: 181 | B190: TVSMOTOR | C190: 527.4 | D190: 525.57 | E190: 516.13 | F190: 504.87 | G190: 495.43 | H190: 536.83 | I190: 546.27 | J190: 557.53 | K190: 535 | L190: 514.3 | M190: 14.17053
A191: 182 | B191: TATACHEM | C191: 660.25 | D191: 660.90 | E191: 649.85 | F191: 639.45 | G191: 628.40 | H191: 671.30 | I191: 682.35 | J191: 692.75 | K191: 671.95 | L191: 650.5 | M191: 3.63673
A192: 183 | B192: TATACOMM | C192: 480.3 | D192: 479.57 | E192: 469.13 | F192: 457.97 | G192: 447.53 | H192: 490.73 | I192: 501.17 | J192: 512.33 | K192: 490 | L192: 468.4 | M192: 3.93936
A193: 184 | B193: TCS | C193: 2064.8 | D193: 2092.60 | E193: 2028.55 | F193: 1992.30 | G193: 1928.25 | H193: 2128.85 | I193: 2192.90 | J193: 2229.15 | K193: 2156.65 | L193: 2056.35 | M193: 47.62419
A194: 185 | B194: TATAGLOBAL | C194: 218.2 | D194: 220.72 | E194: 213.63 | F194: 209.07 | G194: 201.98 | H194: 225.28 | I194: 232.37 | J194: 236.93 | K194: 227.8 | L194: 216.15 | M194: 17.28786
A195: 186 | B195: TATAMTRDVR | C195: 120.7 | D195: 120.72 | E195: 117.98 | F195: 115.27 | G195: 112.53 | H195: 123.43 | I195: 126.17 | J195: 128.88 | K195: 123.45 | L195: 118 | M195: 31.38388
A196: 187 | B196: TATAMOTORS | C196: 223.25 | D196: 225.27 | E196: 219.73 | F196: 216.22 | G196: 210.68 | H196: 228.78 | I196: 234.32 | J196: 237.83 | K196: 230.8 | L196: 221.75 | M196: 138.98979
A197: 188 | B197: TATAPOWER | C197: 66.85 | D197: 66.98 | E197: 65.97 | F197: 65.08 | G197: 64.07 | H197: 67.87 | I197: 68.88 | J197: 69.77 | K197: 68 | L197: 66.1 | M197: 29.2515
A198: 189 | B198: TATASTEEL | C198: 582.3 | D198: 580.02 | E198: 572.28 | F198: 562.27 | G198: 554.53 | H198: 590.03 | I198: 597.77 | J198: 607.78 | K198: 587.75 | L198: 570 | M198: 76.2984
A199: 190 | B199: TECHM | C199: 719.85 | D199: 725.25 | E199: 707.60 | F199: 695.35 | G199: 677.70 | H199: 737.50 | I199: 755.15 | J199: 767.40 | K199: 742.9 | L199: 713 | M199: 65.61009
A200: 191 | B200: RAMCOCEM | C200: 638.05 | D200: 633.72 | E200: 620.43 | F200: 602.82 | G200: 589.53 | H200: 651.33 | I200: 664.62 | J200: 682.23 | K200: 647 | L200: 616.1 | M200: 3.42796
A201: 192 | B201: TITAN | C201: 776.7 | D201: 778.17 | E201: 758.83 | F201: 740.97 | G201: 721.63 | H201: 796.03 | I201: 815.37 | J201: 833.23 | K201: 797.5 | L201: 760.3 | M201: 45.79535
A202: 193 | B202: TORNTPHARM | C202: 1638.55 | D202: 1632.00 | E202: 1611.55 | F202: 1584.55 | G202: 1564.10 | H202: 1659.00 | I202: 1679.45 | J202: 1706.45 | K202: 1652.45 | L202: 1605 | M202: 1.72959
A203: 194 | B203: TORNTPOWER | C203: 223.95 | D203: 223.33 | E203: 219.77 | F203: 215.58 | G203: 212.02 | H203: 227.52 | I203: 231.08 | J203: 235.27 | K203: 226.9 | L203: 219.15 | M203: 9.13021
A204: 195 | B204: UPL | C204: 628.75 | D204: 631.80 | E204: 618.15 | F204: 607.55 | G204: 593.90 | H204: 642.40 | I204: 656.05 | J204: 666.65 | K204: 645.45 | L204: 621.2 | M204: 24.63238
A205: 196 | B205: ULTRACEMCO | C205: 3943.65 | D205: 3894.25 | E205: 3827.30 | F205: 3710.95 | G205: 3644.00 | H205: 4010.60 | I205: 4077.55 | J205: 4193.90 | K205: 3961.2 | L205: 3777.9 | M205: 5.35184
... 30 more rows

Sheet MidCap Intra
L5: Back To Main Page
A6: FOR INTRA DAY TRADING | K6: =Main!B10 -> 2018-10-05
A9: Sr.no | B9: Scrip | C9: CLOSE RATE | D9: Pivot Point | E9: Supports | H9: Resistances
C10: Point | E10: S1 | F10: S2 | G10: S3 | H10: R1 | I10: R2 | J10: R3 | K10: HIGH | L10: LOW | M10: Total Trade Quanity in Lakhs
A11: 1 | B11: 3MINDIA | C11: 22701.4 | D11: 22247.38 | E11: 21594.72 | F11: 20488.03 | G11: 19835.37 | H11: 23354.07 | I11: 24006.73 | J11: 25113.42 | K11: 22900.05 | L11: 21140.7 | M11: 0.05151
A12: 2 | B12: 8KMILES | C12: 164.15 | D12: 164.15 | E12: 164.15 | F12: 164.15 | G12: 164.15 | H12: 164.15 | I12: 164.15 | J12: 164.15 | K12: 164.15 | L12: 164.15 | M12: 0.16665
A13: 3 | B13: AARTIIND | C13: 1203.5 | D13: 1195.52 | E13: 1174.03 | F13: 1144.57 | G13: 1123.08 | H13: 1224.98 | I13: 1246.47 | J13: 1275.93 | K13: 1217 | L13: 1166.05 | M13: 0.14104
A14: 4 | B14: ABAN | C14: 80.9 | D14: 81.17 | E14: 79.83 | F14: 78.77 | G14: 77.43 | H14: 82.23 | I14: 83.57 | J14: 84.63 | K14: 82.5 | L14: 80.1 | M14: 3.28809
A15: 5 | B15: ABB | C15: 1382.9 | D15: 1393.30 | E15: 1366.60 | F15: 1350.30 | G15: 1323.60 | H15: 1409.60 | I15: 1436.30 | J15: 1452.60 | K15: 1420 | L15: 1377 | M15: 0.54211
A16: 6 | B16: ABCAPITAL | C16: 111.25 | D16: 110.48 | E16: 108.27 | F16: 105.28 | G16: 103.07 | H16: 113.47 | I16: 115.68 | J16: 118.67 | K16: 112.7 | L16: 107.5 | M16: 22.10276
A17: 7 | B17: ABFRL | C17: 182.55 | D17: 181.18 | E17: 176.37 | F17: 170.18 | G17: 165.37 | H17: 187.37 | I17: 192.18 | J17: 198.37 | K17: 186 | L17: 175 | M17: 5.31009
A18: 8 | B18: ACC | C18: 1527.9 | D18: 1508.38 | E18: 1481.52 | F18: 1435.13 | G18: 1408.27 | H18: 1554.77 | I18: 1581.63 | J18: 1628.02 | K18: 1535.25 | L18: 1462 | M18: 9.63587
A19: 9 | B19: ADANIPORTS | C19: 317.05 | D19: 320.15 | E19: 310.90 | F19: 304.75 | G19: 295.50 | H19: 326.30 | I19: 335.55 | J19: 341.70 | K19: 329.4 | L19: 314 | M19: 45.08937
A20: 10 | B20: ADANIPOWER | C20: 24.35 | D20: 24.62 | E20: 23.53 | F20: 22.72 | G20: 21.63 | H20: 25.43 | I20: 26.52 | J20: 27.33 | K20: 25.7 | L20: 23.8 | M20: 211.49699
A21: 11 | B21: ADANITRANS | C21: 149.75 | D21: 150.20 | E21: 146.70 | F21: 143.65 | G21: 140.15 | H21: 153.25 | I21: 156.75 | J21: 159.80 | K21: 153.7 | L21: 147.15 | M21: 0.47854
A22: 12 | B22: ADVENZYMES | C22: 181.15 | D22: 182.03 | E22: 179.22 | F22: 177.28 | G22: 174.47 | H22: 183.97 | I22: 186.78 | J22: 188.72 | K22: 184.85 | L22: 180.1 | M22: 0.90638
A23: 13 | B23: AEGISCHEM | C23: 187.95 | D23: 186.90 | E23: 183.65 | F23: 179.35 | G23: 176.10 | H23: 191.20 | I23: 194.45 | J23: 198.75 | K23: 190.15 | L23: 182.6 | M23: 0.87931
A24: 14 | B24: AIAENG | C24: 1703 | D24: 1710.25 | E24: 1685.75 | F24: 1668.50 | G24: 1644.00 | H24: 1727.50 | I24: 1752.00 | J24: 1769.25 | K24: 1734.75 | L24: 1693 | M24: 1.01219
A25: 15 | B25: AJANTPHARM | C25: 1005.35 | D25: 1015.80 | E25: 988.55 | F25: 971.75 | G25: 944.50 | H25: 1032.60 | I25: 1059.85 | J25: 1076.65 | K25: 1043.05 | L25: 999 | M25: 3.13168
A26: 16 | B26: AKZOINDIA | C26: 1592.65 | D26: 1594.57 | E26: 1570.13 | F26: 1547.62 | G26: 1523.18 | H26: 1617.08 | I26: 1641.52 | J26: 1664.03 | K26: 1619 | L26: 1572.05 | M26: 0.0455
A27: 17 | B27: ALBK | C27: 36.05 | D27: 35.98 | E27: 35.37 | F27: 34.68 | G27: 34.07 | H27: 36.67 | I27: 37.28 | J27: 37.97 | K27: 36.6 | L27: 35.3 | M27: 29.26447
A28: 18 | B28: ALKEM | C28: 2043 | D28: 2038.40 | E28: 2014.60 | F28: 1986.20 | G28: 1962.40 | H28: 2066.80 | I28: 2090.60 | J28: 2119.00 | K28: 2062.2 | L28: 2010 | M28: 0.11593
A29: 19 | B29: ALLCARGO | C29: 98.95 | D29: 98.20 | E29: 96.75 | F29: 94.55 | G29: 93.10 | H29: 100.40 | I29: 101.85 | J29: 104.05 | K29: 99.65 | L29: 96 | M29: 5.17989
A30: 20 | B30: AMARAJABAT | C30: 729.25 | D30: 731.77 | E30: 717.63 | F30: 706.02 | G30: 691.88 | H30: 743.38 | I30: 757.52 | J30: 769.13 | K30: 745.9 | L30: 720.15 | M30: 5.68427
A31: 21 | B31: AMBUJACEM | C31: 213.7 | D31: 212.47 | E31: 208.48 | F31: 203.27 | G31: 199.28 | H31: 217.68 | I31: 221.67 | J31: 226.88 | K31: 216.45 | L31: 207.25 | M31: 47.56385
A32: 22 | B32: ANDHRABANK | C32: 27.35 | D32: 27.28 | E32: 26.92 | F32: 26.48 | G32: 26.12 | H32: 27.72 | I32: 28.08 | J32: 28.52 | K32: 27.65 | L32: 26.85 | M32: 14.69959
A33: 23 | B33: APLAPOLLO | C33: 1253.55 | D33: 1233.63 | E33: 1177.92 | F33: 1102.28 | G33: 1046.57 | H33: 1309.27 | I33: 1364.98 | J33: 1440.62 | K33: 1289.35 | L33: 1158 | M33: 1.12908
A34: 24 | B34: APLLTD | C34: 591.9 | D34: 600.70 | E34: 571.45 | F34: 551.00 | G34: 521.75 | H34: 621.15 | I34: 650.40 | J34: 670.85 | K34: 629.95 | L34: 580.25 | M34: 0.98566
A35: 25 | B35: APOLLOHOSP | C35: 1047.2 | D35: 1050.65 | E35: 1031.75 | F35: 1016.30 | G35: 997.40 | H35: 1066.10 | I35: 1085.00 | J35: 1100.45 | K35: 1069.55 | L35: 1035.2 | M35: 4.20704
A36: 26 | B36: APOLLOTYRE | C36: 203.3 | D36: 202.42 | E36: 199.38 | F36: 195.47 | G36: 192.43 | H36: 206.33 | I36: 209.37 | J36: 213.28 | K36: 205.45 | L36: 198.5 | M36: 29.91297
A37: 27 | B37: ARVIND | C37: 317 | D37: 314.68 | E37: 308.77 | F37: 300.53 | G37: 294.62 | H37: 322.92 | I37: 328.83 | J37: 337.07 | K37: 320.6 | L37: 306.45 | M37: 10.96335
A38: 28 | B38: ASAHIINDIA | C38: 304.2 | D38: 303.45 | E38: 296.80 | F38: 289.40 | G38: 282.75 | H38: 310.85 | I38: 317.50 | J38: 324.90 | K38: 310.1 | L38: 296.05 | M38: 0.38691
A39: 29 | B39: ASHOKA | C39: 107 | D39: 107.22 | E39: 105.13 | F39: 103.27 | G39: 101.18 | H39: 109.08 | I39: 111.17 | J39: 113.03 | K39: 109.3 | L39: 105.35 | M39: 2.34684
A40: 30 | B40: ASHOKLEY | C40: 118.05 | D40: 117.75 | E40: 115.50 | F40: 112.95 | G40: 110.70 | H40: 120.30 | I40: 122.55 | J40: 125.10 | K40: 120 | L40: 115.2 | M40: 188.20134
A41: 31 | B41: ASIANPAINT | C41: 1224.7 | D41: 1225.97 | E41: 1212.73 | F41: 1200.77 | G41: 1187.53 | H41: 1237.93 | I41: 1251.17 | J41: 1263.13 | K41: 1239.2 | L41: 1214 | M41: 15.57441
A42: 32 | B42: ASTRAL | C42: 877.7 | D42: 876.82 | E42: 843.58 | F42: 809.47 | G42: 776.23 | H42: 910.93 | I42: 944.17 | J42: 978.28 | K42: 910.05 | L42: 842.7 | M42: 2.74855
A43: 33 | B43: ATUL | C43: 3099.7 | D43: 3103.23 | E43: 3046.47 | F43: 2993.23 | G43: 2936.47 | H43: 3156.47 | I43: 3213.23 | J43: 3266.47 | K43: 3160 | L43: 3050 | M43: 0.09993
A44: 34 | B44: AUBANK | C44: 555.7 | D44: 558.57 | E44: 547.13 | F44: 538.57 | G44: 527.13 | H44: 567.13 | I44: 578.57 | J44: 587.13 | K44: 570 | L44: 550 | M44: 3.26917
A45: 35 | B45: AUROPHARMA | C45: 757.05 | D45: 755.05 | E45: 738.20 | F45: 719.35 | G45: 702.50 | H45: 773.90 | I45: 790.75 | J45: 809.60 | K45: 771.9 | L45: 736.2 | M45: 36.52071
A46: 36 | B46: AVANTIFEED | C46: 356.3 | D46: 358.67 | E46: 352.43 | F46: 348.57 | G46: 342.33 | H46: 362.53 | I46: 368.77 | J46: 372.63 | K46: 364.9 | L46: 354.8 | M46: 3.21304
A47: 37 | B47: AXISBANK | C47: 586.25 | D47: 576.87 | E47: 563.18 | F47: 540.12 | G47: 526.43 | H47: 599.93 | I47: 613.62 | J47: 636.68 | K47: 590.55 | L47: 553.8 | M47: 168.77024
A48: 38 | B48: BAJAJ-AUTO | C48: 2657 | D48: 2667.58 | E48: 2615.67 | F48: 2574.33 | G48: 2522.42 | H48: 2708.92 | I48: 2760.83 | J48: 2802.17 | K48: 2719.5 | L48: 2626.25 | M48: 6.38156
A49: 39 | B49: BAJAJCORP | C49: 399 | D49: 395.70 | E49: 389.90 | F49: 380.80 | G49: 375.00 | H49: 404.80 | I49: 410.60 | J49: 419.70 | K49: 401.5 | L49: 386.6 | M49: 0.29338
A50: 40 | B50: BAJAJELEC | C50: 496.25 | D50: 492.40 | E50: 484.90 | F50: 473.55 | G50: 466.05 | H50: 503.75 | I50: 511.25 | J50: 522.60 | K50: 499.9 | L50: 481.05 | M50: 1.38334
A51: 41 | B51: BAJAJFINSV | C51: 5632.1 | D51: 5628.95 | E51: 5527.90 | F51: 5423.70 | G51: 5322.65 | H51: 5733.15 | I51: 5834.20 | J51: 5938.40 | K51: 5730 | L51: 5524.75 | M51: 2.09825
A52: 42 | B52: BAJAJHIND | C52: 8.6 | D52: 8.58 | E52: 8.17 | F52: 7.73 | G52: 7.32 | H52: 9.02 | I52: 9.43 | J52: 9.87 | K52: 9 | L52: 8.15 | M52: 45.47801
A53: 43 | B53: BAJAJHLDNG | C53: 2930.05 | D53: 2950.27 | E53: 2888.53 | F53: 2847.02 | G53: 2785.28 | H53: 2991.78 | I53: 3053.52 | J53: 3095.03 | K53: 3012 | L53: 2908.75 | M53: 0.20985
A54: 44 | B54: BAJFINANCE | C54: 2179.15 | D54: 2169.90 | E54: 2127.80 | F54: 2076.45 | G54: 2034.35 | H54: 2221.25 | I54: 2263.35 | J54: 2314.70 | K54: 2212 | L54: 2118.55 | M54: 40.02718
A55: 45 | B55: BALKRISIND | C55: 1046.4 | D55: 1046.62 | E55: 1016.78 | F55: 987.17 | G55: 957.33 | H55: 1076.23 | I55: 1106.07 | J55: 1135.68 | K55: 1076.45 | L55: 1017 | M55: 6.98017
A56: 46 | B56: BALLARPUR | C56: 6.8 | D56: 6.80 | E56: 6.65 | F56: 6.50 | G56: 6.35 | H56: 6.95 | I56: 7.10 | J56: 7.25 | K56: 6.95 | L56: 6.65 | M56: 3.73968
A57: 47 | B57: BALMLAWRIE | C57: 185.8 | D57: 185.60 | E57: 184.20 | F57: 182.60 | G57: 181.20 | H57: 187.20 | I57: 188.60 | J57: 190.20 | K57: 187 | L57: 184 | M57: 0.48668
A58: 48 | B58: BALRAMCHIN | C58: 75.2 | D58: 75.58 | E58: 73.47 | F58: 71.73 | G58: 69.62 | H58: 77.32 | I58: 79.43 | J58: 81.17 | K58: 77.7 | L58: 73.85 | M58: 41.23935
A59: 49 | B59: BANKBARODA | C59: 103.35 | D59: 103.02 | E59: 100.68 | F59: 98.02 | G59: 95.68 | H59: 105.68 | I59: 108.02 | J59: 110.68 | K59: 105.35 | L59: 100.35 | M59: 224.01811
A60: 50 | B60: BANKINDIA | C60: 79.1 | D60: 79.28 | E60: 76.92 | F60: 74.73 | G60: 72.37 | H60: 81.47 | I60: 83.83 | J60: 86.02 | K60: 81.65 | L60: 77.1 | M60: 79.2736
A61: 51 | B61: BASF | C61: 1743 | D61: 1755.65 | E61: 1712.35 | F61: 1681.70 | G61: 1638.40 | H61: 1786.30 | I61: 1829.60 | J61: 1860.25 | K61: 1798.95 | L61: 1725 | M61: 0.06812
A62: 52 | B62: BATAINDIA | C62: 867.85 | D62: 879.12 | E62: 850.23 | F62: 832.62 | G62: 803.73 | H62: 896.73 | I62: 925.62 | J62: 943.23 | K62: 908 | L62: 861.5 | M62: 18.19895
A63: 53 | B63: BBTC | C63: 1248.55 | D63: 1256.50 | E63: 1223.00 | F63: 1197.45 | G63: 1163.95 | H63: 1282.05 | I63: 1315.55 | J63: 1341.10 | K63: 1290 | L63: 1230.95 | M63: 1.77651
A64: 54 | B64: BEL | C64: 82.25 | D64: 82.08 | E64: 80.67 | F64: 79.08 | G64: 77.67 | H64: 83.67 | I64: 85.08 | J64: 86.67 | K64: 83.5 | L64: 80.5 | M64: 81.60811
A65: 55 | B65: BEML | C65: 615.4 | D65: 609.17 | E65: 595.33 | F65: 575.27 | G65: 561.43 | H65: 629.23 | I65: 643.07 | J65: 663.13 | K65: 623 | L65: 589.1 | M65: 12.39323
A66: 56 | B66: BERGEPAINT | C66: 273.25 | D66: 275.25 | E66: 268.00 | F66: 262.75 | G66: 255.50 | H66: 280.50 | I66: 287.75 | J66: 293.00 | K66: 282.5 | L66: 270 | M66: 9.12596
A67: 57 | B67: BFUTILITIE | C67: 213.15 | D67: 213.83 | E67: 209.32 | F67: 205.48 | G67: 200.97 | H67: 217.67 | I67: 222.18 | J67: 226.02 | K67: 218.35 | L67: 210 | M67: 1.90063
A68: 58 | B68: BGRENERGY | C68: 55.55 | D68: 55.73 | E68: 53.92 | F68: 52.28 | G68: 50.47 | H68: 57.37 | I68: 59.18 | J68: 60.82 | K68: 57.55 | L68: 54.1 | M68: 1.12
A69: 59 | B69: BHARATFIN | C69: 989.65 | D69: 988.27 | E69: 965.53 | F69: 941.42 | G69: 918.68 | H69: 1012.38 | I69: 1035.12 | J69: 1059.23 | K69: 1011 | L69: 964.15 | M69: 14.77707
A70: 60 | B70: BHARATFORG | C70: 591.65 | D70: 592.60 | E70: 585.20 | F70: 578.75 | G70: 571.35 | H70: 599.05 | I70: 606.45 | J70: 612.90 | K70: 600 | L70: 586.15 | M70: 7.99249
A71: 61 | B71: BHARTIARTL | C71: 310.15 | D71: 309.92 | E71: 302.38 | F71: 294.62 | G71: 287.08 | H71: 317.68 | I71: 325.22 | J71: 332.98 | K71: 317.45 | L71: 302.15 | M71: 80.83991
A72: 62 | B72: BHEL | C72: 73.5 | D72: 73.50 | E72: 72.10 | F72: 70.70 | G72: 69.30 | H72: 74.90 | I72: 76.30 | J72: 77.70 | K72: 74.9 | L72: 72.1 | M72: 104.44564
A73: 63 | B73: BHUSANSTL | C73: 26.5 | D73: 26.35 | E73: 26.20 | F73: 25.90 | G73: 25.75 | H73: 26.65 | I73: 26.80 | J73: 27.10 | K73: 26.5 | L73: 26.05 | M73: 4.76728
A74: 64 | B74: BIOCON | C74: 624.65 | D74: 633.05 | E74: 610.60 | F74: 596.55 | G74: 574.10 | H74: 647.10 | I74: 669.55 | J74: 683.60 | K74: 655.5 | L74: 619 | M74: 23.01884
A75: 65 | B75: BIRLACORPN | C75: 627.8 | D75: 623.45 | E75: 610.95 | F75: 594.10 | G75: 581.60 | H75: 640.30 | I75: 652.80 | J75: 669.65 | K75: 635.95 | L75: 606.6 | M75: 1.01736
A76: 66 | B76: BLISSGVS | C76: 168.95 | D76: 171.30 | E76: 165.15 | F76: 161.35 | G76: 155.20 | H76: 175.10 | I76: 181.25 | J76: 185.05 | K76: 177.45 | L76: 167.5 | M76: 1.53103
A77: 67 | B77: BLUEDART | C77: 2961.5 | D77: 2951.73 | E77: 2914.87 | F77: 2868.23 | G77: 2831.37 | H77: 2998.37 | I77: 3035.23 | J77: 3081.87 | K77: 2988.6 | L77: 2905.1 | M77: 0.01533
A78: 68 | B78: BLUESTARCO | C78: 564.7 | D78: 563.88 | E78: 546.62 | F78: 528.53 | G78: 511.27 | H78: 581.97 | I78: 599.23 | J78: 617.32 | K78: 581.15 | L78: 545.8 | M78: 0.32369
A79: 69 | B79: BOMDYEING | C79: 143.9 | D79: 143.90 | E79: 143.90 | F79: 143.90 | G79: 143.90 | H79: 143.90 | I79: 143.90 | J79: 143.90 | K79: 143.9 | L79: 143.9 | M79: 0.22555
A80: 70 | B80: BOSCHLTD | C80: 19123.8 | D80: 19174.60 | E80: 18649.20 | F80: 18174.60 | G80: 17649.20 | H80: 19649.20 | I80: 20174.60 | J80: 20649.20 | K80: 19700 | L80: 18700 | M80: 0.34396
A81: 71 | B81: BPCL | C81: 331.15 | D81: 339.60 | E81: 295.40 | F81: 259.65 | G81: 215.45 | H81: 375.35 | I81: 419.55 | J81: 455.30 | K81: 383.8 | L81: 303.85 | M81: 99.20597
A82: 72 | B82: BRFL | C82: 15.3 | D82: 14.90 | E82: 14.45 | F82: 13.60 | G82: 13.15 | H82: 15.75 | I82: 16.20 | J82: 17.05 | K82: 15.35 | L82: 14.05 | M82: 0.6233
A83: 73 | B83: BRIGADE | C83: 189.4 | D83: 188.87 | E83: 186.73 | F83: 184.07 | G83: 181.93 | H83: 191.53 | I83: 193.67 | J83: 196.33 | K83: 191 | L83: 186.2 | M83: 0.19515
A84: 74 | B84: BRITANNIA | C84: 5625.35 | D84: 5624.58 | E84: 5551.17 | F84: 5476.98 | G84: 5403.57 | H84: 5698.77 | I84: 5772.18 | J84: 5846.37 | K84: 5698 | L84: 5550.4 | M84: 3.18749
A85: 75 | B85: BSE | C85: 673.4 | D85: 676.57 | E85: 664.03 | F85: 654.67 | G85: 642.13 | H85: 685.93 | I85: 698.47 | J85: 707.83 | K85: 689.1 | L85: 667.2 | M85: 1.6292
A86: 77 | B86: CADILAHC | C86: 383.25 | D86: 383.85 | E86: 375.70 | F86: 368.15 | G86: 360.00 | H86: 391.40 | I86: 399.55 | J86: 407.10 | K86: 392 | L86: 376.3 | M86: 16.13796
A87: 78 | B87: CANBK | C87: 229.1 | D87: 229.53 | E87: 225.07 | F87: 221.03 | G87: 216.57 | H87: 233.57 | I87: 238.03 | J87: 242.07 | K87: 234 | L87: 225.5 | M87: 63.12203
A88: 79 | B88: CANFINHOME | C88: 246.2 | D88: 244.17 | E88: 237.93 | F88: 229.67 | G88: 223.43 | H88: 252.43 | I88: 258.67 | J88: 266.93 | K88: 250.4 | L88: 235.9 | M88: 16.81325
A89: 80 | B89: CAPF | C89: 495.1 | D89: 495.17 | E89: 483.48 | F89: 471.87 | G89: 460.18 | H89: 506.78 | I89: 518.47 | J89: 530.08 | K89: 506.85 | L89: 483.55 | M89: 6.55453
A90: 81 | B90: CAPLIPOINT | C90: 435.55 | D90: 436.47 | E90: 414.33 | F90: 393.12 | G90: 370.98 | H90: 457.68 | I90: 479.82 | J90: 501.03 | K90: 458.6 | L90: 415.25 | M90: 1.29139
A91: 82 | B91: CARBORUNIV | C91: 351.95 | D91: 356.63 | E91: 345.42 | F91: 338.88 | G91: 327.67 | H91: 363.17 | I91: 374.38 | J91: 380.92 | K91: 367.85 | L91: 350.1 | M91: 0.64832
A92: 83 | B92: CARERATING | C92: 1122.75 | D92: 1134.20 | E92: 1096.40 | F92: 1070.05 | G92: 1032.25 | H92: 1160.55 | I92: 1198.35 | J92: 1224.70 | K92: 1172 | L92: 1107.85 | M92: 1.36517
A93: 84 | B93: CASTROLIND | C93: 141.55 | D93: 141.47 | E93: 140.33 | F93: 139.12 | G93: 137.98 | H93: 142.68 | I93: 143.82 | J93: 145.03 | K93: 142.6 | L93: 140.25 | M93: 8.29793
A94: 85 | B94: CCL | C94: 248.25 | D94: 248.80 | E94: 244.45 | F94: 240.65 | G94: 236.30 | H94: 252.60 | I94: 256.95 | J94: 260.75 | K94: 253.15 | L94: 245 | M94: 0.25226
A95: 86 | B95: CDSL | C95: 234.1 | D95: 230.88 | E95: 225.77 | F95: 217.43 | G95: 212.32 | H95: 239.22 | I95: 244.33 | J95: 252.67 | K95: 236 | L95: 222.55 | M95: 2.69707
A96: 87 | B96: CEATLTD | C96: 1054.8 | D96: 1065.85 | E96: 1032.00 | F96: 1009.20 | G96: 975.35 | H96: 1088.65 | I96: 1122.50 | J96: 1145.30 | K96: 1099.7 | L96: 1043.05 | M96: 5.86978
A97: 88 | B97: CENTRALBK | C97: 36.2 | D97: 37.47 | E97: 34.93 | F97: 33.67 | G97: 31.13 | H97: 38.73 | I97: 41.27 | J97: 42.53 | K97: 40 | L97: 36.2 | M97: 30.25106
A98: 89 | B98: CENTURYPLY | C98: 172.75 | D98: 173.67 | E98: 170.08 | F98: 167.42 | G98: 163.83 | H98: 176.33 | I98: 179.92 | J98: 182.58 | K98: 177.25 | L98: 171 | M98: 1.94847
A99: 90 | B99: CENTURYTEX | C99: 798.1 | D99: 793.98 | E99: 781.52 | F99: 764.93 | G99: 752.47 | H99: 810.57 | I99: 823.03 | J99: 839.62 | K99: 806.45 | L99: 777.4 | M99: 6.49525
A100: 91 | B100: CERA | C100: 2451.35 | D100: 2450.82 | E100: 2426.63 | F100: 2401.92 | G100: 2377.73 | H100: 2475.53 | I100: 2499.72 | J100: 2524.43 | K100: 2475 | L100: 2426.1 | M100: 0.04366
A101: 92 | B101: CGPOWER | C101: 44.25 | D101: 44.17 | E101: 43.08 | F101: 41.92 | G101: 40.83 | H101: 45.33 | I101: 46.42 | J101: 47.58 | K101: 45.25 | L101: 43 | M101: 17.19289
A102: 93 | B102: CHAMBLFERT | C102: 146.9 | D102: 147.32 | E102: 145.63 | F102: 144.37 | G102: 142.68 | H102: 148.58 | I102: 150.27 | J102: 151.53 | K102: 149 | L102: 146.05 | M102: 1.05402
A103: 94 | B103: CHENNPETRO | C103: 278.8 | D103: 279.60 | E103: 271.20 | F103: 263.60 | G103: 255.20 | H103: 287.20 | I103: 295.60 | J103: 303.20 | K103: 288 | L103: 272 | M103: 7.22435
A104: 95 | B104: CHOLAFIN | C104: 1192.9 | D104: 1178.63 | E104: 1154.27 | F104: 1115.63 | G104: 1091.27 | H104: 1217.27 | I104: 1241.63 | J104: 1280.27 | K104: 1203 | L104: 1140 | M104: 2.98731
A105: 96 | B105: CIPLA | C105: 638.4 | D105: 641.72 | E105: 628.78 | F105: 619.17 | G105: 606.23 | H105: 651.33 | I105: 664.27 | J105: 673.88 | K105: 654.65 | L105: 632.1 | M105: 17.36407
A106: 97 | B106: COALINDIA | C106: 273.3 | D106: 273.23 | E106: 268.67 | F106: 264.03 | G106: 259.47 | H106: 277.87 | I106: 282.43 | J106: 287.07 | K106: 277.8 | L106: 268.6 | M106: 36.88374
A107: 98 | B107: COCHINSHIP | C107: 386.15 | D107: 388.22 | E107: 382.53 | F107: 378.92 | G107: 373.23 | H107: 391.83 | I107: 397.52 | J107: 401.13 | K107: 393.9 | L107: 384.6 | M107: 0.84787
A108: 99 | B108: COFFEEDAY | C108: 262.4 | D108: 263.52 | E108: 254.23 | F108: 246.07 | G108: 236.78 | H108: 271.68 | I108: 280.97 | J108: 289.13 | K108: 272.8 | L108: 255.35 | M108: 0.98666
A109: 100 | B109: COLPAL | C109: 1068.9 | D109: 1073.32 | E109: 1054.68 | F109: 1040.47 | G109: 1021.83 | H109: 1087.53 | I109: 1106.17 | J109: 1120.38 | K109: 1091.95 | L109: 1059.1 | M109: 2.87027
A110: 101 | B110: CONCOR | C110: 610.6 | D110: 617.23 | E110: 593.87 | F110: 577.13 | G110: 553.77 | H110: 633.97 | I110: 657.33 | J110: 674.07 | K110: 640.6 | L110: 600.5 | M110: 7.74982
A111: 102 | B111: COROMANDEL | C111: 381.15 | D111: 380.85 | E111: 369.00 | F111: 356.85 | G111: 345.00 | H111: 393.00 | I111: 404.85 | J111: 417.00 | K111: 392.7 | L111: 368.7 | M111: 1.42856
A112: 103 | B112: COX&KINGS | C112: 183.2 | D112: 184.73 | E112: 175.47 | F112: 167.73 | G112: 158.47 | H112: 192.47 | I112: 201.73 | J112: 209.47 | K112: 194 | L112: 177 | M112: 2.39294
A113: 104 | B113: CRISIL | C113: 1622.15 | D113: 1637.78 | E113: 1585.37 | F113: 1548.58 | G113: 1496.17 | H113: 1674.57 | I113: 1726.98 | J113: 1763.77 | K113: 1690.2 | L113: 1601 | M113: 0.20076
A114: 105 | B114: CROMPTON | C114: 212.05 | D114: 209.03 | E114: 203.07 | F114: 194.08 | G114: 188.12 | H114: 218.02 | I114: 223.98 | J114: 232.97 | K114: 215 | L114: 200.05 | M114: 13.44431
A115: 106 | B115: CUB | C115: 165.95 | D115: 165.80 | E115: 162.65 | F115: 159.35 | G115: 156.20 | H115: 169.10 | I115: 172.25 | J115: 175.55 | K115: 168.95 | L115: 162.5 | M115: 16.69879
A116: 107 | B116: CUMMINSIND | C116: 675.55 | D116: 669.08 | E116: 658.17 | F116: 640.78 | G116: 629.87 | H116: 686.47 | I116: 697.38 | J116: 714.77 | K116: 680 | L116: 651.7 | M116: 5.28924
A117: 108 | B117: CYIENT | C117: 758.7 | D117: 760.30 | E117: 750.85 | F117: 743.00 | G117: 733.55 | H117: 768.15 | I117: 777.60 | J117: 785.45 | K117: 769.75 | L117: 752.45 | M117: 1.11362
A118: 109 | B118: DABUR | C118: 415.45 | D118: 416.85 | E118: 408.70 | F118: 401.95 | G118: 393.80 | H118: 423.60 | I118: 431.75 | J118: 438.50 | K118: 425 | L118: 410.1 | M118: 20.16129
A119: 110 | B119: DBCORP | C119: 201.7 | D119: 201.72 | E119: 198.43 | F119: 195.17 | G119: 191.88 | H119: 204.98 | I119: 208.27 | J119: 211.53 | K119: 205 | L119: 198.45 | M119: 0.41602
A120: 111 | B120: DBL | C120: 628.2 | D120: 630.05 | E120: 620.15 | F120: 612.10 | G120: 602.20 | H120: 638.10 | I120: 648.00 | J120: 656.05 | K120: 639.95 | L120: 622 | M120: 1.54012
A121: 112 | B121: DBREALTY | C121: 21.75 | D121: 21.58 | E121: 20.77 | F121: 19.78 | G121: 18.97 | H121: 22.57 | I121: 23.38 | J121: 24.37 | K121: 22.4 | L121: 20.6 | M121: 6.12514
A122: 113 | B122: DCAL | C122: 240.85 | D122: 239.05 | E122: 233.80 | F122: 226.75 | G122: 221.50 | H122: 246.10 | I122: 251.35 | J122: 258.40 | K122: 244.3 | L122: 232 | M122: 0.89775
A123: 114 | B123: DCBBANK | C123: 148.45 | D123: 147.83 | E123: 145.22 | F123: 141.98 | G123: 139.37 | H123: 151.07 | I123: 153.68 | J123: 156.92 | K123: 150.45 | L123: 144.6 | M123: 13.56575
A124: 115 | B124: DCMSHRIRAM | C124: 410.95 | D124: 438.65 | E124: 374.30 | F124: 337.65 | G124: 273.30 | H124: 475.30 | I124: 539.65 | J124: 576.30 | K124: 503 | L124: 402 | M124: 1.35843
A125: 116 | B125: DEEPAKFERT | C125: 195.65 | D125: 194.97 | E125: 190.93 | F125: 186.22 | G125: 182.18 | H125: 199.68 | I125: 203.72 | J125: 208.43 | K125: 199 | L125: 190.25 | M125: 0.59279
A126: 117 | B126: DELTACORP | C126: 208.8 | D126: 210.07 | E126: 204.73 | F126: 200.67 | G126: 195.33 | H126: 214.13 | I126: 219.47 | J126: 223.53 | K126: 215.4 | L126: 206 | M126: 9.44698
A127: 118 | B127: DEN | C127: 56.4 | D127: 58.10 | E127: 53.90 | F127: 51.40 | G127: 47.20 | H127: 60.60 | I127: 64.80 | J127: 67.30 | K127: 62.3 | L127: 55.6 | M127: 3.69334
A128: 119 | B128: DENABANK | C128: 15.4 | D128: 15.32 | E128: 15.13 | F128: 14.87 | G128: 14.68 | H128: 15.58 | I128: 15.77 | J128: 16.03 | K128: 15.5 | L128: 15.05 | M128: 6.93904
A129: 120 | B129: DHFL | C129: 297.3 | D129: 300.73 | E129: 287.57 | F129: 277.83 | G129: 264.67 | H129: 310.47 | I129: 323.63 | J129: 333.37 | K129: 313.9 | L129: 291 | M129: 203.56991
A130: 121 | B130: DISHTV | C130: 55.45 | D130: 55.72 | E130: 53.73 | F130: 52.02 | G130: 50.03 | H130: 57.43 | I130: 59.42 | J130: 61.13 | K130: 57.7 | L130: 54 | M130: 80.29986
A131: 122 | B131: DIVISLAB | C131: 1283.9 | D131: 1283.28 | E131: 1260.87 | F131: 1237.83 | G131: 1215.42 | H131: 1306.32 | I131: 1328.73 | J131: 1351.77 | K131: 1305.7 | L131: 1260.25 | M131: 11.97193
A132: 123 | B132: DIXON | C132: 2507.8 | D132: 2522.17 | E132: 2475.93 | F132: 2444.07 | G132: 2397.83 | H132: 2554.03 | I132: 2600.27 | J132: 2632.13 | K132: 2568.4 | L132: 2490.3 | M132: 0.05489
A133: 124 | B133: DLF | C133: 158.4 | D133: 155.60 | E133: 150.35 | F133: 142.30 | G133: 137.05 | H133: 163.65 | I133: 168.90 | J133: 176.95 | K133: 160.85 | L133: 147.55 | M133: 137.13891
A134: 125 | B134: DMART | C134: 1346.35 | D134: 1318.85 | E134: 1267.70 | F134: 1189.05 | G134: 1137.90 | H134: 1397.50 | I134: 1448.65 | J134: 1527.30 | K134: 1370 | L134: 1240.2 | M134: 15.69172
A135: 126 | B135: DREDGECORP | C135: 323.15 | D135: 323.72 | E135: 312.43 | F135: 301.72 | G135: 290.43 | H135: 334.43 | I135: 345.72 | J135: 356.43 | K135: 335 | L135: 313 | M135: 1.49097
A136: 127 | B136: DRREDDY | C136: 2372.45 | D136: 2408.88 | E136: 2323.82 | F136: 2275.18 | G136: 2190.12 | H136: 2457.52 | I136: 2542.58 | J136: 2591.22 | K136: 2493.95 | L136: 2360.25 | M136: 8.04214
A137: 128 | B137: ECLERX | C137: 1030.45 | D137: 1036.42 | E137: 1014.18 | F137: 997.92 | G137: 975.68 | H137: 1052.68 | I137: 1074.92 | J137: 1091.18 | K137: 1058.65 | L137: 1020.15 | M137: 0.04023
A138: 129 | B138: EDELWEISS | C138: 190.05 | D138: 189.50 | E138: 184.30 | F138: 178.55 | G138: 173.35 | H138: 195.25 | I138: 200.45 | J138: 206.20 | K138: 194.7 | L138: 183.75 | M138: 33.49261
A139: 130 | B139: EICHERMOT | C139: 21907.85 | D139: 21603.00 | E139: 20306.00 | F139: 18704.15 | G139: 17407.15 | H139: 23204.85 | I139: 24501.85 | J139: 26103.70 | K139: 22900 | L139: 20001.15 | M139: 4.12533
A140: 131 | B140: EIDPARRY | C140: 192.1 | D140: 192.80 | E140: 189.30 | F140: 186.50 | G140: 183.00 | H140: 195.60 | I140: 199.10 | J140: 201.90 | K140: 196.3 | L140: 190 | M140: 1.45956
A141: 132 | B141: EIHOTEL | C141: 149.85 | D141: 148.08 | E141: 145.32 | F141: 140.78 | G141: 138.02 | H141: 152.62 | I141: 155.38 | J141: 159.92 | K141: 150.85 | L141: 143.55 | M141: 1.43172
A142: 133 | B142: EMAMILTD | C142: 473.75 | D142: 478.08 | E142: 461.67 | F142: 449.58 | G142: 433.17 | H142: 490.17 | I142: 506.58 | J142: 518.67 | K142: 494.5 | L142: 466 | M142: 2.65583
A143: 134 | B143: ENDURANCE | C143: 1278.35 | D143: 1283.72 | E143: 1245.63 | F143: 1212.92 | G143: 1174.83 | H143: 1316.43 | I143: 1354.52 | J143: 1387.23 | K143: 1321.8 | L143: 1251 | M143: 0.36364
A144: 135 | B144: ENGINERSIN | C144: 112.75 | D144: 113.72 | E144: 110.03 | F144: 107.32 | G144: 103.63 | H144: 116.43 | I144: 120.12 | J144: 122.83 | K144: 117.4 | L144: 111 | M144: 35.52537
A145: 136 | B145: EQUITAS | C145: 113.25 | D145: 112.65 | E145: 110.05 | F145: 106.85 | G145: 104.25 | H145: 115.85 | I145: 118.45 | J145: 121.65 | K145: 115.25 | L145: 109.45 | M145: 26.71897
A146: 137 | B146: ERIS | C146: 685.4 | D146: 694.85 | E146: 671.55 | F146: 657.70 | G146: 634.40 | H146: 708.70 | I146: 732.00 | J146: 745.85 | K146: 718.15 | L146: 681 | M146: 0.10933
A147: 138 | B147: EROSMEDIA | C147: 78.3 | D147: 78.72 | E147: 75.58 | F147: 72.87 | G147: 69.73 | H147: 81.43 | I147: 84.57 | J147: 87.28 | K147: 81.85 | L147: 76 | M147: 9.53872
A148: 139 | B148: ESCORTS | C148: 617.9 | D148: 615.97 | E148: 603.43 | F148: 588.97 | G148: 576.43 | H148: 630.43 | I148: 642.97 | J148: 657.43 | K148: 628.5 | L148: 601.5 | M148: 13.21842
A149: 140 | B149: EVEREADY | C149: 203.95 | D149: 204.10 | E149: 198.20 | F149: 192.45 | G149: 186.55 | H149: 209.85 | I149: 215.75 | J149: 221.50 | K149: 210 | L149: 198.35 | M149: 0.53611
A150: 141 | B150: EXIDEIND | C150: 252.3 | D150: 252.65 | E150: 247.30 | F150: 242.30 | G150: 236.95 | H150: 257.65 | I150: 263.00 | J150: 268.00 | K150: 258 | L150: 247.65 | M150: 20.50236
A151: 142 | B151: FCONSUMER | C151: 39.45 | D151: 39.37 | E151: 38.08 | F151: 36.72 | G151: 35.43 | H151: 40.73 | I151: 42.02 | J151: 43.38 | K151: 40.65 | L151: 38 | M151: 28.31723
A152: 143 | B152: FEDERALBNK | C152: 68.05 | D152: 68.27 | E152: 66.83 | F152: 65.62 | G152: 64.18 | H152: 69.48 | I152: 70.92 | J152: 72.13 | K152: 69.7 | L152: 67.05 | M152: 117.38745
A153: 144 | B153: FINCABLES | C153: 505.75 | D153: 505.88 | E153: 495.82 | F153: 485.88 | G153: 475.82 | H153: 515.82 | I153: 525.88 | J153: 535.82 | K153: 515.95 | L153: 495.95 | M153: 0.17886
A154: 145 | B154: FINPIPE | C154: 523.8 | D154: 521.58 | E154: 517.22 | F154: 510.63 | G154: 506.27 | H154: 528.17 | I154: 532.53 | J154: 539.12 | K154: 525.95 | L154: 515 | M154: 0.16196
A155: 146 | B155: FLFL | C155: 391.45 | D155: 390.93 | E155: 381.52 | F155: 371.58 | G155: 362.17 | H155: 400.87 | I155: 410.28 | J155: 420.22 | K155: 400.35 | L155: 381 | M155: 0.41761
A156: 147 | B156: FSL | C156: 60.05 | D156: 60.45 | E156: 59.10 | F156: 58.15 | G156: 56.80 | H156: 61.40 | I156: 62.75 | J156: 63.70 | K156: 61.8 | L156: 59.5 | M156: 19.49652
A157: 148 | B157: GAIL | C157: 367.95 | D157: 367.58 | E157: 355.37 | F157: 342.78 | G157: 330.57 | H157: 380.17 | I157: 392.38 | J157: 404.97 | K157: 379.8 | L157: 355 | M157: 55.60627
A158: 149 | B158: GATI | C158: 80.35 | D158: 79.97 | E158: 75.03 | F158: 69.72 | G158: 64.78 | H158: 85.28 | I158: 90.22 | J158: 95.53 | K158: 84.9 | L158: 74.65 | M158: 25.75294
A159: 150 | B159: GDL | C159: 149.2 | D159: 147.87 | E159: 143.48 | F159: 137.77 | G159: 133.38 | H159: 153.58 | I159: 157.97 | J159: 163.68 | K159: 152.25 | L159: 142.15 | M159: 0.90438
A160: 151 | B160: GEPIL | C160: 737.45 | D160: 732.70 | E160: 724.75 | F160: 712.05 | G160: 704.10 | H160: 745.40 | I160: 753.35 | J160: 766.05 | K160: 740.65 | L160: 720 | M160: 0.07662
A161: 152 | B161: GESHIP | C161: 282.15 | D161: 281.73 | E161: 278.37 | F161: 274.58 | G161: 271.22 | H161: 285.52 | I161: 288.88 | J161: 292.67 | K161: 285.1 | L161: 277.95 | M161: 0.79654
A162: 153 | B162: GET&D | C162: 265.65 | D162: 263.13 | E162: 251.52 | F162: 237.38 | G162: 225.77 | H162: 277.27 | I162: 288.88 | J162: 303.02 | K162: 274.75 | L162: 249 | M162: 0.45482
A163: 154 | B163: GHCL | C163: 212.15 | D163: 210.83 | E163: 207.32 | F163: 202.48 | G163: 198.97 | H163: 215.67 | I163: 219.18 | J163: 224.02 | K163: 214.35 | L163: 206 | M163: 1.11026
A164: 155 | B164: GICRE | C164: 324.85 | D164: 323.83 | E164: 321.02 | F164: 317.18 | G164: 314.37 | H164: 327.67 | I164: 330.48 | J164: 334.32 | K164: 326.65 | L164: 320 | M164: 0.85737
A165: 156 | B165: GILLETTE | C165: 6567.6 | D165: 6582.50 | E165: 6505.05 | F165: 6442.50 | G165: 6365.05 | H165: 6645.05 | I165: 6722.50 | J165: 6785.05 | K165: 6659.95 | L165: 6519.95 | M165: 0.03235
A166: 157 | B166: GLAXO | C166: 1360.8 | D166: 1379.40 | E166: 1308.80 | F166: 1256.80 | G166: 1186.20 | H166: 1431.40 | I166: 1502.00 | J166: 1554.00 | K166: 1450 | L166: 1327.4 | M166: 0.55002
A167: 158 | B167: GLENMARK | C167: 601.8 | D167: 601.77 | E167: 578.13 | F167: 554.47 | G167: 530.83 | H167: 625.43 | I167: 649.07 | J167: 672.73 | K167: 625.4 | L167: 578.1 | M167: 17.32079
A168: 159 | B168: GMDCLTD | C168: 87.15 | D168: 88.10 | E168: 85.75 | F168: 84.35 | G168: 82.00 | H168: 89.50 | I168: 91.85 | J168: 93.25 | K168: 90.45 | L168: 86.7 | M168: 4.00448
A169: 160 | B169: GMRINFRA | C169: 16.25 | D169: 16.35 | E169: 15.85 | F169: 15.45 | G169: 14.95 | H169: 16.75 | I169: 17.25 | J169: 17.65 | K169: 16.85 | L169: 15.95 | M169: 505.2871
A170: 161 | B170: GNFC | C170: 331.5 | D170: 331.95 | E170: 326.65 | F170: 321.80 | G170: 316.50 | H170: 336.80 | I170: 342.10 | J170: 346.95 | K170: 337.25 | L170: 327.1 | M170: 3.35695
A171: 162 | B171: GODFRYPHLP | C171: 714.35 | D171: 714.78 | E171: 698.87 | F171: 683.38 | G171: 667.47 | H171: 730.27 | I171: 746.18 | J171: 761.67 | K171: 730.7 | L171: 699.3 | M171: 2.61863
A172: 163 | B172: GODREJAGRO | C172: 526.05 | D172: 528.22 | E172: 516.53 | F172: 507.02 | G172: 495.33 | H172: 537.73 | I172: 549.42 | J172: 558.93 | K172: 539.9 | L172: 518.7 | M172: 0.70054
A173: 164 | B173: GODREJCP | C173: 720.6 | D173: 735.03 | E173: 700.57 | F173: 680.53 | G173: 646.07 | H173: 755.07 | I173: 789.53 | J173: 809.57 | K173: 769.5 | L173: 715 | M173: 14.43003
A174: 165 | B174: GODREJIND | C174: 486.25 | D174: 492.22 | E174: 477.43 | F174: 468.62 | G174: 453.83 | H174: 501.03 | I174: 515.82 | J174: 524.63 | K174: 507 | L174: 483.4 | M174: 4.59892
A175: 166 | B175: GODREJPROP | C175: 576.2 | D175: 583.40 | E175: 563.80 | F175: 551.40 | G175: 531.80 | H175: 595.80 | I175: 615.40 | J175: 627.80 | K175: 603 | L175: 571 | M175: 0.92709
A176: 167 | B176: GPPL | C176: 101.8 | D176: 102.68 | E176: 100.12 | F176: 98.43 | G176: 95.87 | H176: 104.37 | I176: 106.93 | J176: 108.62 | K176: 105.25 | L176: 101 | M176: 1.4989
A177: 168 | B177: GRANULES | C177: 91.65 | D177: 92.85 | E177: 89.70 | F177: 87.75 | G177: 84.60 | H177: 94.80 | I177: 97.95 | J177: 99.90 | K177: 96 | L177: 90.9 | M177: 55.36563
A178: 169 | B178: GRAPHITE | C178: 810.6 | D178: 816.87 | E178: 798.73 | F178: 786.87 | G178: 768.73 | H178: 828.73 | I178: 846.87 | J178: 858.73 | K178: 835 | L178: 805 | M178: 4.32589
A179: 170 | B179: GRASIM | C179: 959.3 | D179: 956.13 | E179: 938.27 | F179: 917.23 | G179: 899.37 | H179: 977.17 | I179: 995.03 | J179: 1016.07 | K179: 974 | L179: 935.1 | M179: 14.32583
A180: 171 | B180: GREAVESCOT | C180: 126.95 | D180: 127.00 | E180: 124.15 | F180: 121.35 | G180: 118.50 | H180: 129.80 | I180: 132.65 | J180: 135.45 | K180: 129.85 | L180: 124.2 | M180: 4.83432
A181: 172 | B181: GREENPLY | C181: 146.75 | D181: 147.48 | E181: 143.52 | F181: 140.28 | G181: 136.32 | H181: 150.72 | I181: 154.68 | J181: 157.92 | K181: 151.45 | L181: 144.25 | M181: 2.06856
A182: 173 | B182: GRUH | C182: 281.45 | D182: 276.92 | E182: 265.03 | F182: 248.62 | G182: 236.73 | H182: 293.33 | I182: 305.22 | J182: 321.63 | K182: 288.8 | L182: 260.5 | M182: 6.40901
A183: 174 | B183: GSFC | C183: 94.25 | D183: 94.25 | E183: 92.30 | F183: 90.35 | G183: 88.40 | H183: 96.20 | I183: 98.15 | J183: 100.10 | K183: 96.2 | L183: 92.3 | M183: 24.0255
A184: 175 | B184: GSKCONS | C184: 6551.65 | D184: 6558.52 | E184: 6437.13 | F184: 6322.62 | G184: 6201.23 | H184: 6673.03 | I184: 6794.42 | J184: 6908.93 | K184: 6679.9 | L184: 6444 | M184: 0.12584
A185: 176 | B185: GSPL | C185: 181.3 | D185: 180.18 | E185: 176.62 | F185: 171.93 | G185: 168.37 | H185: 184.87 | I185: 188.43 | J185: 193.12 | K185: 183.75 | L185: 175.5 | M185: 8.72725
A186: 177 | B186: GUJALKALI | C186: 594.7 | D186: 597.90 | E186: 581.80 | F186: 568.90 | G186: 552.80 | H186: 610.80 | I186: 626.90 | J186: 639.80 | K186: 614 | L186: 585 | M186: 0.68237
A187: 178 | B187: GUJFLUORO | C187: 766.1 | D187: 778.10 | E187: 749.25 | F187: 732.40 | G187: 703.55 | H187: 794.95 | I187: 823.80 | J187: 840.65 | K187: 806.95 | L187: 761.25 | M187: 1.10674
A188: 179 | B188: GUJGASLTD | C188: 616.95 | D188: 619.32 | E188: 600.63 | F188: 584.32 | G188: 565.63 | H188: 635.63 | I188: 654.32 | J188: 670.63 | K188: 638 | L188: 603 | M188: 3.11656
A189: 180 | B189: GULFOILLUB | C189: 742 | D189: 744.27 | E189: 733.88 | F189: 725.77 | G189: 715.38 | H189: 752.38 | I189: 762.77 | J189: 770.88 | K189: 754.65 | L189: 736.15 | M189: 0.31728
A190: 181 | B190: GVKPIL | C190: 7.8 | D190: 7.78 | E190: 7.57 | F190: 7.33 | G190: 7.12 | H190: 8.02 | I190: 8.23 | J190: 8.47 | K190: 8 | L190: 7.55 | M190: 20.12317
A191: 182 | B191: HATHWAY | C191: 26.8 | D191: 27.58 | E191: 25.67 | F191: 24.53 | G191: 22.62 | H191: 28.72 | I191: 30.63 | J191: 31.77 | K191: 29.5 | L191: 26.45 | M191: 30.72173
A192: 183 | B192: HATSUN | C192: 650 | D192: 652.52 | E192: 637.33 | F192: 624.67 | G192: 609.48 | H192: 665.18 | I192: 680.37 | J192: 693.03 | K192: 667.7 | L192: 639.85 | M192: 0.72911
A193: 184 | B193: HAVELLS | C193: 605.7 | D193: 604.83 | E193: 596.07 | F193: 586.43 | G193: 577.67 | H193: 614.47 | I193: 623.23 | J193: 632.87 | K193: 613.6 | L193: 595.2 | M193: 13.04505
A194: 185 | B194: HCC | C194: 11.5 | D194: 11.40 | E194: 11.15 | F194: 10.80 | G194: 10.55 | H194: 11.75 | I194: 12.00 | J194: 12.35 | K194: 11.65 | L194: 11.05 | M194: 70.55643
A195: 186 | B195: HCL-INSYS | C195: 22.95 | D195: 23.18 | E195: 22.52 | F195: 22.08 | G195: 21.42 | H195: 23.62 | I195: 24.28 | J195: 24.72 | K195: 23.85 | L195: 22.75 | M195: 7.86387
A196: 187 | B196: HCLTECH | C196: 1077.1 | D196: 1076.98 | E196: 1061.12 | F196: 1045.13 | G196: 1029.27 | H196: 1092.97 | I196: 1108.83 | J196: 1124.82 | K196: 1092.85 | L196: 1061 | M196: 19.45559
A197: 188 | B197: HDFC | C197: 1778.45 | D197: 1772.92 | E197: 1747.88 | F197: 1717.32 | G197: 1692.28 | H197: 1803.48 | I197: 1828.52 | J197: 1859.08 | K197: 1797.95 | L197: 1742.35 | M197: 42.80606
A198: 189 | B198: HDFCBANK | C198: 1957.75 | D198: 1972.85 | E198: 1927.90 | F198: 1898.05 | G198: 1853.10 | H198: 2002.70 | I198: 2047.65 | J198: 2077.50 | K198: 2017.8 | L198: 1943 | M198: 44.92646
A199: 190 | B199: HDIL | C199: 20.3 | D199: 20.27 | E199: 19.88 | F199: 19.47 | G199: 19.08 | H199: 20.68 | I199: 21.07 | J199: 21.48 | K199: 20.65 | L199: 19.85 | M199: 45.73182
A200: 191 | B200: HEG | C200: 3260.3 | D200: 3288.77 | E200: 3137.53 | F200: 3014.77 | G200: 2863.53 | H200: 3411.53 | I200: 3562.77 | J200: 3685.53 | K200: 3440 | L200: 3166 | M200: 1.47125
A201: 192 | B201: HEIDELBERG | C201: 137.45 | D201: 137.30 | E201: 135.15 | F201: 132.85 | G201: 130.70 | H201: 139.60 | I201: 141.75 | J201: 144.05 | K201: 139.45 | L201: 135 | M201: 2.03773
A202: 193 | B202: HERITGFOOD | C202: 507.55 | D202: 502.85 | E202: 494.70 | F202: 481.85 | G202: 473.70 | H202: 515.70 | I202: 523.85 | J202: 536.70 | K202: 511 | L202: 490 | M202: 0.11662
A203: 194 | B203: HEROMOTOCO | C203: 2763.5 | D203: 2787.88 | E203: 2688.77 | F203: 2614.03 | G203: 2514.92 | H203: 2862.62 | I203: 2961.73 | J203: 3036.47 | K203: 2887 | L203: 2713.15 | M203: 11.72793
A204: 195 | B204: HEXAWARE | C204: 408.9 | D204: 415.23 | E204: 398.67 | F204: 388.43 | G204: 371.87 | H204: 425.47 | I204: 442.03 | J204: 452.27 | K204: 431.8 | L204: 405 | M204: 14.97192
A205: 196 | B205: HFCL | C205: 19.05 | D205: 19.22 | E205: 18.73 | F205: 18.42 | G205: 17.93 | H205: 19.53 | I205: 20.02 | J205: 20.33 | K205: 19.7 | L205: 18.9 | M205: 48.00968
A206: 197 | B206: HIMATSEIDE | C206: 229.8 | D206: 231.27 | E206: 226.53 | F206: 223.27 | G206: 218.53 | H206: 234.53 | I206: 239.27 | J206: 242.53 | K206: 236 | L206: 228 | M206: 1.37447
... 304 more rows

Sheet Bulk Deals
E6: Back To Main Page
A7: Subject : | B7: BULK DEAL | D7: =Main!B10 -> 2018-10-05
A9: Date | B9: Scrip code | C9: Scrip Name | D9: Client Name | E9: Buy / Sell | F9: Quantity Traded | G9: Trade Price / Wt.Avg.trade price | H9: Exchange
A10: 2018-10-04 | B10: 541152 | C10: ADVITIYA | D10: VAGABOUND TRADEX PRIVATE LIMITED | E10: BUY | F10: 96,000 | G10: 15.06 | H10: BSE
A11: 2018-10-04 | B11: 541152 | C11: ADVITIYA | D11: R S SERVICES PRIVATE LIMITED | E11: SELL | F11: 96,000 | G11: 15.06 | H11: BSE
A12: 2018-10-04 | B12: 538566 | C12: APOLLOTRI | D12: SAKET AGRAWAL | E12: SELL | F12: 1,250,000 | G12: 114 | H12: BSE
A13: 2018-10-04 | B13: 538566 | C13: APOLLOTRI | D13: REENA SINGHAL | E13: BUY | F13: 825,000 | G13: 114 | H13: BSE
A14: 2018-10-04 | B14: 538566 | C14: APOLLOTRI | D14: LAKSHAY SINGHAL | E14: BUY | F14: 425,000 | G14: 114 | H14: BSE
A15: 2018-10-04 | B15: 537766 | C15: BCP | D15: JITAL ASHISH THAKER | E15: SELL | F15: 320,000 | G15: 31.44 | H15: BSE
A16: 2018-10-04 | B16: 504646 | C16: BGWTATO | D16: REENA PRAVIN BHAGWATI | E16: BUY | F16: 21,000 | G16: 120.4 | H16: BSE
A17: 2018-10-04 | B17: 523696 | C17: FORTISMLR | D17: BASUDEO AGRAWAL | E17: SELL | F17: 100,000 | G17: 51.83 | H17: BSE
A18: 2018-10-04 | B18: 541974 | C18: MANORAMA | D18: INDIA MAX INVESTMENT FUND LIMITED | E18: SELL | F18: 102,600 | G18: 192.63 | H18: BSE
A19: 2018-10-04 | B19: 538401 | C19: METSL | D19: ALCHEMY URBANVENTURES PRIVATE LIMITED | E19: BUY | F19: 30,000 | G19: 38.05 | H19: BSE
A20: 2018-10-04 | B20: 538401 | C20: METSL | D20: RAJASTHAN GLOBAL SECURITIES PRIVATE LIMITED | E20: SELL | F20: 29,345 | G20: 38.05 | H20: BSE
A21: 2018-10-04 | B21: 531456 | C21: MINAXI | D21: MUKESH P PATEL | E21: BUY | F21: 452,958 | G21: 0.91 | H21: BSE
A22: 2018-10-04 | B22: 531456 | C22: MINAXI | D22: KALPANABEN NAYANKUMAR SHAH | E22: SELL | F22: 345,620 | G22: 0.91 | H22: BSE
A23: 2018-10-04 | B23: 531512 | C23: ORIENTTR | D23: MANOJ KUMAR NIROLA | E23: SELL | F23: 100,000 | G23: 7.46 | H23: BSE
A24: 2018-10-04 | B24: 531512 | C24: ORIENTTR | D24: AKSHAY ARORA | E24: SELL | F24: 60,000 | G24: 7.46 | H24: BSE
A25: 2018-10-04 | B25: 531512 | C25: ORIENTTR | D25: RAVINDER KAUR BEDI | E25: BUY | F25: 105,000 | G25: 7.46 | H25: BSE
A26: 2018-10-04 | B26: 539520 | C26: SHAILJA | D26: SWAMINATHAN KRISHNAN | E26: SELL | F26: 16,870 | G26: 20.29 | H26: BSE
A27: 2018-10-04 | B27: 539520 | C27: SHAILJA | D27: SWAMINATHAN KRISHNAN | E27: BUY | F27: 21,642 | G27: 19.71 | H27: BSE
A28: 2018-10-04 | B28: 541967 | C28: SKYGOLD | D28: JIGNESH AMRUTLAL THOBHANI | E28: SELL | F28: 44,000 | G28: 180.45 | H28: BSE
A29: 2018-10-04 | B29: 541967 | C29: SKYGOLD | D29: CNETLINGO MARKETING PRIVATE LIMITED | E29: BUY | F29: 44,000 | G29: 180.45 | H29: BSE
A30: 2018-10-04 | B30: 541967 | C30: SKYGOLD | D30: OVERSKUD MULTI ASSET MANAGEMENT PRIVATE LIMITED | E30: SELL | F30: 6,400 | G30: 181 | H30: BSE
A31: 2018-10-04 | B31: 541967 | C31: SKYGOLD | D31: OVERSKUD MULTI ASSET MANAGEMENT PRIVATE LIMITED | E31: BUY | F31: 62,400 | G31: 180.44 | H31: BSE
A32: 2018-10-04 | B32: 526951 | C32: STYLAMIND | D32: NICHE FINANCIAL SERVICES PVT LTD . | E32: BUY | F32: 48,000 | G32: 598.48 | H32: BSE
A33: 2018-10-04 | B33: 526951 | C33: STYLAMIND | D33: INDIANIVESH CAPITALS LIMITED | E33: SELL | F33: 48,001 | G33: 598.48 | H33: BSE
A34: 2018-10-04 | B34: 526951 | C34: STYLAMIND | D34: INDIANIVESH CAPITALS LIMITED | E34: BUY | F34: 1 | G34: 599.95 | H34: BSE
A35: 2018-10-04 | B35: 512064 | C35: VISTR | D35: NAVNEET JEEVANLAL DAMMANI | E35: SELL | F35: 1,500 | G35: 46.4 | H35: BSE
A36: 2018-10-04 | B36: 512064 | C36: VISTR | D36: M M GANDHI | E36: BUY | F36: 2,815 | G36: 46.4 | H36: BSE
A37: 2018-10-04 | B37: AGROPHOS | C37: Agro Phos India Limited | D37: SAH FINTRADES | E37: BUY | F37: 114,000 | G37: 34.5 | H37: NSE
A38: 2018-10-04 | B38: JETAIRWAYS | C38: Jet Airways (India) Ltd. | D38: ALPHAGREP SECURITIES PRIVATE LIMITED | E38: BUY | F38: 1,084,531 | G38: 185.13 | H38: NSE
A39: 2018-10-04 | B39: JETAIRWAYS | C39: Jet Airways (India) Ltd. | D39: CROSSLAND TRADING CO | E39: BUY | F39: 721,171 | G39: 189.66 | H39: NSE
A40: 2018-10-04 | B40: JETAIRWAYS | C40: Jet Airways (India) Ltd. | D40: SHAASTRA SECURITIES TRADING PRIVATE LIMITED | E40: BUY | F40: 1,276,924 | G40: 185.33 | H40: NSE
A41: 2018-10-04 | B41: NAVKARCORP | C41: Navkar Corporation Ltd. | D41: RELIANCE MUTUAL FUND A/C RELIANCE SMALL CAP FUND | E41: BUY | F41: 3,500,000 | G41: 78 | H41: NSE
A42: 2018-10-04 | B42: RCOM | C42: Reliance Comm. Ltd. | D42: SHAASTRA SECURITIES TRADING PRIVATE LIMITED | E42: BUY | F42: 18,072,775 | G42: 12.11 | H42: NSE
A43: 2018-10-04 | B43: SPECTRUM | C43: Spectrum Electric Ind Ltd | D43: ARIHANT CAPITAL MARKETS LIMITED | E43: BUY | F43: 202,000 | G43: 65.19 | H43: NSE
A44: 2018-10-04 | B44: SPECTRUM | C44: Spectrum Electric Ind Ltd | D44: FESTINO VINCOM LIMITED | E44: BUY | F44: 200,000 | G44: 65.1 | H44: NSE
A45: 2018-10-04 | B45: SPECTRUM | C45: Spectrum Electric Ind Ltd | D45: FESTINO VINCOM LIMITED | E45: BUY | F45: 382,000 | G45: 65 | H45: NSE
A46: 2018-10-04 | B46: SUPREMEINF | C46: Supreme Infrastructure In | D46: NICHE FINANCIAL SERVICES PVT LTD | E46: BUY | F46: 180,000 | G46: 23.6 | H46: NSE
A47: 2018-10-04 | B47: VIJIFIN | C47: Viji Finance Limited | D47: IFL PROMOTERS LIMITED | E47: BUY | F47: 450,000 | G47: 3.73 | H47: NSE
A48: 2018-10-04 | B48: A2ZINFRA | C48: A2z Infra Engineering Ltd | D48: GLOBE FINCAP LTD | E48: SELL | F48: 1,140,000 | G48: 8.34 | H48: NSE
A49: 2018-10-04 | B49: JETAIRWAYS | C49: Jet Airways (India) Ltd. | D49: ALPHAGREP SECURITIES PRIVATE LIMITED | E49: SELL | F49: 1,084,531 | G49: 185.22 | H49: NSE
A50: 2018-10-04 | B50: JETAIRWAYS | C50: Jet Airways (India) Ltd. | D50: CROSSLAND TRADING CO | E50: SELL | F50: 721,171 | G50: 189.77 | H50: NSE
A51: 2018-10-04 | B51: JETAIRWAYS | C51: Jet Airways (India) Ltd. | D51: SHAASTRA SECURITIES TRADING PRIVATE LIMITED | E51: SELL | F51: 1,276,924 | G51: 185.52 | H51: NSE
A52: 2018-10-04 | B52: NAVKARCORP | C52: Navkar Corporation Ltd. | D52: GOLDMAN SACHS INDIA FUND LTD | E52: SELL | F52: 3,980,018 | G52: 78 | H52: NSE
A53: 2018-10-04 | B53: RCOM | C53: Reliance Comm. Ltd. | D53: SHAASTRA SECURITIES TRADING PRIVATE LIMITED | E53: SELL | F53: 18,072,775 | G53: 12.12 | H53: NSE
A54: 2018-10-04 | B54: SPECTRUM | C54: Spectrum Electric Ind Ltd | D54: HARSHA RAJESHBHAI JHAVERI | E54: SELL | F54: 110,000 | G54: 64.99 | H54: NSE
A55: 2018-10-04 | B55: SPECTRUM | C55: Spectrum Electric Ind Ltd | D55: SAGAR RAJESHBHAI JHAVERI | E55: SELL | F55: 114,000 | G55: 65 | H55: NSE
A56: 2018-10-04 | B56: SPECTRUM | C56: Spectrum Electric Ind Ltd | D56: VRUJAL SAGAR JHAVERI | E56: SELL | F56: 164,000 | G56: 65 | H56: NSE
A57: 2018-10-04 | B57: SUPREMEINF | C57: Supreme Infrastructure In | D57: INDIANIVESH CAPITALS LIMITED | E57: SELL | F57: 188,789 | G57: 23.59 | H57: NSE
A58: 2018-10-04 | B58: TCIFINANCE | C58: TCI Finance Limited | D58: CAMPBELL ADVERTISING PVT LTD | E58: SELL | F58: 95,000 | G58: 15.51 | H58: NSE

Sheet Call Tracker (Equity & F&O)
M5: Back To Main Page
A6: Retail Research Technical Calls & Fundamental Performance Report for the month of October -2018
M7: =Main!B10 -> 2018-10-05
B8: Positional Call
A9: Sr.no | B9: Date | D9: Company | E9: Rec | F9: Rec Price | G9: Stop Loss*** | H9: Call Closed At | I9: Target | J9: Remark | K9: Profit / Loss per Share | L9: Gain / Loss % | M9: Status | N9: Closed Date | O9: NSE Closed Price
A10: 1 | B10: 2018-09-24 | D10: SUNPHARMA | E10: Buy | F10: 632.5 | G10: 610 | H10: 605 | I10: 670-680 | J10: Loss of Rs. 27.50/- | K10: =H10-F10 -> -27.5 | L10: =K10/F10 -> -4.35% | M10: Unsuccessful | N10: 2018-10-04 | R10: H
A11: 2 | B11: 2018-09-26 | D11: SBIN | E11: Buy | F11: 266 | G11: 249.7 | H11: 274.5 | I11: 285-295 | J11: Profit of Rs. 8.50/- | K11: =H11-F11 -> 8.5 | L11: =K11/F11 -> 3.20% | M11: Successful | N11: 2018-10-01 | R11: R
A12: 3 | B12: 2018-09-27 | D12: ITC | E12: Buy | F12: 291.5 | G12: 278 | H12: 301.5 | I12: 320 | J12: Profit of Rs. 10/- | K12: 10 | L12: =K12/F12 -> 3.43% | M12: Successful | N12: 2018-10-01 | R12: H
A13: 4 | B13: 2018-09-28 | D13: RBLBANK | E13: Buy | F13: 520 | G13: 499 | H13: 538 | I13: 570-580 | J13: Profit of Rs. 18/- | K13: 18 | L13: =K13/F13 -> 3.46% | M13: Successful | N13: 2018-10-03 | R13: H
A14: 5 | B14: 2018-09-28 | D14: PIDILITIND | E14: Buy | F14: 1049.5 | G14: 1017.7 | H14: 998 | I14: 1100-1120 | J14: Loss of Rs. 51.50/- | K14: -51.5 | L14: =K14/F14 -> -4.91% | M14: Unsuccessful | N14: 2018-10-03 | R14: R
A15: 6 | B15: 2018-10-01 | D15: M&MFIN | E15: Buy | F15: 400 | G15: 379 | H15: 414 | I15: 440 | J15: Profit of Rs. 14/- | K15: 14 | L15: =K15/F15 -> 3.50% | M15: Successful | N15: 2018-10-01 | R15: H
A16: 7 | B16: 2018-10-01 | D16: CONCOR | E16: Buy | F16: 634 | G16: 598.7 | H16: 659 | I16: 690-700 | J16: Profit of Rs. 25/- | K16: 25 | L16: 3.94% | M16: Successful | N16: 2018-10-01 | R16: R
A17: 8 | B17: 2018-10-03 | D17: SUDARSCHEM | E17: Buy | F17: 402 | G17: 384.4 | H17: 384.4 | I17: 430-440 | J17: Loss of Rs. 17.60/- | K17: =H17-F17 -> -17.6 | L17: -4.38% | M17: Unsuccessful | N17: 2018-10-04 | R17: R
A18: 9 | B18: 2018-10-03 | D18: CEATLTD | E18: Buy | F18: 1133 | G18: 1078 | H18: 1073 | I18: 1200-1220 | J18: Loss of Rs. 60/- | K18: =H18-F18 -> -60 | L18: =K18/F18 -> -5.30% | M18: Unsuccessful | N18: 2018-10-04 | R18: H
A19: 10 | B19: 2018-10-03 | D19: INDUSINDBK | E19: Buy | F19: 1655 | G19: 1597.7 | H19: 1570 | I19: 1760-1780 | J19: Loss of Rs. 85/- | K19: =H19-F19 -> -85 | L19: =K19/F19 -> -5.14% | M19: Unsuccessful | N19: 2018-10-04 | R19: R
A20: 11 | B20: 2018-10-04 | D20: RBLBANK | E20: Buy | F20: 510-515 | G20: 489 | I20: 550-560 | J20: Open | R20: H
A31: CLBS = Closing Basis *** | F31: Reinitiated $
A32: Dividend adjusted <> | F32: Revised stoploss #
A33: Part book {}
A34: Master Trade High Risk
A35: Sr.no | B35: Date | D35: Company | E35: Rec | F35: Rec Price | G35: Stop Loss | H35: Call Closed At | I35: Target | J35: Remark | K35: Profit / Loss per share | L35: Gain / Loss per Lot | M35: Lot | N35: Status | O35: Closed Date
A36: 1 | B36: 2018-09-28 | D36: HDFCBANK OCT FUT | E36: Buy | F36: 2020 | G36: 1980 | H36: 2051.5 | I36: 2100 | J36: Profit of Rs 19.50/- | K36: =H36-F36 -> 31.5 | L36: 9750 | M36: 500 | N36: Successful | O36: 2018-10-01 | R36: H
D37: HDFCBANK OCT 2060 CE | E37: Sell | F37: 23 | H37: 35 | K37: =F37-H37 -> -12
A38: 2 | B38: 2018-10-01 | D38: NIFTY OCT FUT | E38: Buy | F38: 10920 | G38: 10780 | H38: 11030 | I38: 11200 | J38: Profit of Rs 85/- | K38: =H38-F38 -> 110 | L38: 6375 | M38: 75 | N38: Successful | O38: 2018-10-01 | R38: H
D39: NIFTY OCT 11100 CE | E39: Sell | F39: 112.5 | H39: 137.5 | K39: =F39-H39 -> -25
A40: 3 | B40: 2018-10-03 | D40: NIFTY OCT FUT | E40: Buy | F40: 10952.5 | G40: 10850 | H40: 10780 | I40: 11150 | J40: Loss of Rs.172.5/- | K40: =H40-F40 -> -172.5 | L40: =M40*K40 -> -12937.5 | M40: 75 | N40: Unsuccessful | O40: 2018-10-04 | R40: H
A41: 4 | B41: 2018-10-03 | D41: MARUTI OCT FUT | E41: Buy | F41: 7300-7320 | G41: 7117 | I41: 7650-7700 | J41: Open | R41: R
A42: 5 | B42: 2018-10-03 | D42: RELIANCE OCT FUT | E42: Buy | F42: 1222.5 | G42: 1195 | H42: 1195 | I42: 1270-1280 | J42: Loss of Rs.16/- | K42: =H42-F42 -> -27.5 | L42: =-16*M42 -> -16000 | M42: 1000 | N42: Unsuccessful | O42: 2018-10-04 | R42: H
D43: RELIANCE OCT 1260 CE | E43: Sell | F43: 26 | H43: 14.5 | K43: =F43-H43 -> 11.5
A49: Master Trade Medium Risk
A50: Sr.no | B50: Date | D50: Company | E50: Rec | F50: Rec Price | G50: Stop Loss | H50: Call Closed At | I50: Target | J50: Remark | K50: Profit/ Loss per lot | L50: Gain / Loss per Lot | M50: Lot | N50: Status | O50: Closed Date
B63: Smart Delivery Trade
A64: Sr.no | B64: Date | D64: Company | E64: Rec | F64: Rec Price | G64: Stop Loss*** | H64: Call Closed At | I64: Target | J64: Remark | K64: Profit / Loss per Share | L64: Gain / Loss % | M64: Status | N64: Closed Date | O64: NSE Closed Price
A65: 1 | B65: 2018-09-27 | D65: COLPAL | E65: Buy | F65: 1090-1098 | G65: 1058 | I65: 1140-1160 | J65: Open | O65: =VLOOKUP(D65,Sheet2!$A$1:M2262,6,0) -> 1068.9 | R65: H
A66: 2 | B66: 2018-10-03 | D66: BAJFINACE | E66: Buy | F66: 2210 | G66: 2140 | H66: 2275 | I66: 2300-2350 | J66: Profit of Rs. 65/- | K66: =H66-F66 -> 65 | L66: =K66/F66 -> 2.94% | M66: Successful | N66: 2018-10-03 | R66: H
A67: 3 | B67: 2018-10-03 | D67: ADVENZYMES | E67: Buy | F67: 185-187 | G67: 179.7 | I67: 197-200 | J67: Open | O67: =VLOOKUP(D67,Sheet2!$A$1:M2264,6,0) -> 181.15 | R67: R
A68: 4 | B68: 2018-10-03 | D68: LT | E68: Buy | F68: 1249.5 | G68: 1195 | H68: 1277.5 | I68: 1330-1350 | J68: Profit of Rs. 28/- | K68: =H68-F68 -> 28 | L68: =K68/F68 -> 2.24% | M68: Successful | N68: 2018-10-04 | R68: H
A69: 5 | B69: 2018-10-04 | D69: BAJFINANCE | E69: Buy | F69: 2170-2190 | G69: 2135 | I69: 2250-2300 | J69: Open | R69: H
A74: CLBS = Closing Basis *** | F74: Reinitiated $
A75: Dividend adjusted <> | F75: Revised stoploss #
B78: Momentum Call
A79: Sr.no | B79: Date | D79: Company | E79: Rec | F79: Rec Price | G79: Stop Loss | H79: Call Closed At | I79: Target | J79: Remark | K79: Profit / Loss per Share/Lot | L79: Gain / Loss % | M79: Gain / Loss per Lot | N79: Lot | O79: Status | P79: Closed Date | Q79: NSE Closed Price
A80: 1 | B80: 2018-10-01 | D80: INFRATEL OCT FUT | E80: Buy | F80: 268 | G80: 260 | H80: 260 | I80: 282 | J80: Loss of Rs.8/- | K80: =H80-F80 -> -8 | M80: =N80*K80 -> -13600 | N80: 1700 | O80: Unsuccessful | P80: 2018-10-03 | R80: N
A81: 2 | B81: 2018-10-03 | D81: TATASTEEL OCT FUT | E81: Buy | F81: 591.5 | G81: 579 | H81: 578 | I81: 610 | J81: Loss of Rs.13.5/- | K81: =H81-F81 -> -13.5 | M81: =N81*K81 -> -14323.5 | N81: 1061 | O81: Unsuccessful | P81: 2018-10-04 | R81: N
A82: 3 | B82: 2018-10-03 | D82: UPL OCT FUT | E82: Buy | F82: 647 | G82: 636 | H82: 640 | I82: 665-670 | J82: Loss of Rs.7/- | K82: =H82-F82 -> -7 | M82: =N82*K82 -> -8400 | N82: 1200 | O82: Unsuccessful | P82: 2018-10-04 | R82: N
A89: CLBS = Closing Basis ***
A90: Dividend adjusted <> | F90: Reinitiated $
F91: Revised stoploss #
B92: Quick Pick Intraday
A93: Sr.no | B93: Date | D93: Company | E93: Rec | F93: Rec Price | G93: Stop Loss*** | H93: Call Closed At | I93: Target | J93: Remark | K93: Profit / Loss per Share | L93: Status | M93: Closed Date
A107: Techno -Funda (positional)
A108: Sr.no | B108: Date | D108: Company | E108: Rec | F108: Rec Price | G108: Stop Loss*** | H108: Call Closed At | I108: Target | J108: Remark | K108: Profit / Loss per Share | L108: Gain / Loss % | M108: Status | N108: Closed Date | O108: NSE Closed Price
A111: CLBS = Closing Basis *** | F111: Reinitiated $
A112: Dividend adjusted <> | F112: Revised stoploss #
B117: Investment Idea
A118: Sr.no | B118: Date | D118: Company | E118: Rec | F118: Rec Price | G118: Point of Review | H118: Close Rate | I118: Target | J118: Remark | K118: Profit / Loss per Share | L118: Gain / Loss % | M118: Status | N118: Closed Date
A119: 1 | B119: 2013-11-01 | D119: L&T Finance Holding | E119: Accu | F119: 82.00 | G119: - | H119: 100 | I119: 100.00 | J119: Target Achieved | K119: =H119-F119 -> 18.00 | L119: =K119/F119 -> 21.95% | M119: Successful | N119: 2016-10-14
A120: 2 | B120: 2014-06-04 | D120: Finolex Inds | E120: Buy | F120: 257.00 | G120: - | H120: 300 | I120: 300.00 | J120: Target Achieved | K120: =H120-F120 -> 43.00 | L120: 16.73% | M120: Successful | N120: 2014-07-02
A121: =1+A120 -> 3 | B121: 2014-07-08 | D121: JK Cement | E121: Buy | F121: 393.00 | G121: - | H121: 468 | I121: 468.00 | J121: Target Achieved | K121: =H121-F121 -> 75.00 | L121: 19.08% | M121: Successful | N121: 2014-08-12
A122: 4 | B122: 2014-08-06 | D122: Finolex Cables | E122: Buy | F122: 205.00 | G122: - | H122: 275 | I122: 250.00 | J122: Target Achieved | K122: 70.00 | L122: 34.15% | M122: Successful | N122: 2014-11-19
A123: 5 | B123: 2014-09-04 | D123: Exide Inds | E123: Buy | F123: 162.00 | G123: - | H123: 190 | I123: 190.00 | J123: Target Achieved | K123: 28.00 | L123: 17.28% | M123: Successful | N123: 2015-01-02
A124: 6 | B124: 2014-09-04 | D124: Deepak Nitrite | E124: Buy | F124: 75.00 | G124: - | H124: 91.5 | I124: 95-100 | J124: Profit of Rs.16.50/- | K124: 16.50 | L124: 22.00% | M124: Successful | N124: 2014-11-11
A125: 7 | B125: 2014-10-01 | D125: Mercks | E125: Buy | F125: 850.00 | G125: - | H125: 982.5 | I125: 1050.00 | J125: Profit of Rs.132.50/- | K125: 132.50 | L125: 15.59% | M125: Successful | N125: 2015-02-04
A126: 8 | B126: 2014-10-01 | D126: Grindwell Norton | E126: Buy | F126: 475.00 | G126: - | H126: 515 | I126: 600.00 | J126: Profit of Rs.40/- | K126: 40.00 | L126: 8.42% | M126: Successful | N126: 2014-10-27
A127: 9 | B127: 2014-10-01 | D127: Snowman Logistics | E127: Buy | F127: 86.00 | G127: - | H127: 99 | I127: 140.00 | J127: Profit of Rs.13.00/- | K127: 13.00 | L127: 15.12% | M127: Successful | N127: 2014-10-27
A128: 10 | B128: 2014-10-14 | D128: Birla Corp | E128: Buy | F128: 496.60 | G128: - | H128: 621 | I128: 580.00 | J128: Target Achieved | K128: 124.40 | L128: 25.05% | M128: Successful | N128: 2016-08-23
A129: 11 | B129: 2014-10-14 | D129: Ultratech Cem | E129: Buy | F129: 2481.90 | G129: - | H129: 2840 | I129: 2870.00 | J129: Profit of Rs.358.10/- | K129: 358.10 | L129: 14.43% | M129: Successful | N129: 2015-01-13
A130: =1+A127 -> 10 | B130: 2014-10-16 | D130: Sintex Inds | E130: Buy | F130: 84.50 | G130: - | H130: 93 | I130: 110.00 | J130: Profit of Rs.8.50/- | K130: 8.50 | L130: 10.06% | M130: Successful | N130: 2014-10-27
A131: =1+A130 -> 11 | B131: 2014-10-16 | D131: HSIL | E131: Buy | F131: 401.00 | G131: - | H131: 428 | I131: 450.00 | J131: Profit of Rs.27.00/- | K131: 27.00 | L131: 6.73% | M131: Successful | N131: 2015-01-16
A132: 12 | B132: 2014-10-16 | D132: Eveready Inds | E132: Buy | F132: 101.00 | G132: - | H132: 112 | I132: 120.00 | J132: Profit of Rs.11.00/- | K132: 11.00 | L132: 10.89% | M132: Successful | N132: 2014-10-27
A133: 13 | B133: 2014-11-11 | D133: Pennar Inds | E133: Buy | F133: 59.00 | G133: - | H133: 76 | I133: 76.00 | J133: Target Achieved | K133: 17.00 | L133: 28.81% | M133: Successful | N133: 2017-10-24
A134: 14 | B134: 2014-11-11 | D134: Snowman Logistics | E134: Buy | F134: 99.00 | G134: - | H134: 120 | I134: 120.00 | J134: Profit of Rs.21/- | K134: 21.00 | L134: 21.21% | M134: Successful | N134: 2014-11-17
A135: 15 | B135: 2014-11-13 | D135: Dharamsi Morarji Chem | E135: Buy | F135: 22.00 | G135: - | H135: 33.55 | I135: 32.00 | J135: Profit of Rs 11.55/- | K135: 11.55 | L135: 52.50% | M135: Successful | N135: 2015-07-03
A136: 16 | B136: 2014-12-03 | D136: Tatachem | E136: Buy | F136: 440.00 | G136: - | H136: 520 | I136: 520.00 | J136: Profit of Rs 80.00/- | K136: 80.00 | L136: 18.18% | M136: Successful | N136: 2015-07-23
A137: 17 | B137: 2014-12-03 | D137: Advanta | E137: Buy | F137: 360.00 | G137: - | H137: 427 | I137: 425.00 | J137: Profit of Rs.67.00/- | K137: 67.00 | L137: 18.61% | M137: Successful | N137: 2015-02-23
A138: 18 | B138: 2015-01-08 | D138: GDL | E138: Buy | F138: 360.00 | G138: - | H138: 455 | I138: 420.00 | J138: Profit of Rs.95.00/- | K138: 95.00 | L138: 26.39% | M138: Successful | N138: 2015-01-20
A139: 19 | B139: 2015-01-08 | D139: NRB Bearing | E139: Buy | F139: 130.00 | H139: 175.5 | I139: 165.00 | J139: Profit of Rs 45.50/- | K139: 45.50 | L139: 35.00% | M139: Successful | N139: 2017-12-19
A140: 20 | B140: 2015-02-05 | D140: GSFC | E140: Accu | F140: 98.00 | H140: 120 | I140: 120.00 | J140: Target Achieved | K140: 22.00 | L140: 22.45% | M140: Successful | N140: 2017-01-18
A141: 21 | B141: 2015-02-05 | D141: Sundrmfast | E141: Accu | F141: 196.00 | H141: 262 | I141: 255.00 | J141: Target Achieved | K141: 66.00 | L141: 33.67% | M141: Successful | N141: 2016-08-17
A142: 22 | B142: 2015-03-04 | D142: GPPL | E142: Accu | F142: 230-240 | I142: 280-285 | J142: Open
A143: 23 | B143: 2015-03-04 | D143: ORIENTCEM | E143: Accu | F143: 185.00 | H143: 224 | I143: 220-225 | J143: Target Achieved | K143: 39.00 | L143: =K143/F143 -> 21.08% | M143: Successful | N143: 2016-10-04
A144: 24 | B144: 2015-03-27 | D144: PFS | E144: Accu | F144: 49-50 | I144: 67.00 | J144: Open
A145: 25 | B145: 2015-03-30 | D145: Walchandnagar Ind Ltd | E145: Accu | F145: 183.50 | H145: 219 | I145: 218.00 | J145: Profit of Rs.35.50/- | K145: 35.50 | L145: =K145/F145 -> 19.35% | M145: Successful | N145: 2015-04-09
A146: 26 | B146: 2015-04-20 | D146: Kalpataru Power Transmission Ltd | E146: Accu | F146: =(227+237)/2 -> 232.00 | H146: 298 | I146: 298.00 | J146: Target Achieved | K146: 66.00 | L146: 28.45% | M146: Successful | N146: 2017-03-29
A147: 27 | B147: 2015-05-04 | D147: Mastek Ltd | E147: Buy | F147: 385.00 | H147: =212.5+331 -> 543.5 | I147: 510.00 | J147: Profit of Rs 158.50/- | K147: 158.50 | L147: 41.17% | M147: Successful | N147: 2015-08-19
A148: 28 | B148: 2015-05-04 | D148: Suprajit Eng | E148: Buy | F148: 115.50 | H148: 146 | I148: 142.00 | J148: Profit of Rs 30.50/- | K148: 30.50 | L148: 26.41% | M148: Successful | N148: 2015-07-17
A149: 29 | B149: 2015-05-27 | D149: TCI | E149: Buy | F149: 237.50 | H149: 279.5 | I149: 278.00 | J149: Target Achieved | K149: 42.00 | L149: 17.68% | M149: Successful | N149: 2015-08-06
A150: 30 | B150: 2015-06-19 | D150: HSIL | E150: Accu | F150: 340.00 | H150: 448 | I150: 448.00 | J150: Target Achieved | K150: 108.00 | L150: 31.76% | M150: Successful | N150: 2017-10-10
A151: 31 | B151: 2015-07-06 | D151: Capital First | E151: Accu | F151: 390.00 | H151: 460 | I151: 460.00 | J151: Target Achieved | K151: 70.00 | L151: 17.95% | M151: Successful | N151: 2016-04-18
A152: 32 | B152: 2015-07-10 | D152: Dolphin OffShore | E152: Accu | F152: 122.5 | H152: 61.00 | I152: 172.00 | J152: Loss of Rs.61.50/- | K152: -61.50 | L152: -50.20% | M152: Unsuccessful | N152: 2018-08-21
A153: 33 | B153: 2015-08-03 | D153: Allcargo logistics | E153: Accu | F153: 297.50 | H153: 350 | I153: 360.00 | J153: Profit of Rs 52.50/- | K153: 52.50 | L153: =K153/F153 -> 17.65% | M153: Successful | N153: 2015-08-16
A154: 34 | B154: 2015-08-03 | D154: Camline Fine | E154: Accu | F154: 115.50 | H154: 149 | I154: 140.00 | J154: Profit of Rs 33.50/- | K154: 33.50 | L154: 29.00% | M154: Successful | N154: 2017-01-05
A155: 35 | B155: 2015-09-04 | D155: TCI | E155: Accu | F155: 226.00 | H155: 292 | I155: 292.00 | J155: Target Achieved | K155: 66.00 | L155: 29.20% | M155: Successful | N155: 2015-10-09
A156: 36 | B156: 2015-09-07 | D156: Kalpataru Power Transmission Ltd | E156: Accu | F156: 232.50 | H156: 312.5 | I156: 310.00 | J156: Target Achieved | K156: 80.00 | L156: 34.41% | M156: Successful | N156: 2017-03-29
A157: 37 | B157: 2015-09-21 | D157: LLOYD ELECTRIC & ENG LTD | E157: Accu | F157: 196.50 | H157: 238 | I157: 238.00 | J157: Target Achieved | K157: 41.50 | L157: 21.12% | M157: Successful | N157: 2015-10-14
A158: 38 | B158: 2015-09-24 | D158: L&T Finance Holding | E158: Accu | F158: 65.00 | H158: 82 | I158: 82.00 | J158: Target Achieved | K158: 17.00 | L158: 26.15% | M158: Successful | N158: 2016-07-27
A159: 39 | B159: 2015-10-14 | D159: KEC International ltd | E159: Accu | F159: 144.00 | H159: 182.5 | I159: 181.00 | J159: Target Achieved | K159: 38.50 | L159: 26.74% | M159: Successful | N159: 2017-03-23
A160: 40 | B160: 2015-10-14 | D160: Gruh Finance | E160: Accu | F160: 264.00 | H160: 311 | I160: 311.00 | J160: Target Achieved | K160: 47.00 | L160: 17.80% | M160: Successful | N160: 2016-08-22
A161: 41 | B161: 2015-11-10 | D161: Pidilitind | E161: Buy | F161: 549.50 | H161: 630 | I161: 630.00 | J161: Target Achieved | K161: 80.50 | L161: 14.65% | M161: Successful | N161: 2016-02-19
A162: 42 | B162: 2015-12-04 | D162: Zensar Technology | E162: Accu | F162: 1027.50 | H162: 1315 | I162: 1250.00 | J162: Target Achieved | K162: =H162-F162 -> 287.50 | L162: 27.98% | M162: Successful | N162: 2018-05-24
A163: 43 | B163: 2015-12-29 | D163: Vinati Organics Ltd | E163: Accu | F163: 465.00 | H163: 540 | I163: 540.00 | J163: Target Achieved | K163: 75.00 | L163: =K163/F163 -> 16.13% | M163: Successful | N163: 2016-06-09
A164: 44 | B164: 2016-01-11 | D164: GSFC | E164: Buy | F164: 81.00 | H164: 110 | I164: 110.00 | J164: Target Achieved | K164: 29.00 | L164: 35.80% | M164: Successful | N164: 2017-01-10
A165: 45 | B165: 2016-01-13 | D165: SSWL | E165: Buy | F165: 417.50 | H165: 547 | I165: 535.00 | J165: Target Achieved | K165: 129.50 | L165: 31.02% | M165: Successful | N165: 2016-07-27
A166: 46 | B166: 2016-02-08 | D166: Persistent System Ltd | E166: Accu | F166: 650.00 | H166: 800 | I166: 800.00 | J166: Target Achieved | K166: 150.00 | L166: 23.08% | M166: Successful | N166: 2018-02-23
A167: 47 | B167: 2016-03-04 | D167: UPL | E167: Accu | F167: 437.50 | H167: 504.5 | I167: 522.00 | J167: Profit of Rs.67/- | K167: 67.00 | L167: 15.31% | M167: Successful | N167: 2016-04-20
A168: 48 | B168: 2016-03-09 | D168: Ashoka Buildcon Ltd | E168: Accu | F168: 189.50 | H168: 218 | I168: 218.00 | J168: Target Achieved | K168: 28.50 | L168: 15.04% | M168: Successful | N168: 2017-10-26
A169: 49 | B169: 2016-04-11 | D169: PTC INDIA FIN SERV LTD | E169: Accu | F169: 36-37 | I169: 60.00 | J169: Open
A170: 50 | B170: 2016-04-12 | D170: CAMLINFINE $ | E170: Accu | F170: 93.00 | H170: 149 | I170: 140.00 | J170: Profit of Rs 56/- | K170: 56.00 | L170: =K170/F170 -> 60.22% | M170: Successful | N170: 2017-01-05
A171: 51 | B171: 2016-04-12 | D171: Greaves Cotton Ltd. | E171: Accu | F171: 130.00 | H171: 150 | I171: 150-155 | J171: Target Achieved | K171: 20.00 | L171: 15.38% | M171: Successful | N171: 2016-07-13
A172: 52 | B172: 2016-04-13 | D172: DHFL | E172: Accu | F172: 196.00 | H172: 299 | I172: 299.00 | J172: Target Achieved | K172: 103.00 | L172: 52.55% | M172: Successful | N172: 2016-09-07
A173: 53 | B173: 2016-04-13 | D173: Magma | E173: Accu | F173: 88.00 | H173: 103 | I173: 103.00 | J173: Target Achieved | K173: 15.00 | L173: 17.05% | M173: Successful | N173: 2016-06-09
A174: 54 | B174: 2016-05-02 | D174: KEC International ltd $ | E174: Accu | F174: 127.50 | H174: 148 | I174: 148-150 | J174: Target Achieved | K174: 20.50 | L174: 16.08% | M174: Successful | N174: 2016-07-13
A175: 55 | B175: 2016-05-03 | D175: Mindtree | E175: Accu | F175: 675.00 | H175: 815 | I175: 790-800 | J175: Target Achieved | K175: 140.00 | L175: 20.74% | M175: Successful | N175: 2018-02-23
A176: 56 | B176: 2016-06-01 | D176: Atulauto | E176: Accu | F176: 495-505 | I176: 565-570 | J176: Open
A177: 57 | B177: 2016-06-06 | D177: TRITURBINE | E177: Accu | F177: 110.00 | H177: 126.5 | I177: 125.00 | J177: Profit of Rs.16.50/- | K177: 16.50 | L177: =K177/F177 -> 15.00% | M177: Successful | N177: 2016-07-01
A178: 58 | B178: 2016-06-17 | D178: Pennar Industries Ltd | E178: Accu | F178: 44.00 | H178: 69.5 | I178: 69.50 | J178: Profit of Rs.25.50/- | K178: 25.50 | L178: =K178/F178 -> 57.95% | M178: Successful | N178: 2017-08-30
A179: 59 | B179: 2016-06-28 | D179: EVEREADY INDS. IND. LTD. | E179: Accu | F179: 262.50 | H179: 340 | I179: 333.00 | J179: Profit of Rs.77.50/- | K179: 77.50 | L179: =K179/F179 -> 29.52% | M179: Successful | N179: 2017-10-09
A180: 60 | B180: 2016-06-28 | D180: FIEM INDUSTRIES LIMITED | E180: Accu | F180: 840.00 | H180: 1230 | I180: 1230.00 | J180: Target Achieved | K180: 390.00 | L180: =K180/F180 -> 46.43% | M180: Successful | N180: 2016-10-06
A181: 61 | B181: 2016-07-05 | D181: Bajaj Corp Ltd | E181: Accu | F181: 395 | H181: 468.50 | I181: 510.00 | J181: Part profit of Rs.73.50/- | K181: 73.50 | L181: =K181/F181 -> 19% | M181: Successful | N181: 2017-08-30
A182: 62 | B182: 2016-08-02 | D182: GPPL $ | E182: Buy | F182: 167-172 | I182: 198-200 | J182: Open
A183: 63 | B183: 2016-08-04 | D183: WONDERLA HOLIDAYS LTD | E183: Accu | F183: 395-405 | I183: 475.00 | J183: Open
A184: 64 | B184: 2016-08-11 | D184: CAMLINFINE | E184: Accu | F184: 86.50 | H184: 130 | I184: 130.00 | J184: Profit of Rs.43.50/- | K184: =H184-F184 -> 43.50 | L184: =K184/F184 -> 50.29% | M184: Successful | N184: 2017-12-22
A185: 65 | B185: 2016-08-18 | D185: GRANULES | E185: Accu | F185: 133.5 | H185: 126.50 | I185: 178.00 | J185: Exit | K185: -7.00 | L185: -5.24% | M185: Unsuccessful | N185: 2016-09-02
A186: 66 | B186: 2016-08-31 | D186: VA TECH WABAG | E186: Accu | F186: 560.00 | H186: 725 | I186: 725.00 | J186: Target Achieved | K186: 165.00 | L186: 29.46% | M186: Successful | N186: 2016-03-27
A187: 67 | B187: 2016-09-01 | D187: SKIPPER LIMITED | E187: Accu | F187: 160.50 | H187: 210 | I187: 210.00 | J187: Target Achieved | K187: 49.50 | L187: 30.84% | M187: Successful | N187: 2017-05-16
A188: 68 | B188: 2016-10-03 | D188: IFB Industries | E188: Accu | F188: 430.00 | H188: 596 | I188: 575.00 | J188: Profit of Rs.166/- | K188: 166.00 | L188: 38.60% | M188: Successful | N188: 2017-02-03
A189: 69 | B189: 2016-10-14 | D189: ASIANTILES | E189: Accu | F189: 280.00 | H189: 345 | I189: 345.00 | J189: Target Achieved | K189: 65.00 | L189: 23.21% | M189: Successful | N189: 2017-03-20
A190: 70 | B190: 2016-10-14 | D190: DEEPIND | E190: Accu | F190: 245.00 | H190: 325.5 | I190: 330.00 | J190: Profit of Rs.80.5/- | K190: 80.50 | L190: 32.86% | M190: Successful | N190: 2017-02-03
A191: 71 | B191: 2016-10-17 | D191: DCBBANK | E191: Accu | F191: 125.00 | H191: 160 | I191: 160.00 | J191: Target Achieved | K191: 35.00 | L191: 28.00% | M191: Successful | N191: 2017-03-09
A192: 72 | B192: 2016-10-17 | D192: ORIENTREF | E192: Accu | F192: 114.00 | H192: 145 | I192: 145.00 | J192: Target Achieved | K192: 31.00 | L192: =K192/F192 -> 27.19% | M192: Successful | N192: 2017-05-04
A193: 73 | B193: 2016-10-17 | D193: GANECOS | E193: Accu | F193: 212.00 | H193: 280 | I193: 276.00 | J193: Profit of Rs.68/- | K193: 68.00 | L193: =K193/F193 -> 32.08% | M193: Successful | N193: 2017-05-03
A194: 74 | B194: 2016-11-04 | D194: NBCC | E194: Accu | F194: 155.00 | H194: 210 | I194: 210.00 | J194: Profit of Rs.55/- | K194: 55.00 | L194: =K194/F194 -> 35.48% | M194: Successful | N194: 2017-07-28
A195: 75 | B195: 2016-12-06 | D195: PRECAM | E195: Accu | F195: 150.5 | H195: 72.50 | I195: 174.00 | J195: Loss of Rs.78/- | K195: -78.00 | L195: =K195/F195 -> -51.83% | M195: Unsuccessful | N195: 2018-08-21
A196: 76 | B196: 2016-12-08 | D196: INFRATEL | E196: Accu | F196: 380.00 | H196: 478 | I196: 468.00 | J196: Target Achieved | K196: 98.00 | L196: =K196/F196 -> 25.79% | M196: Successful | N196: 2017-10-17
A197: 77 | B197: 2016-12-30 | D197: GODREJPROP | E197: Accu | F197: 305.00 | H197: 375 | I197: 375.00 | J197: Target Achieved | K197: 70.00 | L197: 22.95% | M197: Successful | N197: 2017-02-02
A198: 78 | B198: 2017-01-04 | D198: DEEPAKNTR | E198: Accu | F198: 99.50 | H198: 158 | I198: 158.00 | J198: Target Achieved | K198: 58.50 | L198: 58.79% | M198: Successful | N198: 2017-06-12
A199: 79 | B199: 2017-02-20 | D199: SUBROS | E199: Accu | F199: 202.50 | H199: 234 | I199: 234.00 | J199: Target Achieved | K199: 31.50 | L199: 15.56% | M199: Successful | N199: 2017-04-11
A200: 80 | B200: 2017-02-20 | D200: RECLTD | E200: Accu | F200: 140.50 | H200: 220 | I200: 220.00 | J200: Target Achieved | K200: 79.50 | L200: 56.58% | M200: Successful | N200: 2017-05-09
A201: 81 | B201: 2017-03-24 | D201: VRLLOG | E201: Accu | F201: 300.50 | H201: 417.5 | I201: 420.00 | J201: Profit of Rs.117/- | K201: 117.00 | L201: 38.94% | M201: Successful | N201: 2017-12-01
A202: 82 | B202: 2017-03-24 | D202: FIEMIND | E202: Accu | F202: 850.00 | H202: 1042.5 | I202: 1023.00 | J202: Profit of Rs 192.50/- | K202: 192.50 | L202: 22.65% | M202: Successful | N202: 2017-04-05
A203: 83 | B203: 2017-04-05 | D203: RATNAMANI | E203: Accu | F203: 785.00 | H203: 930 | I203: 920.00 | J203: Profit of Rs.145/- | K203: 145.00 | L203: 18.47% | M203: Successful | N203: 2017-08-29
A204: 84 | B204: 2017-04-06 | D204: ZEEMEDIA | E204: Accu | F204: 39-41 | I204: 60.00 | J204: Open
A205: 85 | B205: 2017-04-12 | D205: DABUR | E205: Accu | F205: 289.50 | H205: 354 | I205: 360.00 | J205: Profit of Rs.64.5/- | K205: 64.50 | L205: =K205/F205 -> 22.28% | M205: Successful | N205: 2017-11-01
A206: 86 | B206: 2017-04-20 | D206: KPRMILL | E206: Accu | F206: 700.00 | H206: 840 | I206: 840.00 | J206: Profit of Rs.140/- | K206: 140.00 | L206: =K206/F206 -> 20.00% | M206: Successful | N206: 2017-06-07
A207: 87 | B207: 2017-05-22 | D207: GREAVESCOT | E207: Accu | F207: 153-158 | I207: 190.00 | J207: Open
A208: 88 | B208: 2017-06-01 | D208: ESSELPACK | E208: Accu | F208: 260 | H208: 311.00 | I208: 340.00 | J208: Part profit of Rs.51/- | K208: =H208-F208 -> 51.00 | L208: =K208/F208 -> 20% | M208: Successful | N208: 2017-11-17
A209: 89 | B209: 2017-06-15 | D209: KEI | E209: Accu | F209: 214.50 | H209: 262 | I209: 262.00 | J209: Profit of Rs.47.5/- | K209: =H209-F209 -> 47.50 | L209: 22.14% | M209: Successful | N209: 2017-08-30
A210: 90 | B210: 2017-07-17 | D210: MAYURUNIQ | E210: Accu | F210: 370.00 | H210: 447.5 | I210: 450.00 | J210: Target Achieved | K210: 77.50 | L210: 20.95% | M210: Successful | N210: 2017-10-27
A211: 91 | B211: 2017-07-27 | D211: RAMCOCEM | E211: Accu | F211: 657.50 | H211: 825 | I211: 820.00 | J211: Target Achieved | K211: 167.50 | L211: 25.48% | M211: Successful | N211: 2017-12-21
A212: 92 | B212: 2017-08-17 | D212: FINPIPE | E212: Accu | F212: 605.00 | H212: 750 | I212: 750.00 | J212: Profit of Rs.145/- | K212: 145.00 | L212: 23.97% | M212: Successful | N212: 2017-10-19
A213: 93 | B213: 2017-09-01 | D213: SHK | E213: Accu | F213: 255 | H213: 307.50 | I213: 320.00 | J213: Part profit of Rs.52.5/- | K213: 52.50 | L213: 21% | M213: Successful | N213: 2017-12-29
A214: 94 | B214: 2017-09-19 | D214: SKIPPER | E214: Accu | F214: 215.00 | H214: 258 | I214: 258.00 | J214: Target Achieved | K214: 43.00 | L214: 20.00% | M214: Successful | N214: 2017-11-01
A215: 95 | B215: 2017-09-20 | D215: CAMLINFINE | E215: Accu | F215: 75.00 | H215: 90 | I215: 90.00 | J215: Profit of Rs.15.00/- | K215: 15.00 | L215: 20.00% | M215: Successful | N215: 2017-10-11
A216: 96 | B216: 2017-10-03 | D216: GNA | E216: Accu | F216: 315.00 | H216: 392 | I216: 384.00 | J216: Profit of Rs.77/- | K216: 77.00 | L216: 24.44% | M216: Successful | N216: 2017-10-09
A217: 97 | B217: 2017-10-05 | D217: NOCIL | E217: Accu | F217: 145.00 | H217: 179 | I217: 180.00 | J217: Profit of Rs.34/- | K217: 34.00 | L217: 23.45% | M217: Successful | N217: 2017-10-17
A218: 98 | B218: 2017-10-06 | D218: CENTURYPLY | E218: Accu | F218: 256.00 | H218: 323 | I218: 320.00 | J218: Target Achieved | K218: 67.00 | L218: 26.17% | M218: Successful | N218: 2017-11-28
A219: 99 | B219: 2017-10-09 | D219: RECLTD | E219: Accu | F219: 152.5 | H219: 183.50 | I219: 210.00 | J219: Part Profit of Rs.31/- | K219: 31.00 | L219: 20% | M219: Successful | N219: 2017-11-03
A220: 100 | B220: 2017-10-09 | D220: EIHOTEL | E220: Accu | F220: 137.50 | H220: 184 | I220: 183.00 | J220: Profit of Rs.46.5/- | K220: 46.50 | L220: 33.82% | M220: Successful | N220: 2018-01-08
A221: 101 | B221: 2017-10-10 | D221: BOROSIL | E221: Accu | F221: 895.00 | H221: 1122.5 | I221: 1078.00 | J221: Profit of Rs.227.5/- | K221: 227.50 | L221: 25.42% | M221: Successful | N221: 2018-01-17
A222: 102 | B222: 2017-10-10 | D222: NRBBEARING | E222: Accu | F222: 125.50 | H222: 158 | I222: 155.00 | J222: Profit of Rs.32.5/- | K222: 32.50 | L222: 25.90% | M222: Successful | N222: 2017-11-28
A223: 103 | B223: 2017-10-12 | D223: CYIENT | E223: Accu | F223: 525.00 | H223: 629 | I223: 629.00 | J223: Target Achieved | K223: 104.00 | L223: 19.81% | M223: Successful | N223: 2018-01-19
A224: 104 | B224: 2017-11-07 | D224: HATSUN | E224: Accu | F224: 740.00 | H224: 892.5 | I224: 900.00 | J224: Profit of Rs.152.5/- | K224: 152.50 | L224: 20.61% | M224: Successful | N224: 2017-11-13
A225: 105 | B225: 2017-12-04 | D225: SANGHIIND | E225: Accu | F225: 118.50 | H225: 143.5 | I225: 145.00 | J225: Profit of Rs.25/- | K225: 25.00 | L225: 21.10% | M225: Successful | N225: 2017-12-28
A226: 106 | B226: 2017-12-05 | D226: ALLCARGO | E226: Accu | F226: 177.5 | H226: 215.00 | I226: 230.00 | J226: Part Profit of Rs.37.5/- | K226: 37.50 | L226: 21% | M226: Successful | N226: 2017-12-27
A227: 107 | B227: 2017-12-21 | D227: KAJARIACER | E227: Accu | F227: 710-720 | I227: 872.00 | J227: Open
A228: 108 | B228: 2017-12-29 | D228: GNA | E228: Accu | F228: 435.00 | H228: 542.5 | I228: 539.00 | J228: Target Achieved | K228: =H228-F228 -> 107.50 | L228: =K228/F228 -> 24.71% | M228: Successful | N228: 2018-04-16
A229: 109 | B229: 2017-12-29 | D229: ZENSARTECH | E229: Accu | F229: 885.00 | H229: 1090 | I229: 1084.00 | J229: Target Achieved | K229: 205.00 | L229: =K229/F229 -> 23.16% | M229: Successful | N229: 2018-04-23
A230: 110 | B230: 2018-02-07 | D230: GREAVESCOT | E230: Accu | F230: 130-132 | I230: 190.00 | J230: Open
A231: 111 | B231: 2018-02-27 | D231: MOLDTKPAC | E231: Accu | F231: 320-330 | I231: 398.00 | J231: Open
A232: 112 | B232: 2018-03-05 | D232: LICHSGFIN | E232: Accu | F232: 505-515 | I232: 672.00 | J232: Open
A233: 113 | B233: 2018-04-02 | D233: EVERESTIND | E233: Accu | F233: 492.5 | H233: 589.00 | I233: 613.00 | J233: Part Profit of Rs.37.5/- | K233: =H233-F233 -> 96.50 | L233: =K233/F233 -> 20% | M233: Successful | N233: 2018-08-21
A234: 114 | B234: 2018-04-04 | D234: GPPL | E234: Accu | F234: 140-143 | I234: 180.00 | J234: Open
A235: 115 | B235: 2018-04-19 | D235: MANPASAND | E235: Accu | F235: 430 | H235: 220.00 | I235: 537.00 | J235: Loss of Rs.210/- | K235: =H235-F235 -> -210.00 | L235: =K235/F235 -> -48.84% | M235: Unsuccessful | N235: 2018-06-01
A236: 116 | B236: 2018-04-30 | D236: HEIDELBERG | E236: Accu | F236: 154-158 | I236: 196.00 | J236: Open
A237: 117 | B237: 2018-05-17 | D237: PHILIPCARB | E237: Accu | F237: 230-240 | I237: 348.00 | J237: Open
A238: 118 | B238: 2018-06-07 | D238: KEC | E238: Accu | F238: 340-345 | I238: 439.00 | J238: Open
A239: 119 | B239: 2018-07-04 | D239: ASHOKLEY | E239: Accu | F239: 125-130 | I239: 170.00 | J239: Open
A240: 120 | B240: 2018-07-13 | D240: FCONSUMER | E240: Accu | F240: 46-47 | I240: 59.00 | J240: Open
A241: 121 | B241: 2018-07-25 | D241: ZEEMEDIA | E241: Accu | F241: 27-28 | I241: 44.00 | J241: Open
A242: 122 | B242: 2018-08-06 | D242: GABRIEL | E242: Accu | F242: 148-152 | I242: 182.00 | J242: Open
A243: 123 | B243: 2018-08-23 | D243: INDIANHUME | E243: Accu | F243: 280-290 | I243: 364.00 | J243: Open
A244: 124 | B244: 2018-08-29 | D244: GRINDWELL | E244: Accu | F244: 520-530 | I244: 635.00 | J244: Open
F248: Reinitiated $
A250: Disclaimer:
A251: This document has been prepared by the Retail Research Desk of Asit C Mehta
A252: Investment Intermediates Ltd. and is meant for use of the recipient only
A253: and is not for circulation. This document is not to be reported or
A254: copied or made available to others. It should not be considered to be
A255: taken as an offer to sell or a solicitation to buy any security. The
A256: information contained herein is from sources believed reliable. We do
A257: not represent that it is accurate or complete and it should not be
A258: relied upon as such. We may from time to time have positions in and buy
A259: and sell securities referred to herein

Sheet Sheet2 (hidden)
A1: SYMBOL | B1: SERIES | C1: OPEN | D1: HIGH | E1: LOW | F1: CLOSE | G1: LAST | H1: PREVCLOSE | I1: TOTTRDQTY | J1: TOTTRDVAL | K1: TIMESTAMP | L1: TOTALTRADES | M1: ISIN | N1: ISIN
A2: 20MICRONS | B2: EQ | C2: 41.9 | D2: 42.4 | E2: 41.05 | F2: 41.8 | G2: 41.85 | H2: 42.4 | I2: 34668 | J2: 1440183.6 | K2: 2018-10-04 | L2: 360 | M2: INE144J01027
A3: 21STCENMGM | B3: EQ | C3: 27.8 | D3: 27.9 | E3: 27.25 | F3: 27.25 | G3: 27.25 | H3: 27.8 | I3: 4003 | J3: 109354.2 | K3: 2018-10-04 | L3: 33 | M3: INE253B01015
A4: 3IINFOTECH | B4: EQ | C4: 3.35 | D4: 3.4 | E4: 3.3 | F4: 3.35 | G4: 3.4 | H4: 3.35 | I4: 2228754 | J4: 7440243.3 | K4: 2018-10-04 | L4: 666 | M4: INE748C01020
A5: 3MINDIA | B5: EQ | C5: 22511.5 | D5: 22900.05 | E5: 21140.7 | F5: 22701.4 | G5: 22798 | H5: 22656.4 | I5: 5151 | J5: 112873550.2 | K5: 2018-10-04 | L5: 1959 | M5: INE470A01017
A6: 3PLAND | B6: BE | C6: 11.3 | D6: 11.45 | E6: 11.3 | F6: 11.45 | G6: 11.45 | H6: 11.45 | I6: 1577 | J6: 17827.15 | K6: 2018-10-04 | L6: 8 | M6: INE105C01023
A7: 5PAISA | B7: EQ | C7: 200.5 | D7: 209 | E7: 193.3 | F7: 206 | G7: 207 | H7: 208.65 | I7: 6604 | J7: 1327128.55 | K7: 2018-10-04 | L7: 313 | M7: INE618L01018
A8: 63MOONS | B8: EQ | C8: 66.8 | D8: 67 | E8: 65 | F8: 65.85 | G8: 65.75 | H8: 67.5 | I8: 100309 | J8: 6635578.45 | K8: 2018-10-04 | L8: 1214 | M8: INE111B01023
A9: 8KMILES | B9: BE | C9: 164.15 | D9: 164.15 | E9: 164.15 | F9: 164.15 | G9: 164.15 | H9: 172.75 | I9: 16665 | J9: 2735559.75 | K9: 2018-10-04 | L9: 306 | M9: INE650K01021
A10: A2ZINFRA | B10: EQ | C10: 8.25 | D10: 9.15 | E10: 8.15 | F10: 8.4 | G10: 8.3 | H10: 9.05 | I10: 4414108 | J10: 37142606.5 | K10: 2018-10-04 | L10: 3869 | M10: INE619I01012
A11: AARTIDRUGS | B11: EQ | C11: 558 | D11: 558 | E11: 542.55 | F11: 554.45 | G11: 553 | H11: 563.7 | I11: 30409 | J11: 16775085.6 | K11: 2018-10-04 | L11: 1412 | M11: INE767A01016
A12: AARTIIND | B12: EQ | C12: 1203.75 | D12: 1217 | E12: 1166.05 | F12: 1203.5 | G12: 1198 | H12: 1207.05 | I12: 14104 | J12: 16816145.4 | K12: 2018-10-04 | L12: 2493 | M12: INE769A01020
A13: AARVEEDEN | B13: EQ | C13: 24.7 | D13: 24.7 | E13: 23.5 | F13: 24.15 | G13: 24.5 | H13: 24.2 | I13: 2922 | J13: 69812 | K13: 2018-10-04 | L13: 46 | M13: INE273D01019
A14: ABAN | B14: EQ | C14: 81.9 | D14: 82.5 | E14: 80.1 | F14: 80.9 | G14: 80.6 | H14: 82.7 | I14: 328809 | J14: 26692970 | K14: 2018-10-04 | L14: 4252 | M14: INE421A01028
A15: ABB | B15: EQ | C15: 1405 | D15: 1420 | E15: 1377 | F15: 1382.9 | G15: 1381.9 | H15: 1422.2 | I15: 54211 | J15: 75574273.5 | K15: 2018-10-04 | L15: 6479 | M15: INE117A01022
A16: ABBOTINDIA | B16: EQ | C16: 7535.15 | D16: 7535.15 | E16: 7200 | F16: 7330.95 | G16: 7278 | H16: 7592.55 | I16: 9050 | J16: 66668639.8 | K16: 2018-10-04 | L16: 2877 | M16: INE358A01014
A17: ABCAPITAL | B17: EQ | C17: 108 | D17: 112.7 | E17: 107.5 | F17: 111.25 | G17: 111 | H17: 110.25 | I17: 2210276 | J17: 243559375.3 | K17: 2018-10-04 | L17: 16134 | M17: INE674K01013
A18: ABFRL | B18: EQ | C18: 180 | D18: 186 | E18: 175 | F18: 182.55 | G18: 185 | H18: 182.2 | I18: 531009 | J18: 95257364.15 | K18: 2018-10-04 | L18: 10035 | M18: INE647O01011
A19: ABMINTLTD | B19: BE | C19: 17.4 | D19: 17.4 | E19: 17.4 | F19: 17.4 | G19: 17.4 | H19: 17.15 | I19: 15 | J19: 261 | K19: 2018-10-04 | L19: 1 | M19: INE251C01017
A20: ACC | B20: EQ | C20: 1484 | D20: 1535.25 | E20: 1462 | F20: 1527.9 | G20: 1532 | H20: 1509.7 | I20: 963587 | J20: 1444635206 | K20: 2018-10-04 | L20: 30148 | M20: INE012A01025
A21: ACCELYA | B21: EQ | C21: 1020 | D21: 1042 | E21: 1010 | F21: 1027.55 | G21: 1030 | H21: 1024.15 | I21: 5299 | J21: 5442053.3 | K21: 2018-10-04 | L21: 447 | M21: INE793A01012
A22: ACE | B22: EQ | C22: 91.1 | D22: 93.6 | E22: 87.85 | F22: 89.25 | G22: 89 | H22: 92.35 | I22: 209527 | J22: 18842565.7 | K22: 2018-10-04 | L22: 3231 | M22: INE731H01025
A23: ADANIENT | B23: EQ | C23: 129.4 | D23: 134.3 | E23: 127 | F23: 132.95 | G23: 132.2 | H23: 134.8 | I23: 7184987 | J23: 945354539.3 | K23: 2018-10-04 | L23: 40682 | M23: INE423A01024
A24: ADANIGREEN | B24: EQ | C24: 35.4 | D24: 35.4 | E24: 35.4 | F24: 35.4 | G24: 35.4 | H24: 37.25 | I24: 103762 | J24: 3673174.8 | K24: 2018-10-04 | L24: 490 | M24: INE364U01010
A25: ADANIPORTS | B25: EQ | C25: 324.7 | D25: 329.4 | E25: 314 | F25: 317.05 | G25: 317.25 | H25: 329.75 | I25: 4508937 | J25: 1448469478 | K25: 2018-10-04 | L25: 80006 | M25: INE742F01042
A26: ADANIPOWER | B26: EQ | C26: 25.4 | D26: 25.7 | E26: 23.8 | F26: 24.35 | G26: 24.2 | H26: 25.95 | I26: 21149699 | J26: 520407929.4 | K26: 2018-10-04 | L26: 24313 | M26: INE814H01011
A27: ADANITRANS | B27: BE | C27: 151.9 | D27: 153.7 | E27: 147.15 | F27: 149.75 | G27: 149.5 | H27: 154.85 | I27: 47854 | J27: 7107880.35 | K27: 2018-10-04 | L27: 504 | M27: INE931S01010
A28: ADFFOODS | B28: EQ | C28: 210 | D28: 214.75 | E28: 206 | F28: 209.55 | G28: 208.95 | H28: 215.45 | I28: 32501 | J28: 6818231.35 | K28: 2018-10-04 | L28: 1194 | M28: INE982B01019
A29: ADHUNIK | B29: BE | C29: 2.65 | D29: 2.85 | E29: 2.65 | F29: 2.85 | G29: 2.85 | H29: 2.75 | I29: 38696 | J29: 110035.85 | K29: 2018-10-04 | L29: 25 | M29: INE400H01019
A30: ADHUNIKIND | B30: EQ | C30: 61.85 | D30: 61.85 | E30: 59 | F30: 59.7 | G30: 59.8 | H30: 60.7 | I30: 24251 | J30: 1446838.35 | K30: 2018-10-04 | L30: 112 | M30: INE452L01012
A31: ADLABS | B31: EQ | C31: 16.65 | D31: 17.45 | E31: 16 | F31: 17.1 | G31: 17 | H31: 16.9 | I31: 146699 | J31: 2445907.65 | K31: 2018-10-04 | L31: 751 | M31: INE172N01012
A32: ADORWELD | B32: EQ | C32: 292.15 | D32: 307.95 | E32: 292 | F32: 300.95 | G32: 302.2 | H32: 295.65 | I32: 10096 | J32: 3017089.75 | K32: 2018-10-04 | L32: 423 | M32: INE045A01017
A33: ADROITINFO | B33: BE | C33: 23.1 | D33: 24 | E33: 23.1 | F33: 23.1 | G33: 23.1 | H33: 24.05 | I33: 10139 | J33: 235917.3 | K33: 2018-10-04 | L33: 12 | M33: INE737B01033
A34: ADSL | B34: EQ | C34: 12.7 | D34: 13.45 | E34: 12 | F34: 13.05 | G34: 13.45 | H34: 12.85 | I34: 23588 | J34: 297588.05 | K34: 2018-10-04 | L34: 90 | M34: INE102I01027
A35: ADVANIHOTR | B35: EQ | C35: 49.1 | D35: 49.1 | E35: 47 | F35: 47.95 | G35: 48 | H35: 49.1 | I35: 20309 | J35: 975533.8 | K35: 2018-10-04 | L35: 184 | M35: INE199C01026
A36: ADVENZYMES | B36: EQ | C36: 183.9 | D36: 184.85 | E36: 180.1 | F36: 181.15 | G36: 181 | H36: 186.5 | I36: 90638 | J36: 16519819.7 | K36: 2018-10-04 | L36: 2295 | M36: INE837H01020
A37: AEGISCHEM | B37: EQ | C37: 185.2 | D37: 190.15 | E37: 182.6 | F37: 187.95 | G37: 188 | H37: 187.15 | I37: 87931 | J37: 16427278.45 | K37: 2018-10-04 | L37: 4803 | M37: INE208C01025
A38: AFL | B38: EQ | C38: 64 | D38: 64 | E38: 57.75 | F38: 59.2 | G38: 58.3 | H38: 64 | I38: 42551 | J38: 2532085.2 | K38: 2018-10-04 | L38: 236 | M38: INE020G01017
A39: AGARIND | B39: EQ | C39: 217 | D39: 217 | E39: 205 | F39: 208.55 | G39: 205 | H39: 222.1 | I39: 2988 | J39: 637774.4 | K39: 2018-10-04 | L39: 68 | M39: INE204E01012
A40: AGCNET | B40: EQ | C40: 66.55 | D40: 68.4 | E40: 66 | F40: 68.15 | G40: 68.05 | H40: 68.2 | I40: 5006 | J40: 340162.65 | K40: 2018-10-04 | L40: 78 | M40: INE676A01019
A41: AGLSL | B41: EQ | C41: 71 | D41: 72 | E41: 67.5 | F41: 70.2 | G41: 69.7 | H41: 71.35 | I41: 5319 | J41: 374769.6 | K41: 2018-10-04 | L41: 82 | M41: INE517U01013
A42: AGRITECH | B42: EQ | C42: 59 | D42: 59.95 | E42: 58 | F42: 59.05 | G42: 58.5 | H42: 61.55 | I42: 5264 | J42: 310555.75 | K42: 2018-10-04 | L42: 210 | M42: INE449G01018
A43: AHLEAST | B43: EQ | C43: 240 | D43: 249.5 | E43: 240 | F43: 244 | G43: 244 | H43: 240.25 | I43: 1816 | J43: 445014.1 | K43: 2018-10-04 | L43: 15 | M43: INE926K01017
A44: AHLUCONT | B44: EQ | C44: 259.55 | D44: 274.9 | E44: 259.55 | F44: 273.65 | G44: 274.9 | H44: 268.9 | I44: 1111 | J44: 297371.45 | K44: 2018-10-04 | L44: 134 | M44: INE758C01029
A45: AHLWEST | B45: EQ | C45: 280 | D45: 299.65 | E45: 280 | F45: 286 | G45: 286 | H45: 280 | I45: 1923 | J45: 553178.4 | K45: 2018-10-04 | L45: 35 | M45: INE915K01010
A46: AIAENG | B46: EQ | C46: 1720.05 | D46: 1734.75 | E46: 1693 | F46: 1703 | G46: 1700 | H46: 1741.25 | I46: 101219 | J46: 172020278.6 | K46: 2018-10-04 | L46: 2388 | M46: INE212H01026
A47: AICHAMP | B47: BE | C47: 13.75 | D47: 13.75 | E47: 13.75 | F47: 13.75 | G47: 13.75 | H47: 14.45 | I47: 387 | J47: 5321.25 | K47: 2018-10-04 | L47: 9 | M47: INE768E01024
A48: AIFL | B48: EQ | C48: 222.3 | D48: 222.3 | E48: 221.5 | F48: 221.5 | G48: 221.5 | H48: 246.1 | I48: 1500 | J48: 332293.2 | K48: 2018-10-04 | L48: 64 | M48: INE428O01016
A49: AIONJSW | B49: BE | C49: 39.35 | D49: 39.35 | E49: 39.35 | F49: 39.35 | G49: 39.35 | H49: 37.5 | I49: 25565 | J49: 1005982.75 | K49: 2018-10-04 | L49: 149 | M49: INE743C01021
A50: AJANTPHARM | B50: EQ | C50: 1025 | D50: 1043.05 | E50: 999 | F50: 1005.35 | G50: 1006 | H50: 1039.05 | I50: 313168 | J50: 320845253.6 | K50: 2018-10-04 | L50: 11321 | M50: INE031B01049
A51: AJMERA | B51: EQ | C51: 159.4 | D51: 160.5 | E51: 154.1 | F51: 156.25 | G51: 156.7 | H51: 161.7 | I51: 28918 | J51: 4558957.75 | K51: 2018-10-04 | L51: 991 | M51: INE298G01027
A52: AKSHARCHEM | B52: EQ | C52: 487 | D52: 487 | E52: 465 | F52: 479.35 | G52: 477 | H52: 480.35 | I52: 1078 | J52: 514990.05 | K52: 2018-10-04 | L52: 110 | M52: INE542B01011
A53: AKSHOPTFBR | B53: EQ | C53: 23.95 | D53: 24.4 | E53: 23.2 | F53: 23.8 | G53: 23.55 | H53: 24.5 | I53: 1278013 | J53: 30344209.55 | K53: 2018-10-04 | L53: 4449 | M53: INE523B01011
A54: AKZOINDIA | B54: EQ | C54: 1572.05 | D54: 1619 | E54: 1572.05 | F54: 1592.65 | G54: 1599.45 | H54: 1595.9 | I54: 4550 | J54: 7227337.55 | K54: 2018-10-04 | L54: 1045 | M54: INE133A01011
A55: ALANKIT | B55: EQ | C55: 19.45 | D55: 20.4 | E55: 18.6 | F55: 19.5 | G55: 19.7 | H55: 20.25 | I55: 766504 | J55: 15323464.65 | K55: 2018-10-04 | L55: 1044 | M55: INE914E01040
A56: ALBERTDAVD | B56: EQ | C56: 576.65 | D56: 612.2 | E56: 560.05 | F56: 574.65 | G56: 571.25 | H56: 584.1 | I56: 37207 | J56: 21977366.35 | K56: 2018-10-04 | L56: 2174 | M56: INE155C01010
A57: ALBK | B57: EQ | C57: 35.75 | D57: 36.6 | E57: 35.3 | F57: 36.05 | G57: 35.85 | H57: 36.9 | I57: 2926447 | J57: 105348603 | K57: 2018-10-04 | L57: 7062 | M57: INE428A01015
A58: ALCHEM | B58: BE | C58: 4.5 | D58: 4.7 | E58: 4.5 | F58: 4.7 | G58: 4.7 | H58: 4.5 | I58: 3958 | J58: 18485.95 | K58: 2018-10-04 | L58: 34 | M58: INE964B01033
A59: ALEMBICLTD | B59: EQ | C59: 42.6 | D59: 43.2 | E59: 42 | F59: 42.55 | G59: 42.8 | H59: 43.35 | I59: 327374 | J59: 13944918.1 | K59: 2018-10-04 | L59: 3078 | M59: INE426A01027
A60: ALICON | B60: EQ | C60: 640.8 | D60: 640.8 | E60: 619 | F60: 629.35 | G60: 626 | H60: 640.8 | I60: 947 | J60: 595575.15 | K60: 2018-10-04 | L60: 112 | M60: INE062D01024
A61: ALKALI | B61: EQ | C61: 57 | D61: 57 | E61: 55.45 | F61: 56.9 | G61: 56.9 | H61: 57.1 | I61: 5691 | J61: 321670.8 | K61: 2018-10-04 | L61: 99 | M61: INE773I01017
A62: ALKEM | B62: EQ | C62: 2045.05 | D62: 2062.2 | E62: 2010 | F62: 2043 | G62: 2025 | H62: 2053.4 | I62: 11593 | J62: 23561960.1 | K62: 2018-10-04 | L62: 2383 | M62: INE540L01014
A63: ALKYLAMINE | B63: EQ | C63: 566.6 | D63: 566.6 | E63: 551 | F63: 561.3 | G63: 561 | H63: 566.6 | I63: 5613 | J63: 3134648.6 | K63: 2018-10-04 | L63: 115 | M63: INE150B01021
A64: ALLCARGO | B64: EQ | C64: 98 | D64: 99.65 | E64: 96 | F64: 98.95 | G64: 98 | H64: 98.65 | I64: 517989 | J64: 51143516.25 | K64: 2018-10-04 | L64: 3225 | M64: INE418H01029
A65: ALLSEC | B65: EQ | C65: 235.35 | D65: 240.1 | E65: 228 | F65: 233.15 | G65: 239 | H65: 235.35 | I65: 14674 | J65: 3389153.45 | K65: 2018-10-04 | L65: 497 | M65: INE835G01018
A66: ALMONDZ | B66: BE | C66: 27.5 | D66: 28.35 | E66: 26.15 | F66: 28.35 | G66: 28.35 | H66: 27.5 | I66: 3030 | J66: 79983.5 | K66: 2018-10-04 | L66: 11 | M66: INE326B01027
A67: ALOKTEXT | B67: BE | C67: 3.35 | D67: 3.6 | E67: 3.35 | F67: 3.6 | G67: 3.6 | H67: 3.45 | I67: 1672668 | J67: 5930148.35 | K67: 2018-10-04 | L67: 1226 | M67: INE270A01011
A68: ALPA | B68: EQ | C68: 27 | D68: 27 | E68: 24.5 | F68: 25.2 | G68: 25.2 | H68: 25.7 | I68: 21226 | J68: 532464.55 | K68: 2018-10-04 | L68: 146 | M68: INE385I01010
A69: ALPHAGEO | B69: EQ | C69: 544 | D69: 544 | E69: 526.5 | F69: 531.85 | G69: 531.85 | H69: 544.55 | I69: 5852 | J69: 3121416.2 | K69: 2018-10-04 | L69: 707 | M69: INE137C01018
A70: ALPSINDUS | B70: BE | C70: 2.85 | D70: 2.85 | E70: 2.85 | F70: 2.85 | G70: 2.85 | H70: 2.95 | I70: 975 | J70: 2778.75 | K70: 2018-10-04 | L70: 9 | M70: INE093B01015
A71: AMARAJABAT | B71: EQ | C71: 732.4 | D71: 745.9 | E71: 720.15 | F71: 729.25 | G71: 725 | H71: 737.5 | I71: 568427 | J71: 416434346.4 | K71: 2018-10-04 | L71: 15972 | M71: INE885A01032
A72: AMBER | B72: EQ | C72: 923.5 | D72: 924.95 | E72: 905 | F72: 919.95 | G72: 910 | H72: 923.5 | I72: 10715 | J72: 9836008.4 | K72: 2018-10-04 | L72: 845 | M72: INE371P01015
A73: AMBIKCO | B73: EQ | C73: 1139.8 | D73: 1139.8 | E73: 1075.95 | F73: 1125.4 | G73: 1130 | H73: 1137.05 | I73: 5465 | J73: 6057926.75 | K73: 2018-10-04 | L73: 654 | M73: INE540G01014
A74: AMBUJACEM | B74: EQ | C74: 210.75 | D74: 216.45 | E74: 207.25 | F74: 213.7 | G74: 213.15 | H74: 213.3 | I74: 4756385 | J74: 1004622512 | K74: 2018-10-04 | L74: 26017 | M74: INE079A01024
A75: AMDIND | B75: EQ | C75: 19.5 | D75: 19.8 | E75: 19 | F75: 19.15 | G75: 19.05 | H75: 19.75 | I75: 5941 | J75: 113929.8 | K75: 2018-10-04 | L75: 37 | M75: INE005I01014
A76: AMJLAND | B76: EQ | C76: 20.3 | D76: 21 | E76: 19.6 | F76: 19.75 | G76: 19.6 | H76: 20.7 | I76: 7337 | J76: 147208.2 | K76: 2018-10-04 | L76: 78 | M76: INE606A01024
A77: AMRUTANJAN | B77: EQ | C77: 256 | D77: 261.75 | E77: 251 | F77: 252.75 | G77: 251 | H77: 257.7 | I77: 10911 | J77: 2774530.2 | K77: 2018-10-04 | L77: 528 | M77: INE098F01031
A78: ANANTRAJ | B78: EQ | C78: 37.7 | D78: 38.4 | E78: 36.9 | F78: 37.9 | G78: 37.9 | H78: 38.7 | I78: 452813 | J78: 17065950.4 | K78: 2018-10-04 | L78: 3164 | M78: INE242C01024
A79: ANDHRABANK | B79: EQ | C79: 26.9 | D79: 27.65 | E79: 26.85 | F79: 27.35 | G79: 27.05 | H79: 27.45 | I79: 1469959 | J79: 40196035.25 | K79: 2018-10-04 | L79: 3550 | M79: INE434A01013
A80: ANDHRACEMT | B80: EQ | C80: 6 | D80: 6.1 | E80: 5.8 | F80: 5.9 | G80: 5.95 | H80: 6 | I80: 141314 | J80: 842770.95 | K80: 2018-10-04 | L80: 274 | M80: INE666E01012
A81: ANDHRSUGAR | B81: EQ | C81: 333 | D81: 343.95 | E81: 331.05 | F81: 335.8 | G81: 335 | H81: 344.05 | I81: 43377 | J81: 14563911.15 | K81: 2018-10-04 | L81: 2194 | M81: INE715B01013
A82: ANGIND | B82: BE | C82: 2.5 | D82: 2.5 | E82: 2.3 | F82: 2.3 | G82: 2.3 | H82: 2.4 | I82: 9891 | J82: 24560.8 | K82: 2018-10-04 | L82: 21 | M82: INE017D01010
A83: ANIKINDS | B83: EQ | C83: 25 | D83: 26.7 | E83: 25 | F83: 25.6 | G83: 25.7 | H83: 25.9 | I83: 445 | J83: 11284.5 | K83: 2018-10-04 | L83: 12 | M83: INE087B01017
A84: ANKITMETAL | B84: BE | C84: 0.55 | D84: 0.55 | E84: 0.45 | F84: 0.55 | G84: 0.55 | H84: 0.55 | I84: 30579 | J84: 14055.55 | K84: 2018-10-04 | L84: 22 | M84: INE106I01010
A85: ANSALAPI | B85: EQ | C85: 11.75 | D85: 11.75 | E85: 11 | F85: 11.35 | G85: 11.4 | H85: 11.55 | I85: 63664 | J85: 721837.85 | K85: 2018-10-04 | L85: 217 | M85: INE436A01026
A86: ANSALHSG | B86: EQ | C86: 11 | D86: 11.7 | E86: 10.75 | F86: 11.05 | G86: 10.9 | H86: 11.4 | I86: 29659 | J86: 329964.15 | K86: 2018-10-04 | L86: 193 | M86: INE880B01015
A87: ANTGRAPHIC | B87: BE | C87: 0.5 | D87: 0.55 | E87: 0.5 | F87: 0.55 | G87: 0.55 | H87: 0.55 | I87: 53665 | J87: 27890.3 | K87: 2018-10-04 | L87: 23 | M87: INE414B01021
A88: APARINDS | B88: EQ | C88: 565.65 | D88: 575 | E88: 549.55 | F88: 565.2 | G88: 571 | H88: 565.65 | I88: 45988 | J88: 25463267.6 | K88: 2018-10-04 | L88: 1424 | M88: INE372A01015
A89: APCL | B89: EQ | C89: 123.85 | D89: 123.85 | E89: 116.2 | F89: 118.35 | G89: 118 | H89: 120.8 | I89: 3302 | J89: 396278.2 | K89: 2018-10-04 | L89: 116 | M89: INE071F01012
A90: APCOTEXIND | B90: EQ | C90: 555 | D90: 566 | E90: 540.05 | F90: 561.65 | G90: 566 | H90: 557.05 | I90: 4224 | J90: 2334654.1 | K90: 2018-10-04 | L90: 306 | M90: INE116A01024
A91: APEX | B91: EQ | C91: 367.7 | D91: 372.55 | E91: 360 | F91: 366.85 | G91: 365 | H91: 375.15 | I91: 38066 | J91: 13925663.1 | K91: 2018-10-04 | L91: 1866 | M91: INE346W01013
A92: APLAPOLLO | B92: EQ | C92: 1250 | D92: 1289.35 | E92: 1158 | F92: 1253.55 | G92: 1220 | H92: 1255.65 | I92: 112908 | J92: 135823452.7 | K92: 2018-10-04 | L92: 5489 | M92: INE702C01019
A93: APLLTD | B93: EQ | C93: 605.1 | D93: 629.95 | E93: 580.25 | F93: 591.9 | G93: 592.1 | H93: 621.55 | I93: 98566 | J93: 58732508.25 | K93: 2018-10-04 | L93: 4446 | M93: INE901L01018
A94: APOLLO | B94: EQ | C94: 119 | D94: 121.9 | E94: 117.05 | F94: 117.35 | G94: 117.75 | H94: 120.15 | I94: 19706 | J94: 2329632.45 | K94: 2018-10-04 | L94: 679 | M94: INE713T01010
A95: APOLLOHOSP | B95: EQ | C95: 1051.65 | D95: 1069.55 | E95: 1035.2 | F95: 1047.2 | G95: 1039.7 | H95: 1071.3 | I95: 420704 | J95: 440746076.1 | K95: 2018-10-04 | L95: 19056 | M95: INE437A01024
A96: APOLLOTYRE | B96: EQ | C96: 200.8 | D96: 205.45 | E96: 198.5 | F96: 203.3 | G96: 201.2 | H96: 206 | I96: 2991297 | J96: 606802465 | K96: 2018-10-04 | L96: 54114 | M96: INE438A01022
A97: APOLSINHOT | B97: EQ | C97: 1150 | D97: 1165 | E97: 1110 | F97: 1123 | G97: 1123 | H97: 1150.35 | I97: 337 | J97: 384817.6 | K97: 2018-10-04 | L97: 45 | M97: INE451F01016
A98: APTECHT | B98: EQ | C98: 142 | D98: 149.8 | E98: 140.8 | F98: 146.2 | G98: 145 | H98: 147.75 | I98: 190050 | J98: 27522981.6 | K98: 2018-10-04 | L98: 3666 | M98: INE266F01018
A99: ARCHIDPLY | B99: EQ | C99: 40.05 | D99: 42 | E99: 39 | F99: 39.9 | G99: 39.8 | H99: 41.15 | I99: 17101 | J99: 686886.6 | K99: 2018-10-04 | L99: 346 | M99: INE877I01016
A100: ARCHIES | B100: EQ | C100: 26.95 | D100: 27 | E100: 26.05 | F100: 26.45 | G100: 26.4 | H100: 27 | I100: 16724 | J100: 440457.8 | K100: 2018-10-04 | L100: 179 | M100: INE731A01020
A101: ARCOTECH | B101: BE | C101: 8.95 | D101: 8.95 | E101: 8.95 | F101: 8.95 | G101: 8.95 | H101: 9.4 | I101: 23967 | J101: 214504.65 | K101: 2018-10-04 | L101: 91 | M101: INE574I01035
A102: ARIES | B102: EQ | C102: 95.75 | D102: 97 | E102: 92.4 | F102: 94.25 | G102: 94.65 | H102: 97 | I102: 19931 | J102: 1887164.6 | K102: 2018-10-04 | L102: 457 | M102: INE298I01015
A103: ARIHANTSUP | B103: EQ | C103: 55.25 | D103: 57 | E103: 53 | F103: 55.7 | G103: 56.95 | H103: 55.25 | I103: 42633 | J103: 2326762.5 | K103: 2018-10-04 | L103: 266 | M103: INE643K01018
A104: ARMANFIN | B104: EQ | C104: 330 | D104: 359.25 | E104: 327.05 | F104: 333.8 | G104: 333.9 | H104: 352.95 | I104: 5539 | J104: 1864248.3 | K104: 2018-10-04 | L104: 158 | M104: INE109C01017
A105: AROGRANITE | B105: EQ | C105: 53.85 | D105: 55.5 | E105: 51.8 | F105: 52.2 | G105: 52 | H105: 53.3 | I105: 9289 | J105: 489849.65 | K105: 2018-10-04 | L105: 139 | M105: INE210C01013
A106: ARROWGREEN | B106: EQ | C106: 94.8 | D106: 98.9 | E106: 94.3 | F106: 94.45 | G106: 94.3 | H106: 99.25 | I106: 14774 | J106: 1416470.2 | K106: 2018-10-04 | L106: 272 | M106: INE570D01018
A107: ARROWTEX | B107: EQ | C107: 26.6 | D107: 27.05 | E107: 25.5 | F107: 26.05 | G107: 26.5 | H107: 26.65 | I107: 10945 | J107: 284800.8 | K107: 2018-10-04 | L107: 124 | M107: INE933J01015
A108: ARSHIYA | B108: EQ | C108: 35.75 | D108: 35.75 | E108: 32.95 | F108: 33.5 | G108: 33.1 | H108: 35.7 | I108: 312772 | J108: 10573739.25 | K108: 2018-10-04 | L108: 1446 | M108: INE968D01022
A109: ARSSINFRA | B109: EQ | C109: 23.1 | D109: 23.9 | E109: 22.2 | F109: 22.2 | G109: 22.2 | H109: 23.35 | I109: 17641 | J109: 403171.3 | K109: 2018-10-04 | L109: 93 | M109: INE267I01010
A110: ARVIND | B110: EQ | C110: 309.9 | D110: 320.6 | E110: 306.45 | F110: 317 | G110: 314.4 | H110: 316.7 | I110: 1096335 | J110: 345308565.3 | K110: 2018-10-04 | L110: 19682 | M110: INE034A01011
A111: ARVSMART | B111: EQ | C111: 115 | D111: 115 | E111: 107 | F111: 112.8 | G111: 114 | H111: 117.05 | I111: 33285 | J111: 3727778.6 | K111: 2018-10-04 | L111: 580 | M111: INE034S01021
A112: ASAHIINDIA | B112: EQ | C112: 310 | D112: 310.1 | E112: 296.05 | F112: 304.2 | G112: 309.8 | H112: 312.25 | I112: 38691 | J112: 11724066.1 | K112: 2018-10-04 | L112: 1378 | M112: INE439A01020
A113: ASAHISONG | B113: EQ | C113: 241 | D113: 244.9 | E113: 235 | F113: 238 | G113: 237.2 | H113: 245.2 | I113: 3589 | J113: 855112.95 | K113: 2018-10-04 | L113: 150 | M113: INE228I01012
A114: ASAL | B114: EQ | C114: 47.05 | D114: 47.25 | E114: 43.2 | F114: 44.3 | G114: 44.9 | H114: 46.15 | I114: 14259 | J114: 638918.15 | K114: 2018-10-04 | L114: 162 | M114: INE900C01027
A115: ASHAPURMIN | B115: EQ | C115: 30 | D115: 30.35 | E115: 29.15 | F115: 29.6 | G115: 29.15 | H115: 30.1 | I115: 49809 | J115: 1485029.5 | K115: 2018-10-04 | L115: 472 | M115: INE348A01023
A116: ASHIANA | B116: EQ | C116: 125 | D116: 129 | E116: 121 | F116: 126.15 | G116: 129 | H116: 126 | I116: 36139 | J116: 4488801.2 | K116: 2018-10-04 | L116: 802 | M116: INE365D01021
A117: ASHIMASYN | B117: EQ | C117: 15.7 | D117: 16.35 | E117: 14.4 | F117: 14.65 | G117: 14.6 | H117: 16.65 | I117: 196644 | J117: 2945536.9 | K117: 2018-10-04 | L117: 770 | M117: INE440A01010
A118: ASHOKA | B118: EQ | C118: 108.8 | D118: 109.3 | E118: 105.35 | F118: 107 | G118: 106.1 | H118: 110.85 | I118: 234684 | J118: 25198695.05 | K118: 2018-10-04 | L118: 4046 | M118: INE442H01029
A119: ASHOKLEY | B119: EQ | C119: 117.4 | D119: 120 | E119: 115.2 | F119: 118.05 | G119: 117.1 | H119: 119.15 | I119: 18820134 | J119: 2207924063 | K119: 2018-10-04 | L119: 78061 | M119: INE208A01029
A120: ASIANHOTNR | B120: EQ | C120: 185.05 | D120: 187 | E120: 173 | F120: 175.8 | G120: 184.7 | H120: 185.45 | I120: 3632 | J120: 658825.95 | K120: 2018-10-04 | L120: 28 | M120: INE363A01022
A121: ASIANPAINT | B121: EQ | C121: 1228 | D121: 1239.2 | E121: 1214 | F121: 1224.7 | G121: 1227 | H121: 1251.75 | I121: 1557441 | J121: 1908803630 | K121: 2018-10-04 | L121: 168518 | M121: INE021A01026
A122: ASIANTILES | B122: EQ | C122: 176.9 | D122: 177.4 | E122: 172 | F122: 173.95 | G122: 172.05 | H122: 177.8 | I122: 53409 | J122: 9284576.35 | K122: 2018-10-04 | L122: 1924 | M122: INE022I01019
A123: ASPINWALL | B123: EQ | C123: 182 | D123: 189.95 | E123: 180.15 | F123: 189.95 | G123: 189.95 | H123: 182.55 | I123: 1070 | J123: 198006.95 | K123: 2018-10-04 | L123: 32 | M123: INE991I01015
A124: ASSAMCO | B124: BE | C124: 2.85 | D124: 2.85 | E124: 2.85 | F124: 2.85 | G124: 2.85 | H124: 2.95 | I124: 56744 | J124: 161720.4 | K124: 2018-10-04 | L124: 69 | M124: INE442A01024
A125: ASTEC | B125: EQ | C125: 544.6 | D125: 546 | E125: 525.05 | F125: 533.8 | G125: 536 | H125: 548.45 | I125: 14122 | J125: 7525568.15 | K125: 2018-10-04 | L125: 1171 | M125: INE563J01010
A126: ASTERDM | B126: EQ | C126: 155.3 | D126: 160.9 | E126: 153.2 | F126: 159.2 | G126: 158 | H126: 155.45 | I126: 53535 | J126: 8500233.9 | K126: 2018-10-04 | L126: 3214 | M126: INE914M01019
A127: ASTRAL | B127: EQ | C127: 900 | D127: 910.05 | E127: 842.7 | F127: 877.7 | G127: 844 | H127: 920.45 | I127: 274855 | J127: 240927726.8 | K127: 2018-10-04 | L127: 27415 | M127: INE006I01046
A128: ASTRAMICRO | B128: EQ | C128: 85.85 | D128: 90 | E128: 85.2 | F128: 89.25 | G128: 88.7 | H128: 86.75 | I128: 228366 | J128: 20259423.75 | K128: 2018-10-04 | L128: 2344 | M128: INE386C01029
A129: ASTRAZEN | B129: EQ | C129: 1564 | D129: 1582.65 | E129: 1525 | F129: 1540.05 | G129: 1542 | H129: 1576 | I129: 16523 | J129: 25736041 | K129: 2018-10-04 | L129: 1596 | M129: INE203A01020
A130: ASTRON | B130: EQ | C130: 122.9 | D130: 123.8 | E130: 118.1 | F130: 119.7 | G130: 118.1 | H130: 124 | I130: 120363 | J130: 14564015.6 | K130: 2018-10-04 | L130: 1206 | M130: INE646X01014
A131: ATFL | B131: EQ | C131: 538.8 | D131: 548.8 | E131: 528 | F131: 540.5 | G131: 547 | H131: 538.75 | I131: 3932 | J131: 2124249.5 | K131: 2018-10-04 | L131: 374 | M131: INE209A01019
A132: ATLANTA | B132: EQ | C132: 24.1 | D132: 26 | E132: 23.95 | F132: 24.15 | G132: 23.95 | H132: 25.2 | I132: 65317 | J132: 1608336.9 | K132: 2018-10-04 | L132: 679 | M132: INE285H01022
A133: ATUL | B133: EQ | C133: 3160 | D133: 3160 | E133: 3050 | F133: 3099.7 | G133: 3130 | H133: 3138.15 | I133: 9993 | J133: 30927042.55 | K133: 2018-10-04 | L133: 1065 | M133: INE100A01010
A134: ATULAUTO | B134: EQ | C134: 325.45 | D134: 325.45 | E134: 300.4 | F134: 302.85 | G134: 303.7 | H134: 321.1 | I134: 32315 | J134: 9970933.35 | K134: 2018-10-04 | L134: 1416 | M134: INE951D01028
A135: AUBANK | B135: EQ | C135: 562.7 | D135: 570 | E135: 550 | F135: 555.7 | G135: 563.45 | H135: 564.75 | I135: 326917 | J135: 180895289.3 | K135: 2018-10-04 | L135: 11668 | M135: INE949L01017
A136: AURIONPRO | B136: EQ | C136: 151.1 | D136: 151.5 | E136: 143 | F136: 145.45 | G136: 143.05 | H136: 151.75 | I136: 32583 | J136: 4741942.25 | K136: 2018-10-04 | L136: 335 | M136: INE132H01018
A137: AUROPHARMA | B137: EQ | C137: 765.05 | D137: 771.9 | E137: 736.2 | F137: 757.05 | G137: 754 | H137: 771.6 | I137: 3652071 | J137: 2760775868 | K137: 2018-10-04 | L137: 90549 | M137: INE406A01037
A138: AUSOMENT | B138: EQ | C138: 55.65 | D138: 59.15 | E138: 54.2 | F138: 54.85 | G138: 54.9 | H138: 58.6 | I138: 5598 | J138: 313036.45 | K138: 2018-10-04 | L138: 173 | M138: INE218C01016
A139: AUTOAXLES | B139: EQ | C139: 1200.5 | D139: 1243.15 | E139: 1191.05 | F139: 1234.65 | G139: 1232.9 | H139: 1233.9 | I139: 15123 | J139: 18424445.1 | K139: 2018-10-04 | L139: 1735 | M139: INE449A01011
A140: AUTOIND | B140: EQ | C140: 60 | D140: 60.8 | E140: 58 | F140: 59.7 | G140: 60.1 | H140: 60.65 | I140: 14674 | J140: 875764.1 | K140: 2018-10-04 | L140: 220 | M140: INE718H01014
A141: AUTOLITIND | B141: EQ | C141: 43 | D141: 43 | E141: 40.35 | F141: 41.25 | G141: 41.65 | H141: 42.4 | I141: 3320 | J141: 137678.45 | K141: 2018-10-04 | L141: 107 | M141: INE448A01013
A142: AVADHSUGAR | B142: EQ | C142: 413.8 | D142: 432 | E142: 401.6 | F142: 410.65 | G142: 407.85 | H142: 425.6 | I142: 89125 | J142: 37325337.9 | K142: 2018-10-04 | L142: 3693 | M142: INE349W01017
A143: AVANTIFEED | B143: EQ | C143: 363 | D143: 364.9 | E143: 354.8 | F143: 356.3 | G143: 354.95 | H143: 366 | I143: 321304 | J143: 115141247 | K143: 2018-10-04 | L143: 11058 | M143: INE871C01038
A144: AVTNPL | B144: EQ | C144: 27 | D144: 27.25 | E144: 26.55 | F144: 26.95 | G144: 26.8 | H144: 27.6 | I144: 30648 | J144: 822193.85 | K144: 2018-10-04 | L144: 236 | M144: INE488D01021
A145: AXISBANK | B145: EQ | C145: 565 | D145: 590.55 | E145: 553.8 | F145: 586.25 | G145: 583.85 | H145: 572.25 | I145: 16877024 | J145: 9717065465 | K145: 2018-10-04 | L145: 185951 | M145: INE238A01034
A146: AXISCADES | B146: EQ | C146: 73.55 | D146: 77.45 | E146: 72.3 | F146: 74.05 | G146: 73 | H146: 75.45 | I146: 65445 | J146: 4877899.2 | K146: 2018-10-04 | L146: 1067 | M146: INE555B01013
A147: AXISGOLD | B147: EQ | C147: 2794 | D147: 2798 | E147: 2740.1 | F147: 2749.05 | G147: 2740.1 | H147: 2738.1 | I147: 179 | J147: 498416.25 | K147: 2018-10-04 | L147: 28 | M147: INF846K01347
A148: AXISNIFTY | B148: EQ | C148: 1217.94 | D148: 1217.94 | E148: 1075.38 | F148: 1078.07 | G148: 1075.38 | H148: 1101.6 | I148: 325 | J148: 352271.98 | K148: 2018-10-04 | L148: 22 | M148: INF846K01ZL0
A149: AYMSYNTEX | B149: EQ | C149: 34.95 | D149: 34.95 | E149: 30.55 | F149: 31.85 | G149: 31 | H149: 34.65 | I149: 23815 | J149: 771489.85 | K149: 2018-10-04 | L149: 186 | M149: INE193B01039
A150: BAFNAPHARM | B150: EQ | C150: 11.7 | D150: 11.9 | E150: 11.05 | F150: 11.7 | G150: 11.7 | H150: 11.8 | I150: 2936 | J150: 34237.05 | K150: 2018-10-04 | L150: 40 | M150: INE878I01014
A151: BAGFILMS | B151: BE | C151: 4.65 | D151: 4.65 | E151: 4.45 | F151: 4.5 | G151: 4.5 | H151: 4.65 | I151: 68965 | J151: 313101.85 | K151: 2018-10-04 | L151: 176 | M151: INE116D01028
A152: BAJAJ-AUTO | B152: EQ | C152: 2687 | D152: 2719.5 | E152: 2626.25 | F152: 2657 | G152: 2637 | H152: 2731.4 | I152: 638156 | J152: 1708580967 | K152: 2018-10-04 | L152: 50482 | M152: INE917I01010
A153: BAJAJCORP | B153: EQ | C153: 399.8 | D153: 401.5 | E153: 386.6 | F153: 399 | G153: 397.65 | H153: 400 | I153: 29338 | J153: 11647430.5 | K153: 2018-10-04 | L153: 3104 | M153: INE933K01021
A154: BAJAJELEC | B154: EQ | C154: 490 | D154: 499.9 | E154: 481.05 | F154: 496.25 | G154: 495 | H154: 495.7 | I154: 138334 | J154: 68066055.7 | K154: 2018-10-04 | L154: 11479 | M154: INE193E01025
A155: BAJAJFINSV | B155: EQ | C155: 5660 | D155: 5730 | E155: 5524.75 | F155: 5632.1 | G155: 5611 | H155: 5752.5 | I155: 209825 | J155: 1181652540 | K155: 2018-10-04 | L155: 22480 | M155: INE918I01018
A156: BAJAJHIND | B156: EQ | C156: 8.35 | D156: 9 | E156: 8.15 | F156: 8.6 | G156: 8.65 | H156: 8.5 | I156: 4547801 | J156: 39169335.75 | K156: 2018-10-04 | L156: 8363 | M156: INE306A01021
A157: BAJAJHLDNG | B157: EQ | C157: 3012 | D157: 3012 | E157: 2908.75 | F157: 2930.05 | G157: 2920 | H157: 3005.65 | I157: 20985 | J157: 61838018.15 | K157: 2018-10-04 | L157: 2542 | M157: INE118A01012
A158: BAJFINANCE | B158: EQ | C158: 2169 | D158: 2212 | E158: 2118.55 | F158: 2179.15 | G158: 2167.1 | H158: 2232.2 | I158: 4002718 | J158: 8664965903 | K158: 2018-10-04 | L158: 125340 | M158: INE296A01024
A159: BALAJITELE | B159: EQ | C159: 106 | D159: 106.35 | E159: 104.55 | F159: 105.1 | G159: 105 | H159: 108 | I159: 39125 | J159: 4111065.45 | K159: 2018-10-04 | L159: 429 | M159: INE794B01026
A160: BALAMINES | B160: EQ | C160: 487.8 | D160: 487.8 | E160: 450.05 | F160: 460.6 | G160: 460 | H160: 481.3 | I160: 23260 | J160: 10723951.9 | K160: 2018-10-04 | L160: 1394 | M160: INE050E01027
A161: BALKRISHNA | B161: EQ | C161: 50 | D161: 51.3 | E161: 48.2 | F161: 48.85 | G161: 48.25 | H161: 51.85 | I161: 19378 | J161: 951607.25 | K161: 2018-10-04 | L161: 249 | M161: INE875R01011
A162: BALKRISIND | B162: EQ | C162: 1024 | D162: 1076.45 | E162: 1017 | F162: 1046.4 | G162: 1041.9 | H162: 1052.8 | I162: 698017 | J162: 733907366.6 | K162: 2018-10-04 | L162: 27318 | M162: INE787D01026
A163: BALLARPUR | B163: EQ | C163: 6.85 | D163: 6.95 | E163: 6.65 | F163: 6.8 | G163: 6.85 | H163: 6.9 | I163: 373968 | J163: 2541036.55 | K163: 2018-10-04 | L163: 554 | M163: INE294A01037
A164: BALMLAWRIE | B164: EQ | C164: 187 | D164: 187 | E164: 184 | F164: 185.8 | G164: 185.7 | H164: 186.85 | I164: 48668 | J164: 9022777.7 | K164: 2018-10-04 | L164: 1341 | M164: INE164A01016
A165: BALPHARMA | B165: EQ | C165: 78 | D165: 81 | E165: 77.4 | F165: 78.3 | G165: 78.15 | H165: 80.6 | I165: 34697 | J165: 2720184.4 | K165: 2018-10-04 | L165: 655 | M165: INE083D01012
A166: BALRAMCHIN | B166: EQ | C166: 75 | D166: 77.7 | E166: 73.85 | F166: 75.2 | G166: 74.8 | H166: 76.2 | I166: 4123935 | J166: 312391488.8 | K166: 2018-10-04 | L166: 20951 | M166: INE119A01028
A167: BANARBEADS | B167: EQ | C167: 48.65 | D167: 50.9 | E167: 48.65 | F167: 50.9 | G167: 50.9 | H167: 48.15 | I167: 881 | J167: 43286.95 | K167: 2018-10-04 | L167: 19 | M167: INE655B01011
A168: BANARISUG | B168: EQ | C168: 1516.05 | D168: 1563 | E168: 1448.7 | F168: 1479.15 | G168: 1460 | H168: 1590.7 | I168: 3147 | J168: 4729636.35 | K168: 2018-10-04 | L168: 313 | M168: INE459A01010
A169: BANCOINDIA | B169: EQ | C169: 189 | D169: 189.95 | E169: 180.8 | F169: 188.05 | G169: 188 | H169: 190.1 | I169: 37385 | J169: 6960745.4 | K169: 2018-10-04 | L169: 3027 | M169: INE213C01025
A170: BANDHANBNK | B170: EQ | C170: 438 | D170: 465.3 | E170: 430.1 | F170: 458.4 | G170: 458.25 | H170: 446.4 | I170: 4294419 | J170: 1957803242 | K170: 2018-10-04 | L170: 159882 | M170: INE545U01014
A171: BANG | B171: EQ | C171: 52.5 | D171: 52.95 | E171: 48.5 | F171: 50.55 | G171: 50.7 | H171: 52.75 | I171: 27974 | J171: 1415502.4 | K171: 2018-10-04 | L171: 270 | M171: INE863I01016
A172: BANKBARODA | B172: EQ | C172: 101.5 | D172: 105.35 | E172: 100.35 | F172: 103.35 | G172: 102.3 | H172: 103.3 | I172: 22401811 | J172: 2317026269 | K172: 2018-10-04 | L172: 87734 | M172: INE028A01039
A173: BANKBEES | B173: EQ | C173: 2550 | D173: 2550 | E173: 2500.5 | F173: 2531.15 | G173: 2521 | H173: 2554.19 | I173: 5229 | J173: 13169515.3 | K173: 2018-10-04 | L173: 600 | M173: INF732E01078
A174: BANKINDIA | B174: EQ | C174: 78.85 | D174: 81.65 | E174: 77.1 | F174: 79.1 | G174: 78.2 | H174: 80.6 | I174: 7927360 | J174: 629570585.5 | K174: 2018-10-04 | L174: 23817 | M174: INE084A01016
A175: BANSWRAS | B175: EQ | C175: 69 | D175: 71.5 | E175: 65.5 | F175: 67.6 | G175: 66.55 | H175: 70.75 | I175: 6477 | J175: 440371.05 | K175: 2018-10-04 | L175: 178 | M175: INE629D01012
A176: BARTRONICS | B176: EQ | C176: 6.6 | D176: 6.95 | E176: 6.35 | F176: 6.8 | G176: 6.9 | H176: 6.65 | I176: 30018 | J176: 198876.9 | K176: 2018-10-04 | L176: 116 | M176: INE855F01034
A177: BASF | B177: EQ | C177: 1780 | D177: 1798.95 | E177: 1725 | F177: 1743 | G177: 1725 | H177: 1807.75 | I177: 6812 | J177: 11935583.95 | K177: 2018-10-04 | L177: 828 | M177: INE373A01013
A178: BASML | B178: EQ | C178: 205 | D178: 210 | E178: 196.05 | F178: 199.7 | G178: 204 | H178: 212.25 | I178: 652 | J178: 130427 | K178: 2018-10-04 | L178: 30 | M178: INE186H01014
A179: BATAINDIA | B179: EQ | C179: 890 | D179: 908 | E179: 861.5 | F179: 867.85 | G179: 863 | H179: 915.3 | I179: 1819895 | J179: 1599382036 | K179: 2018-10-04 | L179: 80552 | M179: INE176A01028
A180: BAYERCROP | B180: EQ | C180: 4260.15 | D180: 4379.8 | E180: 4245 | F180: 4365.1 | G180: 4309 | H180: 4389.5 | I180: 3140 | J180: 13575333.95 | K180: 2018-10-04 | L180: 1468 | M180: INE462A01022
A181: BBL | B181: EQ | C181: 1149 | D181: 1152.5 | E181: 1093 | F181: 1124.85 | G181: 1129.85 | H181: 1156 | I181: 8846 | J181: 9945668.75 | K181: 2018-10-04 | L181: 1266 | M181: INE464A01028
A182: BBTC | B182: EQ | C182: 1270 | D182: 1290 | E182: 1230.95 | F182: 1248.55 | G182: 1234 | H182: 1311.2 | I182: 177651 | J182: 224235784.2 | K182: 2018-10-04 | L182: 10803 | M182: INE050A01025
A183: BDL | B183: EQ | C183: 283 | D183: 283 | E183: 278.1 | F183: 280.4 | G183: 281.5 | H183: 283.75 | I183: 17343 | J183: 4868318.3 | K183: 2018-10-04 | L183: 1269 | M183: INE171Z01018
A184: BEARDSELL | B184: EQ | C184: 29.15 | D184: 29.15 | E184: 25.5 | F184: 27 | G184: 27 | H184: 27.15 | I184: 2132 | J184: 57141.9 | K184: 2018-10-04 | L184: 67 | M184: INE520H01022
A185: BEDMUTHA | B185: BE | C185: 20.45 | D185: 22.35 | E185: 20.35 | F185: 20.35 | G185: 20.35 | H185: 21.35 | I185: 6152 | J185: 125617.7 | K185: 2018-10-04 | L185: 35 | M185: INE844K01012
A186: BEL | B186: EQ | C186: 82.15 | D186: 83.5 | E186: 80.5 | F186: 82.25 | G186: 81.9 | H186: 83.4 | I186: 8160811 | J186: 668881483.9 | K186: 2018-10-04 | L186: 33124 | M186: INE263A01024
A187: BEML | B187: EQ | C187: 593.9 | D187: 623 | E187: 589.1 | F187: 615.4 | G187: 613.2 | H187: 609.75 | I187: 1239323 | J187: 758142634.5 | K187: 2018-10-04 | L187: 28974 | M187: INE258A01016
A188: BEPL | B188: EQ | C188: 125 | D188: 132.6 | E188: 121.45 | F188: 126.5 | G188: 126.05 | H188: 128.8 | I188: 613735 | J188: 78127656.6 | K188: 2018-10-04 | L188: 7196 | M188: INE922A01025
A189: BERGEPAINT | B189: EQ | C189: 274.9 | D189: 282.5 | E189: 270 | F189: 273.25 | G189: 274.45 | H189: 283.5 | I189: 912596 | J189: 252517117.9 | K189: 2018-10-04 | L189: 14842 | M189: INE463A01038
A190: BFINVEST | B190: EQ | C190: 259 | D190: 265.9 | E190: 251.35 | F190: 258.1 | G190: 256 | H190: 264.4 | I190: 62132 | J190: 16120541.45 | K190: 2018-10-04 | L190: 2650 | M190: INE878K01010
A191: BFUTILITIE | B191: EQ | C191: 213 | D191: 218.35 | E191: 210 | F191: 213.15 | G191: 213.3 | H191: 218.85 | I191: 190063 | J191: 40669724.8 | K191: 2018-10-04 | L191: 4720 | M191: INE243D01012
A192: BGLOBAL | B192: BE | C192: 2.3 | D192: 2.45 | E192: 2.3 | F192: 2.45 | G192: 2.45 | H192: 2.35 | I192: 2805 | J192: 6803.95 | K192: 2018-10-04 | L192: 11 | M192: INE224M01013
A193: BGRENERGY | B193: EQ | C193: 54.25 | D193: 57.55 | E193: 54.1 | F193: 55.55 | G193: 55.1 | H193: 55.85 | I193: 112000 | J193: 6306402.15 | K193: 2018-10-04 | L193: 1696 | M193: INE661I01014
A194: BHAGERIA | B194: EQ | C194: 230.55 | D194: 240 | E194: 230.55 | F194: 234.25 | G194: 234 | H194: 237.2 | I194: 9043 | J194: 2125549.5 | K194: 2018-10-04 | L194: 515 | M194: INE354C01027
A195: BHAGYANGR | B195: BE | C195: 28.9 | D195: 29.85 | E195: 28.3 | F195: 28.55 | G195: 28.3 | H195: 29.6 | I195: 8781 | J195: 255807.9 | K195: 2018-10-04 | L195: 88 | M195: INE458B01036
A196: BHAGYAPROP | B196: EQ | C196: 20.75 | D196: 23 | E196: 20.75 | F196: 21.6 | G196: 21.6 | H196: 21.35 | I196: 1692 | J196: 36040.45 | K196: 2018-10-04 | L196: 12 | M196: INE363W01018
A197: BHANDARI | B197: EQ | C197: 2.05 | D197: 2.05 | E197: 1.9 | F197: 1.9 | G197: 1.95 | H197: 2.05 | I197: 385831 | J197: 752881.85 | K197: 2018-10-04 | L197: 183 | M197: INE474E01029
A198: BHARATFIN | B198: EQ | C198: 1005.9 | D198: 1011 | E198: 964.15 | F198: 989.65 | G198: 988.25 | H198: 1016.55 | I198: 1477707 | J198: 1461672248 | K198: 2018-10-04 | L198: 64841 | M198: INE180K01011
A199: BHARATFORG | B199: EQ | C199: 598.35 | D199: 600 | E199: 586.15 | F199: 591.65 | G199: 591.7 | H199: 603.45 | I199: 799249 | J199: 474057662.7 | K199: 2018-10-04 | L199: 17364 | M199: INE465A01025
A200: BHARATGEAR | B200: EQ | C200: 163 | D200: 165.6 | E200: 156.8 | F200: 160.25 | G200: 159 | H200: 165.25 | I200: 11349 | J200: 1833016.3 | K200: 2018-10-04 | L200: 638 | M200: INE561C01019
... 1428 more rows
